BODY,BODY NAME,SUPPLIER CODE,SUPPLIER NAME,TRANSACTION NUMBER,INVOICE DATE,THEIR REF,NARR1,PAID DATE,VAT AMOUNT,EXCLUSIVE AMOUNT,INCLUSIVE AMOUNT,HOSCC,HOSProj,EXPENSE AREA,EXPENSE TYPE,EXPENSE CODE
http://statistics.data.gov.uk/id/local-authority/12UE,Huntingdonshire District Council,200069,ATKINS GREGORY ATKINS GREGORY,8213,27/11/2018,CRE01750,WINDOW CLEANING,21/03/2019,-76,-380,-456,HOS4,,St Ives Bus Station,Maintenance - Building,60201
http://statistics.data.gov.uk/id/local-authority/12UE,Huntingdonshire District Council,200069,ATKINS GREGORY ATKINS GREGORY,8274,27/11/2018,INV43143,DEEP CLEAN AT ST IVES BUS STATION,21/03/2019,58,290,348,,,St Ives Bus Station,Maintenance - Building,60201
http://statistics.data.gov.uk/id/local-authority/12UE,Huntingdonshire District Council,200826,VISION GELPACK LIMITED VISION GELPACK LIMITED,8444,13/11/2018,SINV-001256,CLEAR COMMERCIAL,07/03/2019,133.83,669.16,802.99,HOS1,,Trade Refuse,Refuse Containers/Litter Bins,61200
http://statistics.data.gov.uk/id/local-authority/12UE,Huntingdonshire District Council,200058,ARCHANT HERTS AND CAMBS ARCHANT HERTS AND CAMBS,8698,07/12/2018,82944218,BURGESS HALL,03/01/2019,227.06,"1,135.32","1,362.38",,,OLSI - Burgess Hall,"Advertising, Publicity And Marketing",62005
http://statistics.data.gov.uk/id/local-authority/12UE,Huntingdonshire District Council,200058,ARCHANT HERTS AND CAMBS ARCHANT HERTS AND CAMBS,8698,07/12/2018,82944218,BURGESS HALL,03/01/2019,0.02,0,0.02,,,St Ives Enterprise Centre,Over/Under VAT Rounding,68350
http://statistics.data.gov.uk/id/local-authority/12UE,Huntingdonshire District Council,200725,SMI GROUP SMI GROUP,8701,06/12/2018,INV573216,BOOTS,03/01/2019,63.9,319.5,383.4,HOS4,,Green Waste Collection,"Clothes, Uniform And Laundry",62000
http://statistics.data.gov.uk/id/local-authority/12UE,Huntingdonshire District Council,200725,SMI GROUP SMI GROUP,8702,06/12/2018,INV573215,WORK WEAR,21/02/2019,99.4,497,596.4,,,Domestic Waste Collection,"Clothes, Uniform And Laundry",62000
http://statistics.data.gov.uk/id/local-authority/12UE,Huntingdonshire District Council,200725,SMI GROUP SMI GROUP,8702,06/12/2018,INV573215,WORK WEAR,21/02/2019,7.16,35.78,42.94,HOS1,,Domestic Waste Collection,"Clothes, Uniform And Laundry",62000
http://statistics.data.gov.uk/id/local-authority/12UE,Huntingdonshire District Council,200725,SMI GROUP SMI GROUP,8702,06/12/2018,INV573215,WORK WEAR,21/02/2019,22.24,111.2,133.44,,,Domestic Waste Collection,"Clothes, Uniform And Laundry",62000
http://statistics.data.gov.uk/id/local-authority/12UE,Huntingdonshire District Council,200725,SMI GROUP SMI GROUP,8703,06/12/2018,INV573214,GLOVES,21/02/2019,46.08,230.42,276.5,HOS4,,Domestic Waste Collection,"Clothes, Uniform And Laundry",62000
http://statistics.data.gov.uk/id/local-authority/12UE,Huntingdonshire District Council,200725,SMI GROUP SMI GROUP,8703,06/12/2018,INV573214,GLOVES,21/02/2019,46.09,230.41,276.5,HOS4,,Recycling Collections,"Clothes, Uniform And Laundry",62000
http://statistics.data.gov.uk/id/local-authority/12UE,Huntingdonshire District Council,200725,SMI GROUP SMI GROUP,8703,06/12/2018,INV573214,GLOVES,21/02/2019,46.08,230.42,276.5,HOS1,,Green Waste Collection,"Clothes, Uniform And Laundry",62000
http://statistics.data.gov.uk/id/local-authority/12UE,Huntingdonshire District Council,200489,LES MILLS UK LES MILLS UK,8799,07/12/2018,SIV287230,ONE LEISURE ST IVES,03/01/2019,52.61,263.05,315.66,,,OLSI - Site & Centre Management,Licences,60410
http://statistics.data.gov.uk/id/local-authority/12UE,Huntingdonshire District Council,200900,CRAEMER UK LTD,8825,10/12/2018,3019642,REFUSE CONTAINERS,03/01/2019,"2,371.20","11,856.00","14,227.20",HOS4,,Wheeled Bins,Recycling Bins,61201
http://statistics.data.gov.uk/id/local-authority/12UE,Huntingdonshire District Council,200113,BOOKER CASH AND CARRY BOOKER CASH AND CARRY,8830,06/12/2018,2106829401,COUNTRY PARK,03/01/2019,0,181.97,181.97,HOS5,,Hinchingbrooke Park Cafe,Catering Supplies,61900
http://statistics.data.gov.uk/id/local-authority/12UE,Huntingdonshire District Council,200113,BOOKER CASH AND CARRY BOOKER CASH AND CARRY,8830,06/12/2018,2106829401,COUNTRY PARK,03/01/2019,24.44,122.18,146.62,,,Hinchingbrooke Park Cafe,Catering Supplies,61900
http://statistics.data.gov.uk/id/local-authority/12UE,Huntingdonshire District Council,200952,GET MEDIA LTD,8834,07/12/2018,727,BT PHONE BOOK ADVERTISING,03/01/2019,105.38,526.9,632.28,,,CCC Recharge Invoices,"Advertising, Publicity And Marketing",62005
http://statistics.data.gov.uk/id/local-authority/12UE,Huntingdonshire District Council,200661,R M HOME MAINTENANCE R M HOME MAINTENANCE,8840,06/12/2018,61218,TO REMOVE FLY TIPPED ASBESTOS,03/01/2019,0,"1,000.00","1,000.00",HOS3,,Street Cleansing,Asbestos Removal,60261
http://statistics.data.gov.uk/id/local-authority/12UE,Huntingdonshire District Council,200075,B S GRAVES ELECTRICAL LTD B S GRAVES ELECTRICAL LTD,8882,07/12/2018,27928,UNITS 11 & 12 ALMS CLOSE,03/01/2019,184.5,922.5,"1,107.00",HOS3,,Industrial Properties,Maintenance - Building,60201
http://statistics.data.gov.uk/id/local-authority/12UE,Huntingdonshire District Council,200075,B S GRAVES ELECTRICAL LTD B S GRAVES ELECTRICAL LTD,8882,07/12/2018,27928,UNITS 11 & 12 ALMS CLOSE,03/01/2019,122.5,612.5,735,,,Industrial Properties,Maintenance - Building,60201
http://statistics.data.gov.uk/id/local-authority/12UE,Huntingdonshire District Council,200075,B S GRAVES ELECTRICAL LTD B S GRAVES ELECTRICAL LTD,8882,07/12/2018,27928,UNITS 11 & 12 ALMS CLOSE,03/01/2019,51.6,258,309.6,HOS4,,Health and Safety Works on Commercial Properties,Site Alterations And Materials,60273
http://statistics.data.gov.uk/id/local-authority/12UE,Huntingdonshire District Council,200746,STARLITE ROADSHOW STARLITE ROADSHOW,8900,11/12/2018,8439,ONE LEISURE ST IVES,03/01/2019,0,450,450,,,OLSI - Burgess Hall,Entertainments,64079
http://statistics.data.gov.uk/id/local-authority/12UE,Huntingdonshire District Council,200226,DAL-ROD (CAMRIDGESHIRE) DAL-ROD (CAMRIDGESHIRE),8905,07/12/2018,49232,HUNTINGDON BUS STATION,03/01/2019,185,925,"1,110.00",HOS3,,Huntingdon Bus Station,Maintenance - Building,60201
http://statistics.data.gov.uk/id/local-authority/12UE,Huntingdonshire District Council,200462,KING BROS KING BROS,8925,06/12/2018,985101,COUNTRY PARK,03/01/2019,36.66,183.29,219.95,HOS4,,Hinchingbrooke Park Cafe,Catering Supplies,61900
http://statistics.data.gov.uk/id/local-authority/12UE,Huntingdonshire District Council,200462,KING BROS KING BROS,8925,06/12/2018,985101,COUNTRY PARK,03/01/2019,0,176.57,176.57,,,Hinchingbrooke Park Cafe,Catering Supplies,61900
http://statistics.data.gov.uk/id/local-authority/12UE,Huntingdonshire District Council,200462,KING BROS KING BROS,8925,06/12/2018,985101,COUNTRY PARK,03/01/2019,-0.01,0,-0.01,,,St Ives Enterprise Centre,Over/Under VAT Rounding,68350
http://statistics.data.gov.uk/id/local-authority/12UE,Huntingdonshire District Council,200689,RLSS DIRECT RLSS DIRECT,8937,06/12/2018,SI590395-1,ONE LEISURE HUNTINGDON,03/01/2019,0,322.75,322.75,HOS4,,OLH - Site & Centre Management,Materials,61709
http://statistics.data.gov.uk/id/local-authority/12UE,Huntingdonshire District Council,200000,A C COMMERCIALS A C COMMERCIALS,8959,07/12/2018,288172I,,03/01/2019,93,465,558,HOS6,,Domestic Waste Collection,Materials,61709
http://statistics.data.gov.uk/id/local-authority/12UE,Huntingdonshire District Council,200000,A C COMMERCIALS A C COMMERCIALS,8959,07/12/2018,288172I,,03/01/2019,93,465,558,,,Recycling Collections,Materials,61709
http://statistics.data.gov.uk/id/local-authority/12UE,Huntingdonshire District Council,200000,A C COMMERCIALS A C COMMERCIALS,8959,07/12/2018,288172I,,03/01/2019,93,465,558,,,Green Waste Collection,Materials,61709
http://statistics.data.gov.uk/id/local-authority/12UE,Huntingdonshire District Council,200000,A C COMMERCIALS A C COMMERCIALS,8959,07/12/2018,288172I,,03/01/2019,55.8,279,334.8,,,Street Cleansing,Materials,61709
http://statistics.data.gov.uk/id/local-authority/12UE,Huntingdonshire District Council,200000,A C COMMERCIALS A C COMMERCIALS,8959,07/12/2018,288172I,,03/01/2019,37.2,186,223.2,,,Grounds Maintenance,Materials,61709
http://statistics.data.gov.uk/id/local-authority/12UE,Huntingdonshire District Council,200605,PCF PCF,8971,06/12/2018,139043,BACS SOFTWARE FROM 1 FEB 2018,03/01/2019,68.5,342.5,411,,,CCC Recharge Invoices,Ict Software,64071
http://statistics.data.gov.uk/id/local-authority/12UE,Huntingdonshire District Council,200785,THE OYSTER PARTNERSHIP THE OYSTER PARTNERSHIP,8976,12/12/2018,1044309,REDACTED,03/01/2019,475,"2,375.00","2,850.00",,,Property Development And Mgt,Agency Staff,60011
http://statistics.data.gov.uk/id/local-authority/12UE,Huntingdonshire District Council,200785,THE OYSTER PARTNERSHIP THE OYSTER PARTNERSHIP,8977,12/12/2018,1044310,REDACTED,03/01/2019,375,"1,875.00","2,250.00",,,Property Development And Mgt,Agency Staff,60011
http://statistics.data.gov.uk/id/local-authority/12UE,Huntingdonshire District Council,200785,THE OYSTER PARTNERSHIP THE OYSTER PARTNERSHIP,8978,12/12/2018,1044311,REDACTED,03/01/2019,375,"1,875.00","2,250.00",HOS4,,Property Development And Mgt,Agency Staff,60011
http://statistics.data.gov.uk/id/local-authority/12UE,Huntingdonshire District Council,200679,RICHARD SISTROM PAINTING & DECORATING RICHARD SISTROM PAINTING & DECORATING,8979,07/12/2018,55,ONE LEISURE ST NEOTS,03/01/2019,0,960,960,HOS3,,OLSN - Site & Centre Management,Maintenance - Building,60201
http://statistics.data.gov.uk/id/local-authority/12UE,Huntingdonshire District Council,200365,HAYS HAYS,8981,06/12/2018,1009188671,REDACTED,03/01/2019,481.57,"2,407.86","2,889.43",HOS6,,Property Development And Mgt,Agency Staff,60011
http://statistics.data.gov.uk/id/local-authority/12UE,Huntingdonshire District Council,200613,PETERBOROUGH CITY COUNCIL PETERBOROUGH CITY COUNCIL,8983,07/12/2018,145983,HOUSING STRATEGY MANAGEMENT SERVICES,03/01/2019,"1,548.08","7,740.40","9,288.48",HOS4,,Housing Policy R&D,Agency Staff,60011
http://statistics.data.gov.uk/id/local-authority/12UE,Huntingdonshire District Council,200630,PREMIER IT RECRUITMENT LTD PREMIER IT RECRUITMENT LTD,8991,10/12/2018,R029719,REDACTED,03/01/2019,260,"1,300.00","1,560.00",,,IMD Shared Service,Agency Staff,60011
http://statistics.data.gov.uk/id/local-authority/12UE,Huntingdonshire District Council,200226,DAL-ROD (CAMRIDGESHIRE) DAL-ROD (CAMRIDGESHIRE),8994,11/12/2018,49259,ONE LEISURE HUNTINGDON,03/01/2019,158.6,793,951.6,HOS7,,OLH - Site & Centre Management,Health And Safety Works,60206
http://statistics.data.gov.uk/id/local-authority/12UE,Huntingdonshire District Council,200652,Q ASSOCIATES LIMITED Q ASSOCIATES LIMITED,8997,13/12/2018,45447,RENEWAL OF SERVER SUPPORT,10/01/2019,507.71,"2,538.56","3,046.27",HOS4,,CCC Recharge Invoices,"Maintenance - Equipment, Furniture And Materials",61702
http://statistics.data.gov.uk/id/local-authority/12UE,Huntingdonshire District Council,200652,Q ASSOCIATES LIMITED Q ASSOCIATES LIMITED,8997,13/12/2018,45447,RENEWAL OF SERVER SUPPORT,10/01/2019,247.98,"1,239.88","1,487.86",,,CCC Recharge Invoices,"Maintenance - Equipment, Furniture And Materials",61702
http://statistics.data.gov.uk/id/local-authority/12UE,Huntingdonshire District Council,200652,Q ASSOCIATES LIMITED Q ASSOCIATES LIMITED,8997,13/12/2018,45447,RENEWAL OF SERVER SUPPORT,10/01/2019,408.33,"2,041.66","2,449.99",HOS4,,CCC Recharge Invoices,"Maintenance - Equipment, Furniture And Materials",61702
http://statistics.data.gov.uk/id/local-authority/12UE,Huntingdonshire District Council,200652,Q ASSOCIATES LIMITED Q ASSOCIATES LIMITED,8997,13/12/2018,45447,RENEWAL OF SERVER SUPPORT,10/01/2019,81.24,406.18,487.42,HOS4,,CCC Recharge Invoices,"Maintenance - Equipment, Furniture And Materials",61702
http://statistics.data.gov.uk/id/local-authority/12UE,Huntingdonshire District Council,200652,Q ASSOCIATES LIMITED Q ASSOCIATES LIMITED,8997,13/12/2018,45447,RENEWAL OF SERVER SUPPORT,10/01/2019,186.31,931.54,"1,117.85",,,CCC Recharge Invoices,"Maintenance - Equipment, Furniture And Materials",61702
http://statistics.data.gov.uk/id/local-authority/12UE,Huntingdonshire District Council,200652,Q ASSOCIATES LIMITED Q ASSOCIATES LIMITED,8997,13/12/2018,45447,RENEWAL OF SERVER SUPPORT,10/01/2019,85.78,428.91,514.69,,,CCC Recharge Invoices,"Maintenance - Equipment, Furniture And Materials",61702
http://statistics.data.gov.uk/id/local-authority/12UE,Huntingdonshire District Council,200652,Q ASSOCIATES LIMITED Q ASSOCIATES LIMITED,8997,13/12/2018,45447,RENEWAL OF SERVER SUPPORT,10/01/2019,59.39,296.97,356.36,HOS4,,CCC Recharge Invoices,"Maintenance - Equipment, Furniture And Materials",61702
http://statistics.data.gov.uk/id/local-authority/12UE,Huntingdonshire District Council,200652,Q ASSOCIATES LIMITED Q ASSOCIATES LIMITED,8997,13/12/2018,45447,RENEWAL OF SERVER SUPPORT,10/01/2019,56.25,281.24,337.49,,,CCC Recharge Invoices,"Maintenance - Equipment, Furniture And Materials",61702
http://statistics.data.gov.uk/id/local-authority/12UE,Huntingdonshire District Council,200652,Q ASSOCIATES LIMITED Q ASSOCIATES LIMITED,8997,13/12/2018,45447,RENEWAL OF SERVER SUPPORT,10/01/2019,48.18,240.88,289.06,HOS6,,CCC Recharge Invoices,"Maintenance - Equipment, Furniture And Materials",61702
http://statistics.data.gov.uk/id/local-authority/12UE,Huntingdonshire District Council,200652,Q ASSOCIATES LIMITED Q ASSOCIATES LIMITED,8997,13/12/2018,45447,RENEWAL OF SERVER SUPPORT,10/01/2019,-0.01,0,-0.01,,,St Ives Enterprise Centre,Over/Under VAT Rounding,68350
http://statistics.data.gov.uk/id/local-authority/12UE,Huntingdonshire District Council,200171,CATERFIX LTD CATERFIX LTD,9012,10/12/2018,42436,COUNTRY PARK,03/01/2019,238,"1,190.00","1,428.00",,,Hinchingbrooke Park Cafe,Equipment,61713
http://statistics.data.gov.uk/id/local-authority/12UE,Huntingdonshire District Council,200117,BRAMBLE HUB LTD BRAMBLE HUB LTD,9023,06/12/2018,8402,SERVICES - IC09962,03/01/2019,564.68,"2,823.40","3,388.08",HOS4,,OLH - Site & Centre Management,Ict Software,64071
http://statistics.data.gov.uk/id/local-authority/12UE,Huntingdonshire District Council,200215,CORNERSTONE BARRISTERS CORNERSTONE BARRISTERS,9031,11/12/2018,142812,COUNCIL TAXI SPECIAL EXPENSES -,03/01/2019,140,700,840,,,Closed Churchyards,Legal Fees,63200
http://statistics.data.gov.uk/id/local-authority/12UE,Huntingdonshire District Council,200550,MORGAN HUNT PUBLIC UK LTD MORGAN HUNT PUBLIC UK LTD,9047,09/12/2018,1087688,REDACTED,03/01/2019,128.24,641.19,769.43,HOS3,,Benefits Management,Agency Staff,60011
http://statistics.data.gov.uk/id/local-authority/12UE,Huntingdonshire District Council,200327,GARNER MEDICAL LTD GARNER MEDICAL LTD,9066,11/12/2018,GM17272,ONE LEISURE ST IVES,03/01/2019,61.6,308,369.6,,,OLSI - Site & Centre Management,Maintenance - Building,60201
http://statistics.data.gov.uk/id/local-authority/12UE,Huntingdonshire District Council,200537,MEYER SCOTT RECRUITMENT LIMITED MEYER SCOTT RECRUITMENT LIMITED,9067,10/12/2018,37992,REDACTED,03/01/2019,60.84,304.2,365.04,,,Finance,Agency Staff,60011
http://statistics.data.gov.uk/id/local-authority/12UE,Huntingdonshire District Council,200613,PETERBOROUGH CITY COUNCIL PETERBOROUGH CITY COUNCIL,9086,11/12/2018,146030,FINANCIAL INESTIGATION SERVICES,03/01/2019,0,"1,883.60","1,883.60",,,Benefits Management,Legal Fees,63200
http://statistics.data.gov.uk/id/local-authority/12UE,Huntingdonshire District Council,201464,JOBSITE UK (WORLDWIDE) LTD,9090,06/12/2018,84011708,PARTNERSHIP FEATURED JOB CREDIT,03/01/2019,72,360,432,HOS4,,Community Business Support,Staff Recruitment Costs,60116
http://statistics.data.gov.uk/id/local-authority/12UE,Huntingdonshire District Council,200546,MOGO UK MOGO UK,9107,06/12/2018,T28797,TX BRACKET X 30,03/01/2019,52.8,264,316.8,,,Ph & Hc Vechicles,Licence Plates,60912
http://statistics.data.gov.uk/id/local-authority/12UE,Huntingdonshire District Council,200546,MOGO UK MOGO UK,9107,06/12/2018,T28797,TX BRACKET X 30,03/01/2019,2.98,14.9,17.88,,,Ph & Hc Vechicles,Licence Plates,60912
http://statistics.data.gov.uk/id/local-authority/12UE,Huntingdonshire District Council,200000,A C COMMERCIALS A C COMMERCIALS,9113,10/12/2018,288130I,OIL,03/01/2019,310.59,"1,552.96","1,863.55",,,Grounds Maintenance,Materials,61709
http://statistics.data.gov.uk/id/local-authority/12UE,Huntingdonshire District Council,200000,A C COMMERCIALS A C COMMERCIALS,9113,10/12/2018,288130I,OIL,03/01/2019,0.01,0,0.01,,,St Ives Enterprise Centre,Over/Under VAT Rounding,68350
http://statistics.data.gov.uk/id/local-authority/12UE,Huntingdonshire District Council,200236,DENNIS EAGLE LTD DENNIS EAGLE LTD,9117,10/12/2018,DE11182282,WORKSHOPS,03/01/2019,227.68,"1,138.40","1,366.08",,,Recycling Collections,Vehicle Repairs And Maintenance,60904
http://statistics.data.gov.uk/id/local-authority/12UE,Huntingdonshire District Council,201138,BORNEY UK LTD,9129,13/12/2018,46322,FROSTED VINYL,10/01/2019,581.4,"2,907.00","3,488.40",,HOS99,Pathfinder House,Maintenance - Building,60201
http://statistics.data.gov.uk/id/local-authority/12UE,Huntingdonshire District Council,200279,ERNEST DOE & SONS ERNEST DOE & SONS,9131,07/12/2018,723103,PARTS,03/01/2019,23.8,119.02,142.82,,,Grounds Maintenance,Vehicle Repairs And Maintenance,60904
http://statistics.data.gov.uk/id/local-authority/12UE,Huntingdonshire District Council,200279,ERNEST DOE & SONS ERNEST DOE & SONS,9131,07/12/2018,723103,PARTS,03/01/2019,23.81,119.03,142.84,HOS3,,Grounds Maintenance,Vehicle Repairs And Maintenance,60904
http://statistics.data.gov.uk/id/local-authority/12UE,Huntingdonshire District Council,200279,ERNEST DOE & SONS ERNEST DOE & SONS,9131,07/12/2018,723103,PARTS,03/01/2019,23.81,119.03,142.84,HOS6,,Grounds Maintenance,Vehicle Repairs And Maintenance,60904
http://statistics.data.gov.uk/id/local-authority/12UE,Huntingdonshire District Council,200279,ERNEST DOE & SONS ERNEST DOE & SONS,9131,07/12/2018,723103,PARTS,03/01/2019,23.8,119.03,142.83,HOS6,,Grounds Maintenance,Vehicle Repairs And Maintenance,60904
http://statistics.data.gov.uk/id/local-authority/12UE,Huntingdonshire District Council,201467,T PAYNE & CO,9166,13/12/2018,REDACTED,REDACTED,10/01/2019,0,384.68,384.68,,,Homelessness,Homeless Prevention Payments,64403
http://statistics.data.gov.uk/id/local-authority/12UE,Huntingdonshire District Council,201114,XP RECRUITMENT LTD,9167,12/12/2018,6795,REDACTED,03/01/2019,132.8,664,796.8,HOS3,,Domestic Waste Collection,Agency Staff,60011
http://statistics.data.gov.uk/id/local-authority/12UE,Huntingdonshire District Council,201114,XP RECRUITMENT LTD,9167,12/12/2018,6795,REDACTED,03/01/2019,132.8,664,796.8,,,Recycling Collections,Agency Staff,60011
http://statistics.data.gov.uk/id/local-authority/12UE,Huntingdonshire District Council,201114,XP RECRUITMENT LTD,9167,12/12/2018,6795,REDACTED,03/01/2019,132.8,664,796.8,HOS3,,Green Waste Collection,Agency Staff,60011
http://statistics.data.gov.uk/id/local-authority/12UE,Huntingdonshire District Council,200845,WESTMINSTER FOODSERVICE WESTMINSTER FOODSERVICE,9175,13/12/2018,326343,ONE LEISURE ST IVES,10/01/2019,0,160.92,160.92,,,OLSI - Hospitality,Catering Supplies,61900
http://statistics.data.gov.uk/id/local-authority/12UE,Huntingdonshire District Council,200845,WESTMINSTER FOODSERVICE WESTMINSTER FOODSERVICE,9175,13/12/2018,326343,ONE LEISURE ST IVES,10/01/2019,6.45,32.25,38.7,,,OLSI - Hospitality,Confectionery,61906
http://statistics.data.gov.uk/id/local-authority/12UE,Huntingdonshire District Council,200845,WESTMINSTER FOODSERVICE WESTMINSTER FOODSERVICE,9175,13/12/2018,326343,ONE LEISURE ST IVES,10/01/2019,54,270.02,324.02,HOS4,,OLSI - Hospitality,Bar Provisions,61905
http://statistics.data.gov.uk/id/local-authority/12UE,Huntingdonshire District Council,200845,WESTMINSTER FOODSERVICE WESTMINSTER FOODSERVICE,9175,13/12/2018,326343,ONE LEISURE ST IVES,10/01/2019,0.01,0,0.01,HOS4,,St Ives Enterprise Centre,Over/Under VAT Rounding,68350
http://statistics.data.gov.uk/id/local-authority/12UE,Huntingdonshire District Council,200420,INTERACTION RECRUITMENT PLC INTERACTION RECRUITMENT PLC,9189,09/12/2018,INV1924777,REDACTED,03/01/2019,114.74,573.69,688.43,,,Document Centre,Agency Staff,60011
http://statistics.data.gov.uk/id/local-authority/12UE,Huntingdonshire District Council,200698,ROYAL MAIL GROUP LTD ROYAL MAIL GROUP LTD,9190,10/12/2018,9057857511,POLL CARD MAILINGS,03/01/2019,279.34,"1,396.69","1,676.03",,,Post Handling,Postage And Courier Services,64100
http://statistics.data.gov.uk/id/local-authority/12UE,Huntingdonshire District Council,200698,ROYAL MAIL GROUP LTD ROYAL MAIL GROUP LTD,9190,10/12/2018,9057857511,POLL CARD MAILINGS,03/01/2019,102.8,513.99,616.79,HOS3,,Electoral Registration,Postage And Courier Services,64100
http://statistics.data.gov.uk/id/local-authority/12UE,Huntingdonshire District Council,200698,ROYAL MAIL GROUP LTD ROYAL MAIL GROUP LTD,9190,10/12/2018,9057857511,POLL CARD MAILINGS,03/01/2019,38.71,193.59,232.3,,,Benefits Management,Postage And Courier Services,64100
http://statistics.data.gov.uk/id/local-authority/12UE,Huntingdonshire District Council,200698,ROYAL MAIL GROUP LTD ROYAL MAIL GROUP LTD,9190,10/12/2018,9057857511,POLL CARD MAILINGS,03/01/2019,9.19,45.95,55.14,,,Exercise Referral,Postage And Courier Services,64100
http://statistics.data.gov.uk/id/local-authority/12UE,Huntingdonshire District Council,200698,ROYAL MAIL GROUP LTD ROYAL MAIL GROUP LTD,9190,10/12/2018,9057857511,POLL CARD MAILINGS,03/01/2019,0.01,0,0.01,HOS6,,St Ives Enterprise Centre,Over/Under VAT Rounding,68350
http://statistics.data.gov.uk/id/local-authority/12UE,Huntingdonshire District Council,200471,LACONS LACONS,9197,13/12/2018,759838,ONE LEISURE ST IVES,10/01/2019,826.01,"4,130.03","4,956.04",HOS4,,OLSI - Burgess Bar,Bar Provisions,61905
http://statistics.data.gov.uk/id/local-authority/12UE,Huntingdonshire District Council,200471,LACONS LACONS,9197,13/12/2018,759838,ONE LEISURE ST IVES,10/01/2019,19.76,98.82,118.58,,,OLSI - Burgess Bar,Gas Cylinders,61711
http://statistics.data.gov.uk/id/local-authority/12UE,Huntingdonshire District Council,200113,BOOKER CASH AND CARRY BOOKER CASH AND CARRY,9202,12/12/2018,2106873903,ONE LEISURE ST IVES,03/01/2019,"1,246.96","6,234.80","7,481.76",HOS4,,OLSI - Burgess Bar,Bar Provisions,61905
http://statistics.data.gov.uk/id/local-authority/12UE,Huntingdonshire District Council,200113,BOOKER CASH AND CARRY BOOKER CASH AND CARRY,9202,12/12/2018,2106873903,ONE LEISURE ST IVES,03/01/2019,35.98,179.88,215.86,HOS4,,OLSI - Burgess Bar,Confectionery,61906
http://statistics.data.gov.uk/id/local-authority/12UE,Huntingdonshire District Council,200113,BOOKER CASH AND CARRY BOOKER CASH AND CARRY,9202,12/12/2018,2106873903,ONE LEISURE ST IVES,03/01/2019,90.64,453.2,543.84,,,OLSI - Burgess Bar,Materials,61709
http://statistics.data.gov.uk/id/local-authority/12UE,Huntingdonshire District Council,200113,BOOKER CASH AND CARRY BOOKER CASH AND CARRY,9202,12/12/2018,2106873903,ONE LEISURE ST IVES,03/01/2019,1.6,7.99,9.59,,,OLSI - Burgess Bar,Cleaning Materials,61300
http://statistics.data.gov.uk/id/local-authority/12UE,Huntingdonshire District Council,200113,BOOKER CASH AND CARRY BOOKER CASH AND CARRY,9202,12/12/2018,2106873903,ONE LEISURE ST IVES,03/01/2019,0,87.76,87.76,HOS4,,OLSI - Burgess Bar,Catering Supplies,61900
http://statistics.data.gov.uk/id/local-authority/12UE,Huntingdonshire District Council,200113,BOOKER CASH AND CARRY BOOKER CASH AND CARRY,9202,12/12/2018,2106873903,ONE LEISURE ST IVES,03/01/2019,-0.01,0,-0.01,HOS1,,St Ives Enterprise Centre,Over/Under VAT Rounding,68350
http://statistics.data.gov.uk/id/local-authority/12UE,Huntingdonshire District Council,200113,BOOKER CASH AND CARRY BOOKER CASH AND CARRY,9212,07/12/2018,2106843019,ONE LEISURE SAWTRY,03/01/2019,47.07,235.33,282.4,,,OLS - Hospitality,Vending Materials,61907
http://statistics.data.gov.uk/id/local-authority/12UE,Huntingdonshire District Council,200113,BOOKER CASH AND CARRY BOOKER CASH AND CARRY,9212,07/12/2018,2106843019,ONE LEISURE SAWTRY,03/01/2019,0,25.98,25.98,HOS3,,OLS - Hospitality,Vending Materials,61907
http://statistics.data.gov.uk/id/local-authority/12UE,Huntingdonshire District Council,200026,ADVANTAGE ADVANTAGE,9228,12/12/2018,129543,REDACTED,03/01/2019,300,"1,500.00","1,800.00",,,City Recoverable,Agency Staff,60011
http://statistics.data.gov.uk/id/local-authority/12UE,Huntingdonshire District Council,200026,ADVANTAGE ADVANTAGE,9229,12/12/2018,129535,REDACTED,03/01/2019,85.5,427.5,513,HOS1,,City Recoverable,Agency Staff,60011
http://statistics.data.gov.uk/id/local-authority/12UE,Huntingdonshire District Council,200026,ADVANTAGE ADVANTAGE,9229,12/12/2018,129535,REDACTED,03/01/2019,85.5,427.5,513,,,SCDC Recoverable,Agency Staff,60011
http://statistics.data.gov.uk/id/local-authority/12UE,Huntingdonshire District Council,200365,HAYS HAYS,9232,17/12/2018,1009187375,REDACTED,10/01/2019,590,"2,950.00","3,540.00",,,Finance,Agency Staff,60011
http://statistics.data.gov.uk/id/local-authority/12UE,Huntingdonshire District Council,200113,BOOKER CASH AND CARRY BOOKER CASH AND CARRY,9253,12/12/2018,2106875084,ONE LEISURE ST IVES,03/01/2019,0,4.95,4.95,HOS4,,OLH - Hospitality,Catering Supplies,61900
http://statistics.data.gov.uk/id/local-authority/12UE,Huntingdonshire District Council,200113,BOOKER CASH AND CARRY BOOKER CASH AND CARRY,9253,12/12/2018,2106875084,ONE LEISURE ST IVES,03/01/2019,1.6,7.98,9.58,,,OLH - Hospitality,Catering Supplies,61900
http://statistics.data.gov.uk/id/local-authority/12UE,Huntingdonshire District Council,200113,BOOKER CASH AND CARRY BOOKER CASH AND CARRY,9253,12/12/2018,2106875084,ONE LEISURE ST IVES,03/01/2019,1.86,9.28,11.14,HOS7,,OLH - Hospitality,Materials,61709
http://statistics.data.gov.uk/id/local-authority/12UE,Huntingdonshire District Council,200113,BOOKER CASH AND CARRY BOOKER CASH AND CARRY,9253,12/12/2018,2106875084,ONE LEISURE ST IVES,03/01/2019,1.5,7.49,8.99,,,OLSIO - Hospitality,Bar Provisions,61905
http://statistics.data.gov.uk/id/local-authority/12UE,Huntingdonshire District Council,200113,BOOKER CASH AND CARRY BOOKER CASH AND CARRY,9253,12/12/2018,2106875084,ONE LEISURE ST IVES,03/01/2019,7.59,37.95,45.54,,,OLSIO - Hospitality,Materials,61709
http://statistics.data.gov.uk/id/local-authority/12UE,Huntingdonshire District Council,200113,BOOKER CASH AND CARRY BOOKER CASH AND CARRY,9253,12/12/2018,2106875084,ONE LEISURE ST IVES,03/01/2019,0,4.95,4.95,HOS3,,OLSN - Hospitality,Catering Supplies,61900
http://statistics.data.gov.uk/id/local-authority/12UE,Huntingdonshire District Council,200113,BOOKER CASH AND CARRY BOOKER CASH AND CARRY,9253,12/12/2018,2106875084,ONE LEISURE ST IVES,03/01/2019,2.39,11.96,14.35,HOS3,,OLSN - Hospitality,Materials,61709
http://statistics.data.gov.uk/id/local-authority/12UE,Huntingdonshire District Council,200113,BOOKER CASH AND CARRY BOOKER CASH AND CARRY,9253,12/12/2018,2106875084,ONE LEISURE ST IVES,03/01/2019,5.19,25.94,31.13,,,OLSI - Hospitality,Materials,61709
http://statistics.data.gov.uk/id/local-authority/12UE,Huntingdonshire District Council,200113,BOOKER CASH AND CARRY BOOKER CASH AND CARRY,9253,12/12/2018,2106875084,ONE LEISURE ST IVES,03/01/2019,6.39,31.95,38.34,,,OLSI - Hospitality,Catering Supplies,61900
http://statistics.data.gov.uk/id/local-authority/12UE,Huntingdonshire District Council,200113,BOOKER CASH AND CARRY BOOKER CASH AND CARRY,9253,12/12/2018,2106875084,ONE LEISURE ST IVES,03/01/2019,0,8.74,8.74,,,OLSI - Hospitality,Catering Supplies,61900
http://statistics.data.gov.uk/id/local-authority/12UE,Huntingdonshire District Council,200113,BOOKER CASH AND CARRY BOOKER CASH AND CARRY,9253,12/12/2018,2106875084,ONE LEISURE ST IVES,03/01/2019,1.8,8.99,10.79,,,OLSI - Hospitality,Cleaning Materials,61300
http://statistics.data.gov.uk/id/local-authority/12UE,Huntingdonshire District Council,200113,BOOKER CASH AND CARRY BOOKER CASH AND CARRY,9253,12/12/2018,2106875084,ONE LEISURE ST IVES,03/01/2019,32.76,163.79,196.55,HOS4,,OLSI - Hospitality,Bar Provisions,61905
http://statistics.data.gov.uk/id/local-authority/12UE,Huntingdonshire District Council,200113,BOOKER CASH AND CARRY BOOKER CASH AND CARRY,9253,12/12/2018,2106875084,ONE LEISURE ST IVES,03/01/2019,-0.01,0,-0.01,,,St Ives Enterprise Centre,Over/Under VAT Rounding,68350
http://statistics.data.gov.uk/id/local-authority/12UE,Huntingdonshire District Council,200058,ARCHANT HERTS AND CAMBS ARCHANT HERTS AND CAMBS,9262,14/12/2018,82946117,BURGESS EVENTS,10/01/2019,90.4,452,542.4,,,OLSI - Burgess Hall,"Advertising, Publicity And Marketing",62005
http://statistics.data.gov.uk/id/local-authority/12UE,Huntingdonshire District Council,201279,PARROT PRINT LTD,9263,14/12/2018,13294,ONE LEISURE HUNTINGDON,10/01/2019,0,361,361,HOS4,,One Leisure Support Team,"Advertising, Publicity And Marketing",62005
http://statistics.data.gov.uk/id/local-authority/12UE,Huntingdonshire District Council,200365,HAYS HAYS,9276,18/12/2018,1009246997,REDACTED,10/01/2019,185.82,929.12,"1,114.94",,,Finance,Agency Staff,60011
http://statistics.data.gov.uk/id/local-authority/12UE,Huntingdonshire District Council,200365,HAYS HAYS,9277,18/12/2018,1009246998,REDACTED,10/01/2019,175.74,878.71,"1,054.45",,,Finance,Agency Staff,60011
http://statistics.data.gov.uk/id/local-authority/12UE,Huntingdonshire District Council,200365,HAYS HAYS,9279,18/12/2018,1009246999,REDACTED,10/01/2019,188.71,943.53,"1,132.24",HOS1,,Finance,Agency Staff,60011
http://statistics.data.gov.uk/id/local-authority/12UE,Huntingdonshire District Council,200365,HAYS HAYS,9280,18/12/2018,1009247000,REDACTED,10/01/2019,190.15,950.73,"1,140.88",HOS3,,Finance,Agency Staff,60011
http://statistics.data.gov.uk/id/local-authority/12UE,Huntingdonshire District Council,201012,COACH & HORSES,9283,19/12/2018,PRF191218,CREDIT DUE TO OVERPAYMENT ON INVOICE 361,03/01/2019,-84,-420,-504,HOS4,,Catworth,B&B Accommodation,64401
http://statistics.data.gov.uk/id/local-authority/12UE,Huntingdonshire District Council,200742,ST IVO SCHOOL ST IVO SCHOOL,9299,13/12/2018,STI000586,WATER RECHARGES 22/01-19/11/18,10/01/2019,0,"5,866.36","5,866.36",HOS1,,OLSI - Site & Centre Management,Water And Sewerage,60302
http://statistics.data.gov.uk/id/local-authority/12UE,Huntingdonshire District Council,200615,PHS GROUP LTD PHS GROUP LTD,9306,14/12/2018,66347526,ONE LEISURE ST IVES,10/01/2019,100.68,503.4,604.08,,,OLSI - Site & Centre Management,Cleaning Materials,61300
http://statistics.data.gov.uk/id/local-authority/12UE,Huntingdonshire District Council,200896,COLOURBYTE EUROPE LTD,9308,14/12/2018,169833,2 X EPSON SC-T3200,10/01/2019,62.8,314,376.8,,,"Mfds - Local Print, Scan & Copy","Maintenance - Equipment, Furniture And Materials",61702
http://statistics.data.gov.uk/id/local-authority/12UE,Huntingdonshire District Council,200271,ENFORCE TECHNOLOGY ENFORCE TECHNOLOGY,9310,14/12/2018,7024,IDENTIKEY CONSULTANCY,10/01/2019,85,425,510,HOS4,,SCDC Recoverable,Consultancy Fees,62400
http://statistics.data.gov.uk/id/local-authority/12UE,Huntingdonshire District Council,200537,MEYER SCOTT RECRUITMENT LIMITED MEYER SCOTT RECRUITMENT LIMITED,9326,17/12/2018,38034,REDACTED,10/01/2019,100.05,500.24,600.29,,,Finance,Agency Staff,60011
http://statistics.data.gov.uk/id/local-authority/12UE,Huntingdonshire District Council,200297,FIRST RECRUITMENT GROUP LTD FIRST RECRUITMENT GROUP LTD,9327,12/12/2018,332232,REDACTED,03/01/2019,94.65,473.23,567.88,HOS3,,Finance,Agency Staff,60011
http://statistics.data.gov.uk/id/local-authority/12UE,Huntingdonshire District Council,200297,FIRST RECRUITMENT GROUP LTD FIRST RECRUITMENT GROUP LTD,9328,12/12/2018,332231,REDACTED,03/01/2019,78.15,390.77,468.92,,,Finance,Agency Staff,60011
http://statistics.data.gov.uk/id/local-authority/12UE,Huntingdonshire District Council,200682,RIDGE AND PARTNERS LLP RIDGE AND PARTNERS LLP,9331,18/12/2018,147778,ALMS CLOSE REDEV ELOPMENT,10/01/2019,200,"1,000.00","1,200.00",,,Alms Close,Consultancy Fees,62400
http://statistics.data.gov.uk/id/local-authority/12UE,Huntingdonshire District Council,200743,STAFFLINE GROUP STAFFLINE GROUP,9348,10/12/2018,IN0720340,STREET CLEAN W/C 02/12/18,03/01/2019,697.34,"3,486.69","4,184.03",,,Street Cleansing,Agency Staff,60011
http://statistics.data.gov.uk/id/local-authority/12UE,Huntingdonshire District Council,200759,SWALEC SWALEC,9357,06/12/2018,211687030/0043,SAWTRY LEISURE CENTRE,03/01/2019,538.47,"2,692.33","3,230.80",HOS3,,OLS - Site & Centre Management,Electricity,60303
http://statistics.data.gov.uk/id/local-authority/12UE,Huntingdonshire District Council,200268,ENER-G COMBINED POWER LTD ENER-G COMBINED POWER LTD,9364,13/12/2018,18503646,PERIOD 23/11/18-22/05/19,10/01/2019,"1,412.60","7,063.00","8,475.60",HOS4,,OLH - Site & Centre Management,Maintenance - Building,60201
http://statistics.data.gov.uk/id/local-authority/12UE,Huntingdonshire District Council,200516,M WATSON CONSTRUCTION LTD M WATSON CONSTRUCTION LTD,9365,19/12/2018,22637,REDACTED,10/01/2019,0,982.57,982.57,,,Disabled Facilities Grants,Mandatory Grants,64601
http://statistics.data.gov.uk/id/local-authority/12UE,Huntingdonshire District Council,200516,M WATSON CONSTRUCTION LTD M WATSON CONSTRUCTION LTD,9365,19/12/2018,22637,REDACTED,10/01/2019,0,"2,827.32","2,827.32",,,Disabled Facilities Grants,Mandatory Grants,64601
http://statistics.data.gov.uk/id/local-authority/12UE,Huntingdonshire District Council,200516,M WATSON CONSTRUCTION LTD M WATSON CONSTRUCTION LTD,9365,19/12/2018,22637,REDACTED,10/01/2019,0,"1,859.45","1,859.45",,,Disabled Facilities Grants,Mandatory Grants,64601
http://statistics.data.gov.uk/id/local-authority/12UE,Huntingdonshire District Council,200074,B P MORSE B P MORSE,9366,19/12/2018,657,REDACTED,10/01/2019,0,320,320,HOS3,,Disabled Facilities Grants,Mandatory Grants,64601
http://statistics.data.gov.uk/id/local-authority/12UE,Huntingdonshire District Council,200894,Workman,9367,04/12/2018,835580/62,SERVICE CHARGE 01/01-31/03/19,03/01/2019,385.14,"1,925.71","2,310.85",,HOS99,Commercial Investment Strategy,Service Charges,60401
http://statistics.data.gov.uk/id/local-authority/12UE,Huntingdonshire District Council,200894,Workman,9368,04/12/2018,809900/282,SERVICE CHARGE 25/12/18-24/03/19,03/01/2019,151.66,758.32,909.98,HOS3,,Commercial Investment Strategy,Service Charges,60401
http://statistics.data.gov.uk/id/local-authority/12UE,Huntingdonshire District Council,200894,Workman,9369,04/12/2018,835580/57,SERVICE CHARGE 01/01-31/03/19,03/01/2019,421.02,"2,105.12","2,526.14",HOS4,,Commercial Investment Strategy,Service Charges,60401
http://statistics.data.gov.uk/id/local-authority/12UE,Huntingdonshire District Council,200894,Workman,9370,04/12/2018,809900/277,SERVICE CHARGE 25/12/18-24/03/19,03/01/2019,151.66,758.32,909.98,,,Commercial Investment Strategy,Service Charges,60401
http://statistics.data.gov.uk/id/local-authority/12UE,Huntingdonshire District Council,201476,HUNT & COOMBS LLP,9372,26/11/2018,161804,EMPLOYMENT LAW ADVICE,03/01/2019,50,250,300,HOS7,,Customer Service Centres,Legal Fees,63200
http://statistics.data.gov.uk/id/local-authority/12UE,Huntingdonshire District Council,200430,J P LENNARD LTD J P LENNARD LTD,9375,10/12/2018,918396,ONE LEISURE SAWTRY,03/01/2019,79.97,399.83,479.8,,,OLS - Indoor Sports,Equipment,61713
http://statistics.data.gov.uk/id/local-authority/12UE,Huntingdonshire District Council,200614,PHOENIX SOFTWARE LTD PHOENIX SOFTWARE LTD,9378,05/12/2018,OP/I831890,ACROBAT PROFESSIONAL,03/01/2019,56.89,284.44,341.33,,,HDC Recoverable,Ict Software,64071
http://statistics.data.gov.uk/id/local-authority/12UE,Huntingdonshire District Council,201375,LUBBE & SONS (BULBS) LTD,9383,05/11/2018,2180834,,03/01/2019,732.75,"3,663.75","4,396.50",,,Grounds Maintenance,Gardening Supplies,60506
http://statistics.data.gov.uk/id/local-authority/12UE,Huntingdonshire District Council,201375,LUBBE & SONS (BULBS) LTD,9384,05/11/2018,2180866,BULBS,03/01/2019,"1,645.92","8,229.60","9,875.52",HOS9,,Grounds Maintenance,Gardening Supplies,60506
http://statistics.data.gov.uk/id/local-authority/12UE,Huntingdonshire District Council,200692,ROC SEARCH LIMITED ROC SEARCH LIMITED,9385,12/06/2018,SI-37454,REDACTED,03/01/2019,136.96,684.79,821.75,HOS11,,IMD Shared Service,Agency Staff,60011
http://statistics.data.gov.uk/id/local-authority/12UE,Huntingdonshire District Council,201057,SAFE SECURE LOCKER SERVICES LTD,9390,27/11/2018,13296,ONE LEISURE RAMSEY,03/01/2019,117.3,586.5,703.8,,,OLR - Site & Centre Management,Maintenance - Building,60201
http://statistics.data.gov.uk/id/local-authority/12UE,Huntingdonshire District Council,201115,ARW SPECIALIST BUILDING CONTRACTORS LTD,9392,12/12/2018,3241,ONE LEISURE HUNTINGDON,03/01/2019,"3,107.70","15,538.50","18,646.20",HOS3,,Ol Huntingdon Expansion,Maintenance - Building,60201
http://statistics.data.gov.uk/id/local-authority/12UE,Huntingdonshire District Council,200550,MORGAN HUNT PUBLIC UK LTD MORGAN HUNT PUBLIC UK LTD,9399,16/12/2018,1089117,REDACTED,10/01/2019,137.65,688.25,825.9,,,Benefits Management,Agency Staff,60011
http://statistics.data.gov.uk/id/local-authority/12UE,Huntingdonshire District Council,200103,BIGPRINTING BIGPRINTING,9400,12/12/2018,1711942,ONE LEISURE ST IVES,03/01/2019,98,490,588,HOS4,,OLSI - Site & Centre Management,Printing,62001
http://statistics.data.gov.uk/id/local-authority/12UE,Huntingdonshire District Council,200103,BIGPRINTING BIGPRINTING,9400,12/12/2018,1711942,ONE LEISURE ST IVES,03/01/2019,32.34,161.7,194.04,,,One Leisure Support Team,Printing,62001
http://statistics.data.gov.uk/id/local-authority/12UE,Huntingdonshire District Council,200103,BIGPRINTING BIGPRINTING,9400,12/12/2018,1711942,ONE LEISURE ST IVES,03/01/2019,7,35,42,HOS4,,One Leisure Support Team,Printing,62001
http://statistics.data.gov.uk/id/local-authority/12UE,Huntingdonshire District Council,200103,BIGPRINTING BIGPRINTING,9400,12/12/2018,1711942,ONE LEISURE ST IVES,03/01/2019,0,0,0,HOS6,,One Leisure Support Team,Printing,62001
http://statistics.data.gov.uk/id/local-authority/12UE,Huntingdonshire District Council,200308,FRANK RATCLIFFE & SON FRANK RATCLIFFE & SON,9401,20/12/2018,92439,HIRE OF SPECIALIST EQUIPMENT,17/01/2019,360,"1,800.00","2,160.00",,,Environmental Enforcement,Removal Services,63700
http://statistics.data.gov.uk/id/local-authority/12UE,Huntingdonshire District Council,200730,SOFTCAT SOFTCAT,9403,31/08/2018,INV02002789,OFFICE PRO PLUS ALL LANGUAGE LICENSE,03/01/2019,429.3,"2,146.50","2,575.80",,,Council Anywhere Holding Acc,Ict Software,64071
http://statistics.data.gov.uk/id/local-authority/12UE,Huntingdonshire District Council,200730,SOFTCAT SOFTCAT,9403,31/08/2018,INV02002789,OFFICE PRO PLUS ALL LANGUAGE LICENSE,03/01/2019,411.5,"2,057.50","2,469.00",,,Council Anywhere Holding Acc,Ict Software,64071
http://statistics.data.gov.uk/id/local-authority/12UE,Huntingdonshire District Council,200730,SOFTCAT SOFTCAT,9403,31/08/2018,INV02002789,OFFICE PRO PLUS ALL LANGUAGE LICENSE,03/01/2019,108.5,542.5,651,,,Council Anywhere Holding Acc,Ict Software,64071
http://statistics.data.gov.uk/id/local-authority/12UE,Huntingdonshire District Council,200542,MIRAMAR ENGINEERING LTD MIRAMAR ENGINEERING LTD,9409,31/10/2018,2348,ONE LEISURE ST IVES,03/01/2019,202.1,"1,010.50","1,212.60",,,OLSI - Site & Centre Management,Maintenance - Building,60201
http://statistics.data.gov.uk/id/local-authority/12UE,Huntingdonshire District Council,200542,MIRAMAR ENGINEERING LTD MIRAMAR ENGINEERING LTD,9410,31/10/2018,2351,ONE LEISURE ST IVES,03/01/2019,62.3,311.5,373.8,,,OLSI - Site & Centre Management,Maintenance - Building,60201
http://statistics.data.gov.uk/id/local-authority/12UE,Huntingdonshire District Council,200215,CORNERSTONE BARRISTERS CORNERSTONE BARRISTERS,9411,21/12/2018,139615,REDACTED,17/01/2019,245,"1,225.00","1,470.00",HOS3,,Dm Application Processing,Consultancy Fees,62400
http://statistics.data.gov.uk/id/local-authority/12UE,Huntingdonshire District Council,200526,MASKEARAID LTD MASKEARAID LTD,9414,20/12/2018,66676,CLEANING PRODUCTS,17/01/2019,68.88,344.4,413.28,,,Pathfinder House,Cleaning Materials,61300
http://statistics.data.gov.uk/id/local-authority/12UE,Huntingdonshire District Council,200526,MASKEARAID LTD MASKEARAID LTD,9414,20/12/2018,66676,CLEANING PRODUCTS,17/01/2019,34.48,172.4,206.88,HOS3,,Pathfinder House,Cleaning Materials,61300
http://statistics.data.gov.uk/id/local-authority/12UE,Huntingdonshire District Council,200526,MASKEARAID LTD MASKEARAID LTD,9414,20/12/2018,66676,CLEANING PRODUCTS,17/01/2019,2.72,13.6,16.32,HOS3,,Pathfinder House,Cleaning Materials,61300
http://statistics.data.gov.uk/id/local-authority/12UE,Huntingdonshire District Council,200113,BOOKER CASH AND CARRY BOOKER CASH AND CARRY,9416,13/12/2018,2106882955,COUNTRY PARK,10/01/2019,0,157.75,157.75,HOS7,,Hinchingbrooke Park Cafe,Catering Supplies,61900
http://statistics.data.gov.uk/id/local-authority/12UE,Huntingdonshire District Council,200113,BOOKER CASH AND CARRY BOOKER CASH AND CARRY,9416,13/12/2018,2106882955,COUNTRY PARK,10/01/2019,8.27,41.36,49.63,,,Hinchingbrooke Park Cafe,Catering Supplies,61900
http://statistics.data.gov.uk/id/local-authority/12UE,Huntingdonshire District Council,200113,BOOKER CASH AND CARRY BOOKER CASH AND CARRY,9416,13/12/2018,2106882955,COUNTRY PARK,10/01/2019,10.68,53.4,64.08,HOS5,,Hinchingbrooke Park Cafe,Materials,61709
http://statistics.data.gov.uk/id/local-authority/12UE,Huntingdonshire District Council,200785,THE OYSTER PARTNERSHIP THE OYSTER PARTNERSHIP,9420,19/12/2018,1044717,REDACTED,10/01/2019,475,"2,375.00","2,850.00",HOS5,,Property Development And Mgt,Agency Staff,60011
http://statistics.data.gov.uk/id/local-authority/12UE,Huntingdonshire District Council,200785,THE OYSTER PARTNERSHIP THE OYSTER PARTNERSHIP,9421,19/12/2018,1044719,REDACTED,10/01/2019,375,"1,875.00","2,250.00",HOS4,,Property Development And Mgt,Agency Staff,60011
http://statistics.data.gov.uk/id/local-authority/12UE,Huntingdonshire District Council,200365,HAYS HAYS,9422,19/12/2018,1009255681,REDACTED,10/01/2019,481.57,"2,407.86","2,889.43",,HOS99,Property Development And Mgt,Agency Staff,60011
http://statistics.data.gov.uk/id/local-authority/12UE,Huntingdonshire District Council,200459,KHIPU NETWORKS LTD KHIPU NETWORKS LTD,9432,03/07/2018,18115,ICT HARDWARE,03/01/2019,"2,104.48","10,522.38","12,626.86",,,City Recoverable,Ict Hardware,64070
http://statistics.data.gov.uk/id/local-authority/12UE,Huntingdonshire District Council,200459,KHIPU NETWORKS LTD KHIPU NETWORKS LTD,9432,03/07/2018,18115,ICT HARDWARE,03/01/2019,-0.02,0,-0.02,,,St Ives Enterprise Centre,Over/Under VAT Rounding,68350
http://statistics.data.gov.uk/id/local-authority/12UE,Huntingdonshire District Council,200630,PREMIER IT RECRUITMENT LTD PREMIER IT RECRUITMENT LTD,9433,14/12/2018,R029806,REDACTED,10/01/2019,280,"1,400.00","1,680.00",HOS4,,Transformation Programme,Consultancy Fees,62400
http://statistics.data.gov.uk/id/local-authority/12UE,Huntingdonshire District Council,200630,PREMIER IT RECRUITMENT LTD PREMIER IT RECRUITMENT LTD,9434,18/12/2018,R029934,REDACTED,10/01/2019,350,"1,750.00","2,100.00",,,Transformation Programme,Consultancy Fees,62400
http://statistics.data.gov.uk/id/local-authority/12UE,Huntingdonshire District Council,200565,NEOPOST NEOPOST,9436,20/12/2018,92528597,OVERPRINTED ENVELOPES,17/01/2019,214.8,"1,074.00","1,288.80",HOS4,,Printing,Stationery,62002
http://statistics.data.gov.uk/id/local-authority/12UE,Huntingdonshire District Council,200785,THE OYSTER PARTNERSHIP THE OYSTER PARTNERSHIP,9437,19/12/2018,1044718,REDACTED,10/01/2019,262.5,"1,312.50","1,575.00",,,Property Development And Mgt,Agency Staff,60011
http://statistics.data.gov.uk/id/local-authority/12UE,Huntingdonshire District Council,200625,PORTAKABIN LTD PORTAKABIN LTD,9438,01/01/2019,300836359,PACEMAKER HIRE BUILDING,24/01/2019,134.51,672.54,807.05,HOS4,,Voluntary Sector Grants,Premises Hire - Facilities,60402
http://statistics.data.gov.uk/id/local-authority/12UE,Huntingdonshire District Council,200625,PORTAKABIN LTD PORTAKABIN LTD,9438,01/01/2019,300836359,PACEMAKER HIRE BUILDING,24/01/2019,-0.01,0,-0.01,,,St Ives Enterprise Centre,Over/Under VAT Rounding,68350
http://statistics.data.gov.uk/id/local-authority/12UE,Huntingdonshire District Council,200050,ANTALIS LTD ANTALIS LTD,9439,21/12/2018,8256919,PAPER,17/01/2019,96.8,484,580.8,,,Printing,Paper,62803
http://statistics.data.gov.uk/id/local-authority/12UE,Huntingdonshire District Council,200436,JAZ YORKS LTD JAZ YORKS LTD,9440,01/12/2018,38481111,REDACTED,03/01/2019,65,325,390,,,Homelessness,B&B Accommodation,64401
http://statistics.data.gov.uk/id/local-authority/12UE,Huntingdonshire District Council,200436,JAZ YORKS LTD JAZ YORKS LTD,9441,09/12/2018,384/1115,REDACTED,03/01/2019,-0.01,0,-0.01,,,St Ives Enterprise Centre,Over/Under VAT Rounding,68350
http://statistics.data.gov.uk/id/local-authority/12UE,Huntingdonshire District Council,200436,JAZ YORKS LTD JAZ YORKS LTD,9441,09/12/2018,384/1115,REDACTED,03/01/2019,64.17,320.84,385.01,,,Homelessness,B&B Accommodation,64401
http://statistics.data.gov.uk/id/local-authority/12UE,Huntingdonshire District Council,200436,JAZ YORKS LTD JAZ YORKS LTD,9442,10/12/2018,384/1116,REDACTED,03/01/2019,52.5,262.5,315,,,Homelessness,B&B Accommodation,64401
http://statistics.data.gov.uk/id/local-authority/12UE,Huntingdonshire District Council,200436,JAZ YORKS LTD JAZ YORKS LTD,9444,10/12/2018,384/1114,REDACTED,03/01/2019,52.5,262.5,315,,,Homelessness,B&B Accommodation,64401
http://statistics.data.gov.uk/id/local-authority/12UE,Huntingdonshire District Council,200094,BELVOIR LETTINGS BELVOIR LETTINGS,9446,20/12/2018,REDACTED,H/L PREVENTION PAYMENT,03/01/2019,0,569,569,,,Homelessness,Homeless Prevention Payments,64403
http://statistics.data.gov.uk/id/local-authority/12UE,Huntingdonshire District Council,200113,BOOKER CASH AND CARRY BOOKER CASH AND CARRY,9449,20/12/2018,2106931423,COUNTRY PARK,17/01/2019,0,348.78,348.78,,,Hinchingbrooke Park Cafe,Catering Supplies,61900
http://statistics.data.gov.uk/id/local-authority/12UE,Huntingdonshire District Council,200679,RICHARD SISTROM PAINTING & DECORATING RICHARD SISTROM PAINTING & DECORATING,9459,24/12/2018,56,ONE LEISURE ST IVES,17/01/2019,0,"1,186.00","1,186.00",,,OLSI - Site & Centre Management,Maintenance - Building,60201
http://statistics.data.gov.uk/id/local-authority/12UE,Huntingdonshire District Council,201012,COACH & HORSES,9460,10/12/2018,362,10-16/12/18,03/01/2019,56,280,336,,,Homelessness,B&B Accommodation,64401
http://statistics.data.gov.uk/id/local-authority/12UE,Huntingdonshire District Council,201012,COACH & HORSES,9460,10/12/2018,362,10-16/12/18,03/01/2019,77,385,462,HOS3,,Homelessness,B&B Accommodation,64401
http://statistics.data.gov.uk/id/local-authority/12UE,Huntingdonshire District Council,201012,COACH & HORSES,9460,10/12/2018,362,10-16/12/18,03/01/2019,56,280,336,,,Homelessness,B&B Accommodation,64401
http://statistics.data.gov.uk/id/local-authority/12UE,Huntingdonshire District Council,201012,COACH & HORSES,9460,10/12/2018,362,10-16/12/18,03/01/2019,56,280,336,,,Homelessness,B&B Accommodation,64401
http://statistics.data.gov.uk/id/local-authority/12UE,Huntingdonshire District Council,201012,COACH & HORSES,9460,10/12/2018,362,10-16/12/18,03/01/2019,32,160,192,,,Homelessness,B&B Accommodation,64401
http://statistics.data.gov.uk/id/local-authority/12UE,Huntingdonshire District Council,201012,COACH & HORSES,9460,10/12/2018,362,10-16/12/18,03/01/2019,56,280,336,,,Homelessness,B&B Accommodation,64401
http://statistics.data.gov.uk/id/local-authority/12UE,Huntingdonshire District Council,201012,COACH & HORSES,9460,10/12/2018,362,10-16/12/18,03/01/2019,56,280,336,,,Homelessness,B&B Accommodation,64401
http://statistics.data.gov.uk/id/local-authority/12UE,Huntingdonshire District Council,200681,RICS RICS,9464,28/11/2018,96806,BCIS REVIEW ONLINE,03/01/2019,256,"1,280.00","1,536.00",,,Planning Policy,Membership And Subscriptions,64800
http://statistics.data.gov.uk/id/local-authority/12UE,Huntingdonshire District Council,200697,ROYAL INDUSTRIAL DOORS LTD ROYAL INDUSTRIAL DOORS LTD,9469,19/12/2018,23946,PAXTON PITS - MAINTENANCE,10/01/2019,59,295,354,,,Paxton Pits,Maintenance - Building,60201
http://statistics.data.gov.uk/id/local-authority/12UE,Huntingdonshire District Council,200075,B S GRAVES ELECTRICAL LTD B S GRAVES ELECTRICAL LTD,9471,12/09/2018,27479,HDC CAR PARK SITES,03/01/2019,230.4,"1,152.00","1,382.40",HOS3,,Car Parks Operational Mgt,Site Alterations And Materials,60273
http://statistics.data.gov.uk/id/local-authority/12UE,Huntingdonshire District Council,200436,JAZ YORKS LTD JAZ YORKS LTD,9481,17/12/2018,384/1117,REDACTED,03/01/2019,52.5,262.5,315,,,Homelessness,B&B Accommodation,64401
http://statistics.data.gov.uk/id/local-authority/12UE,Huntingdonshire District Council,200436,JAZ YORKS LTD JAZ YORKS LTD,9483,16/12/2018,384/1118,REDACTED,03/01/2019,-0.01,0,-0.01,,,St Ives Enterprise Centre,Over/Under VAT Rounding,68350
http://statistics.data.gov.uk/id/local-authority/12UE,Huntingdonshire District Council,200436,JAZ YORKS LTD JAZ YORKS LTD,9483,16/12/2018,384/1118,REDACTED,03/01/2019,64.17,320.84,385.01,,,Homelessness,B&B Accommodation,64401
http://statistics.data.gov.uk/id/local-authority/12UE,Huntingdonshire District Council,200133,BSG PROPERTY SERVICES LTD BSG PROPERTY SERVICES LTD,9484,18/10/2018,S37627,170397,03/01/2019,0,"8,054.00","8,054.00",,,Disabled Facilities Grants,Mandatory Grants,64601
http://statistics.data.gov.uk/id/local-authority/12UE,Huntingdonshire District Council,200133,BSG PROPERTY SERVICES LTD BSG PROPERTY SERVICES LTD,9484,18/10/2018,S37627,170397,03/01/2019,0,0,0,HOS4,,Disabled Facilities Grants,Mandatory Grants,64601
http://statistics.data.gov.uk/id/local-authority/12UE,Huntingdonshire District Council,200436,JAZ YORKS LTD JAZ YORKS LTD,9486,20/12/2018,384/1120,REDACTED,03/01/2019,52.5,262.5,315,HOS7,,Homelessness,B&B Accommodation,64401
http://statistics.data.gov.uk/id/local-authority/12UE,Huntingdonshire District Council,200436,JAZ YORKS LTD JAZ YORKS LTD,9487,17/12/2018,384/1119,REDACTED,03/01/2019,52.5,262.5,315,,HOS99,Homelessness,B&B Accommodation,64401
http://statistics.data.gov.uk/id/local-authority/12UE,Huntingdonshire District Council,201012,COACH & HORSES,9488,17/12/2018,363,17-23/12/18,03/01/2019,56,280,336,,,Homelessness,B&B Accommodation,64401
http://statistics.data.gov.uk/id/local-authority/12UE,Huntingdonshire District Council,201012,COACH & HORSES,9488,17/12/2018,363,17-23/12/18,03/01/2019,33,165,198,,,Homelessness,B&B Accommodation,64401
http://statistics.data.gov.uk/id/local-authority/12UE,Huntingdonshire District Council,201012,COACH & HORSES,9488,17/12/2018,363,17-23/12/18,03/01/2019,56,280,336,HOS1,,Homelessness,B&B Accommodation,64401
http://statistics.data.gov.uk/id/local-authority/12UE,Huntingdonshire District Council,201012,COACH & HORSES,9488,17/12/2018,363,17-23/12/18,03/01/2019,56,280,336,HOS1,,Homelessness,B&B Accommodation,64401
http://statistics.data.gov.uk/id/local-authority/12UE,Huntingdonshire District Council,201012,COACH & HORSES,9488,17/12/2018,363,17-23/12/18,03/01/2019,8,40,48,HOS4,,Homelessness,B&B Accommodation,64401
http://statistics.data.gov.uk/id/local-authority/12UE,Huntingdonshire District Council,201012,COACH & HORSES,9488,17/12/2018,363,17-23/12/18,03/01/2019,56,280,336,HOS4,,Homelessness,B&B Accommodation,64401
http://statistics.data.gov.uk/id/local-authority/12UE,Huntingdonshire District Council,201012,COACH & HORSES,9488,17/12/2018,363,17-23/12/18,03/01/2019,56,280,336,,,Homelessness,B&B Accommodation,64401
http://statistics.data.gov.uk/id/local-authority/12UE,Huntingdonshire District Council,201011,CENTENNIAL PROPERTY LTD,9489,17/12/2018,CP-HDC049,1-16/12/18,03/01/2019,0,880,880,HOS4,,Homelessness,B&B Accommodation,64401
http://statistics.data.gov.uk/id/local-authority/12UE,Huntingdonshire District Council,201011,CENTENNIAL PROPERTY LTD,9489,17/12/2018,CP-HDC049,1-16/12/18,03/01/2019,0,880,880,HOS4,,Homelessness,B&B Accommodation,64401
http://statistics.data.gov.uk/id/local-authority/12UE,Huntingdonshire District Council,201011,CENTENNIAL PROPERTY LTD,9489,17/12/2018,CP-HDC049,1-16/12/18,03/01/2019,0,720,720,,,Homelessness,B&B Accommodation,64401
http://statistics.data.gov.uk/id/local-authority/12UE,Huntingdonshire District Council,201011,CENTENNIAL PROPERTY LTD,9489,17/12/2018,CP-HDC049,1-16/12/18,03/01/2019,0,720,720,,,Homelessness,B&B Accommodation,64401
http://statistics.data.gov.uk/id/local-authority/12UE,Huntingdonshire District Council,201011,CENTENNIAL PROPERTY LTD,9489,17/12/2018,CP-HDC049,1-16/12/18,03/01/2019,0,608,608,,,Homelessness,B&B Accommodation,64401
http://statistics.data.gov.uk/id/local-authority/12UE,Huntingdonshire District Council,201011,CENTENNIAL PROPERTY LTD,9489,17/12/2018,CP-HDC049,1-16/12/18,03/01/2019,0,608,608,,,Homelessness,B&B Accommodation,64401
http://statistics.data.gov.uk/id/local-authority/12UE,Huntingdonshire District Council,201011,CENTENNIAL PROPERTY LTD,9489,17/12/2018,CP-HDC049,1-16/12/18,03/01/2019,0,608,608,,,Homelessness,B&B Accommodation,64401
http://statistics.data.gov.uk/id/local-authority/12UE,Huntingdonshire District Council,201011,CENTENNIAL PROPERTY LTD,9489,17/12/2018,CP-HDC049,1-16/12/18,03/01/2019,0,720,720,,,Homelessness,B&B Accommodation,64401
http://statistics.data.gov.uk/id/local-authority/12UE,Huntingdonshire District Council,201011,CENTENNIAL PROPERTY LTD,9489,17/12/2018,CP-HDC049,1-16/12/18,03/01/2019,0,880,880,,,Homelessness,B&B Accommodation,64401
http://statistics.data.gov.uk/id/local-authority/12UE,Huntingdonshire District Council,201011,CENTENNIAL PROPERTY LTD,9489,17/12/2018,CP-HDC049,1-16/12/18,03/01/2019,0,720,720,HOS4,,Homelessness,B&B Accommodation,64401
http://statistics.data.gov.uk/id/local-authority/12UE,Huntingdonshire District Council,201011,CENTENNIAL PROPERTY LTD,9489,17/12/2018,CP-HDC049,1-16/12/18,03/01/2019,0,270,270,,,Homelessness,B&B Accommodation,64401
http://statistics.data.gov.uk/id/local-authority/12UE,Huntingdonshire District Council,201011,CENTENNIAL PROPERTY LTD,9489,17/12/2018,CP-HDC049,1-16/12/18,03/01/2019,0,720,720,HOS99,,Homelessness,B&B Accommodation,64401
http://statistics.data.gov.uk/id/local-authority/12UE,Huntingdonshire District Council,201011,CENTENNIAL PROPERTY LTD,9489,17/12/2018,CP-HDC049,1-16/12/18,03/01/2019,0,608,608,HOS3,,Homelessness,B&B Accommodation,64401
http://statistics.data.gov.uk/id/local-authority/12UE,Huntingdonshire District Council,201011,CENTENNIAL PROPERTY LTD,9489,17/12/2018,CP-HDC049,1-16/12/18,03/01/2019,0,800,800,,,Homelessness,B&B Accommodation,64401
http://statistics.data.gov.uk/id/local-authority/12UE,Huntingdonshire District Council,201011,CENTENNIAL PROPERTY LTD,9489,17/12/2018,CP-HDC049,1-16/12/18,03/01/2019,0,715,715,,,Homelessness,B&B Accommodation,64401
http://statistics.data.gov.uk/id/local-authority/12UE,Huntingdonshire District Council,201011,CENTENNIAL PROPERTY LTD,9489,17/12/2018,CP-HDC049,1-16/12/18,03/01/2019,0,608,608,HOS3,,Homelessness,B&B Accommodation,64401
http://statistics.data.gov.uk/id/local-authority/12UE,Huntingdonshire District Council,201011,CENTENNIAL PROPERTY LTD,9489,17/12/2018,CP-HDC049,1-16/12/18,03/01/2019,0,608,608,HOS3,,Homelessness,B&B Accommodation,64401
http://statistics.data.gov.uk/id/local-authority/12UE,Huntingdonshire District Council,201011,CENTENNIAL PROPERTY LTD,9489,17/12/2018,CP-HDC049,1-16/12/18,03/01/2019,0,608,608,HOS3,,Homelessness,B&B Accommodation,64401
http://statistics.data.gov.uk/id/local-authority/12UE,Huntingdonshire District Council,201011,CENTENNIAL PROPERTY LTD,9489,17/12/2018,CP-HDC049,1-16/12/18,03/01/2019,0,608,608,,,Homelessness,B&B Accommodation,64401
http://statistics.data.gov.uk/id/local-authority/12UE,Huntingdonshire District Council,201011,CENTENNIAL PROPERTY LTD,9489,17/12/2018,CP-HDC049,1-16/12/18,03/01/2019,0,720,720,,,Homelessness,B&B Accommodation,64401
http://statistics.data.gov.uk/id/local-authority/12UE,Huntingdonshire District Council,201011,CENTENNIAL PROPERTY LTD,9489,17/12/2018,CP-HDC049,1-16/12/18,03/01/2019,0,720,720,,,Homelessness,B&B Accommodation,64401
http://statistics.data.gov.uk/id/local-authority/12UE,Huntingdonshire District Council,201011,CENTENNIAL PROPERTY LTD,9489,17/12/2018,CP-HDC049,1-16/12/18,03/01/2019,0,585,585,,,Homelessness,B&B Accommodation,64401
http://statistics.data.gov.uk/id/local-authority/12UE,Huntingdonshire District Council,201011,CENTENNIAL PROPERTY LTD,9489,17/12/2018,CP-HDC049,1-16/12/18,03/01/2019,0,608,608,,,Homelessness,B&B Accommodation,64401
http://statistics.data.gov.uk/id/local-authority/12UE,Huntingdonshire District Council,201011,CENTENNIAL PROPERTY LTD,9489,17/12/2018,CP-HDC049,1-16/12/18,03/01/2019,0,608,608,,,Homelessness,B&B Accommodation,64401
http://statistics.data.gov.uk/id/local-authority/12UE,Huntingdonshire District Council,201011,CENTENNIAL PROPERTY LTD,9489,17/12/2018,CP-HDC049,1-16/12/18,03/01/2019,0,720,720,HOS3,,Homelessness,B&B Accommodation,64401
http://statistics.data.gov.uk/id/local-authority/12UE,Huntingdonshire District Council,201011,CENTENNIAL PROPERTY LTD,9489,17/12/2018,CP-HDC049,1-16/12/18,03/01/2019,0,608,608,HOS4,,Homelessness,B&B Accommodation,64401
http://statistics.data.gov.uk/id/local-authority/12UE,Huntingdonshire District Council,201011,CENTENNIAL PROPERTY LTD,9489,17/12/2018,CP-HDC049,1-16/12/18,03/01/2019,0,720,720,HOS4,,Homelessness,B&B Accommodation,64401
http://statistics.data.gov.uk/id/local-authority/12UE,Huntingdonshire District Council,201011,CENTENNIAL PROPERTY LTD,9489,17/12/2018,CP-HDC049,1-16/12/18,03/01/2019,0,720,720,,HOS99,Homelessness,B&B Accommodation,64401
http://statistics.data.gov.uk/id/local-authority/12UE,Huntingdonshire District Council,200673,RENT CONNECT RENT CONNECT,9490,17/12/2018,RC-HDC049,Dec-18,03/01/2019,0,880,880,,,Homelessness,B&B Accommodation,64401
http://statistics.data.gov.uk/id/local-authority/12UE,Huntingdonshire District Council,200673,RENT CONNECT RENT CONNECT,9490,17/12/2018,RC-HDC049,Dec-18,03/01/2019,0,608,608,,,Homelessness,B&B Accommodation,64401
http://statistics.data.gov.uk/id/local-authority/12UE,Huntingdonshire District Council,200673,RENT CONNECT RENT CONNECT,9490,17/12/2018,RC-HDC049,Dec-18,03/01/2019,0,880,880,HOS8,,Homelessness,B&B Accommodation,64401
http://statistics.data.gov.uk/id/local-authority/12UE,Huntingdonshire District Council,200673,RENT CONNECT RENT CONNECT,9490,17/12/2018,RC-HDC049,Dec-18,03/01/2019,0,720,720,HOS7,,Homelessness,B&B Accommodation,64401
http://statistics.data.gov.uk/id/local-authority/12UE,Huntingdonshire District Council,200673,RENT CONNECT RENT CONNECT,9490,17/12/2018,RC-HDC049,Dec-18,03/01/2019,0,495,495,HOS1,,Homelessness,B&B Accommodation,64401
http://statistics.data.gov.uk/id/local-authority/12UE,Huntingdonshire District Council,200673,RENT CONNECT RENT CONNECT,9490,17/12/2018,RC-HDC049,Dec-18,03/01/2019,0,880,880,HOS1,,Homelessness,B&B Accommodation,64401
http://statistics.data.gov.uk/id/local-authority/12UE,Huntingdonshire District Council,200673,RENT CONNECT RENT CONNECT,9490,17/12/2018,RC-HDC049,Dec-18,03/01/2019,0,720,720,HOS9,,Homelessness,B&B Accommodation,64401
http://statistics.data.gov.uk/id/local-authority/12UE,Huntingdonshire District Council,200673,RENT CONNECT RENT CONNECT,9490,17/12/2018,RC-HDC049,Dec-18,03/01/2019,0,720,720,HOS7,,Homelessness,B&B Accommodation,64401
http://statistics.data.gov.uk/id/local-authority/12UE,Huntingdonshire District Council,200673,RENT CONNECT RENT CONNECT,9490,17/12/2018,RC-HDC049,Dec-18,03/01/2019,0,608,608,,,Homelessness,B&B Accommodation,64401
http://statistics.data.gov.uk/id/local-authority/12UE,Huntingdonshire District Council,200673,RENT CONNECT RENT CONNECT,9490,17/12/2018,RC-HDC049,Dec-18,03/01/2019,0,608,608,HOS7,,Homelessness,B&B Accommodation,64401
http://statistics.data.gov.uk/id/local-authority/12UE,Huntingdonshire District Council,200673,RENT CONNECT RENT CONNECT,9490,17/12/2018,RC-HDC049,Dec-18,03/01/2019,0,720,720,HOS7,,Homelessness,B&B Accommodation,64401
http://statistics.data.gov.uk/id/local-authority/12UE,Huntingdonshire District Council,200673,RENT CONNECT RENT CONNECT,9490,17/12/2018,RC-HDC049,Dec-18,03/01/2019,0,494,494,HOS7,,Homelessness,B&B Accommodation,64401
http://statistics.data.gov.uk/id/local-authority/12UE,Huntingdonshire District Council,200673,RENT CONNECT RENT CONNECT,9490,17/12/2018,RC-HDC049,Dec-18,03/01/2019,0,720,720,HOS7,,Homelessness,B&B Accommodation,64401
http://statistics.data.gov.uk/id/local-authority/12UE,Huntingdonshire District Council,200673,RENT CONNECT RENT CONNECT,9490,17/12/2018,RC-HDC049,Dec-18,03/01/2019,0,720,720,HOS3,,Homelessness,B&B Accommodation,64401
http://statistics.data.gov.uk/id/local-authority/12UE,Huntingdonshire District Council,200673,RENT CONNECT RENT CONNECT,9490,17/12/2018,RC-HDC049,Dec-18,03/01/2019,0,135,135,HOS4,,Homelessness,B&B Accommodation,64401
http://statistics.data.gov.uk/id/local-authority/12UE,Huntingdonshire District Council,200673,RENT CONNECT RENT CONNECT,9490,17/12/2018,RC-HDC049,Dec-18,03/01/2019,0,608,608,HOS7,,Homelessness,B&B Accommodation,64401
http://statistics.data.gov.uk/id/local-authority/12UE,Huntingdonshire District Council,200673,RENT CONNECT RENT CONNECT,9490,17/12/2018,RC-HDC049,Dec-18,03/01/2019,0,560,560,HOS7,,Homelessness,B&B Accommodation,64401
http://statistics.data.gov.uk/id/local-authority/12UE,Huntingdonshire District Council,200673,RENT CONNECT RENT CONNECT,9490,17/12/2018,RC-HDC049,Dec-18,03/01/2019,0,608,608,HOS7,,Homelessness,B&B Accommodation,64401
http://statistics.data.gov.uk/id/local-authority/12UE,Huntingdonshire District Council,200673,RENT CONNECT RENT CONNECT,9490,17/12/2018,RC-HDC049,Dec-18,03/01/2019,0,704,704,HOS7,,Homelessness,B&B Accommodation,64401
http://statistics.data.gov.uk/id/local-authority/12UE,Huntingdonshire District Council,200673,RENT CONNECT RENT CONNECT,9490,17/12/2018,RC-HDC049,Dec-18,03/01/2019,0,720,720,HOS7,,Homelessness,B&B Accommodation,64401
http://statistics.data.gov.uk/id/local-authority/12UE,Huntingdonshire District Council,200673,RENT CONNECT RENT CONNECT,9490,17/12/2018,RC-HDC049,Dec-18,03/01/2019,0,720,720,HOS7,,Homelessness,B&B Accommodation,64401
http://statistics.data.gov.uk/id/local-authority/12UE,Huntingdonshire District Council,200673,RENT CONNECT RENT CONNECT,9490,17/12/2018,RC-HDC049,Dec-18,03/01/2019,0,720,720,HOS7,,Homelessness,B&B Accommodation,64401
http://statistics.data.gov.uk/id/local-authority/12UE,Huntingdonshire District Council,200673,RENT CONNECT RENT CONNECT,9490,17/12/2018,RC-HDC049,Dec-18,03/01/2019,0,450,450,HOS7,,Homelessness,B&B Accommodation,64401
http://statistics.data.gov.uk/id/local-authority/12UE,Huntingdonshire District Council,200022,ADAMS AUTOS ADAMS AUTOS,9491,01/11/2018,INV-1991,TAXI LICENCING,03/01/2019,0,"3,215.00","3,215.00",,,Ph & Hc Vechicles,Vehicle Inspection,60920
http://statistics.data.gov.uk/id/local-authority/12UE,Huntingdonshire District Council,200225,DACLA PROPERTY SERVICES DACLA PROPERTY SERVICES,9492,19/12/2018,66,EASTFIELD HOUSE,03/01/2019,0,740.98,740.98,HOS7,,Eastfield House,Decoration,60204
http://statistics.data.gov.uk/id/local-authority/12UE,Huntingdonshire District Council,200614,PHOENIX SOFTWARE LTD PHOENIX SOFTWARE LTD,9507,31/10/2018,OP/I829667,TREND MICRO PROFESSIONAL SERVICES,03/01/2019,"2,980.00","14,900.00","17,880.00",HOS4,,Council Anywhere Holding Acc,Consultancy Fees,62400
http://statistics.data.gov.uk/id/local-authority/12UE,Huntingdonshire District Council,200393,HUNTS FORUM OF VOLUNTARY ORGANISATIONS HUNTS FORUM OF VOLUNTARY ORGANISATIONS,9529,09/10/2018,6476,FIRE SYSTEM MAINTENANCE,03/01/2019,0,388.88,388.88,,,Commercial Properties,Maintenance - Building,60201
http://statistics.data.gov.uk/id/local-authority/12UE,Huntingdonshire District Council,200302,FOCUS CONSULTANTS 2010 LLP FOCUS CONSULTANTS 2010 LLP,9531,01/12/2018,3663,ARCHITECTURAL SERVICES,03/01/2019,390,"1,950.00","2,340.00",HOS4,,Hinchingbrooke Park Management,Consultancy Fees,62400
http://statistics.data.gov.uk/id/local-authority/12UE,Huntingdonshire District Council,0,Alphaprint,9532,07/11/2018,14011,CHRISTMAS HANGERS,03/01/2019,599.2,"2,996.00","3,595.20",,,Printing,"Maintenance - Equipment, Furniture And Materials",61702
http://statistics.data.gov.uk/id/local-authority/12UE,Huntingdonshire District Council,200614,PHOENIX SOFTWARE LTD PHOENIX SOFTWARE LTD,9533,21/09/2018,OP/I827384,PO003380,03/01/2019,"13,782.61","68,913.02","82,695.63",HOS4,,IMD Shared Service,Ict Software,64071
http://statistics.data.gov.uk/id/local-authority/12UE,Huntingdonshire District Council,200614,PHOENIX SOFTWARE LTD PHOENIX SOFTWARE LTD,9534,11/10/2018,OP/C028397,CANCELS INVOICE OP/I827384,03/01/2019,"-13,782.61","-68,913.02","-82,695.63",,,IMD Shared Service,Ict Software,64071
http://statistics.data.gov.uk/id/local-authority/12UE,Huntingdonshire District Council,200471,LACONS LACONS,9546,14/12/2018,760157,ONE LEISURE ST IVES,10/01/2019,3.35,16.73,20.08,,,OLSIO - Hospitality,Gas Cylinders,61711
http://statistics.data.gov.uk/id/local-authority/12UE,Huntingdonshire District Council,200471,LACONS LACONS,9546,14/12/2018,760157,ONE LEISURE ST IVES,10/01/2019,70.6,353,423.6,HOS7,,OLSIO - Hospitality,Bar Provisions,61905
http://statistics.data.gov.uk/id/local-authority/12UE,Huntingdonshire District Council,200108,BLM BLM,9549,11/12/2018,V2453358/P0001407,REDACTED,03/01/2019,0,"2,630.53","2,630.53",,,VAT,VAT Input Tax,11727
http://statistics.data.gov.uk/id/local-authority/12UE,Huntingdonshire District Council,200550,MORGAN HUNT PUBLIC UK LTD MORGAN HUNT PUBLIC UK LTD,9550,23/12/2018,1090407,REDACTED,17/01/2019,165.89,829.43,995.32,,,Benefits Management,Agency Staff,60011
http://statistics.data.gov.uk/id/local-authority/12UE,Huntingdonshire District Council,200390,HUNTINGDON TIMBER SUPPLIES HUNTINGDON TIMBER SUPPLIES,9552,27/12/2018,202724,PAXTON PITS,24/01/2019,51.63,258.16,309.79,HOS4,,Holt Island,Materials,61709
http://statistics.data.gov.uk/id/local-authority/12UE,Huntingdonshire District Council,201479,REDACTED,9559,19/12/2018,124822,REDACTED,10/01/2019,300,"1,500.00","1,800.00",,,Development Management,Consultancy Fees,62400
http://statistics.data.gov.uk/id/local-authority/12UE,Huntingdonshire District Council,200072,B & H DIGITAL LTD B & H DIGITAL LTD,9574,18/12/2018,30608,PRINTING,10/01/2019,0,"1,604.99","1,604.99",HOS4,,Printing,"Maintenance - Equipment, Furniture And Materials",61702
http://statistics.data.gov.uk/id/local-authority/12UE,Huntingdonshire District Council,200072,B & H DIGITAL LTD B & H DIGITAL LTD,9574,18/12/2018,30608,PRINTING,10/01/2019,322.59,"1,612.94","1,935.53",HOS1,,Printing,"Maintenance - Equipment, Furniture And Materials",61702
http://statistics.data.gov.uk/id/local-authority/12UE,Huntingdonshire District Council,200420,INTERACTION RECRUITMENT PLC INTERACTION RECRUITMENT PLC,9575,23/12/2018,INV1928391,REDACTED,17/01/2019,111.8,558.98,670.78,,,Document Centre,Agency Staff,60011
http://statistics.data.gov.uk/id/local-authority/12UE,Huntingdonshire District Council,200420,INTERACTION RECRUITMENT PLC INTERACTION RECRUITMENT PLC,9576,16/12/2018,INV1926648,REDACTED,10/01/2019,122.83,614.14,736.97,HOS3,,Document Centre,Agency Staff,60011
http://statistics.data.gov.uk/id/local-authority/12UE,Huntingdonshire District Council,200613,PETERBOROUGH CITY COUNCIL PETERBOROUGH CITY COUNCIL,9577,19/12/2018,146383,PARTNERSHIP EXTERNAL SUPPORT,10/01/2019,642.6,"3,213.00","3,855.60",HOS1,,Domestic Waste Collection,Legal Fees,63200
http://statistics.data.gov.uk/id/local-authority/12UE,Huntingdonshire District Council,200149,CAMBRIDGE CITY COUNCIL CAMBRIDGE CITY COUNCIL,9585,28/12/2018,12019756,LEGAL SHARED SERVICE QTR END SEPT 2018,24/01/2019,"11,049.00","55,245.00","66,294.00",,,Legal,Client Contracts,62404
http://statistics.data.gov.uk/id/local-authority/12UE,Huntingdonshire District Council,200968,NORTHGATE PUBLIC SERVICES UK LTD,9594,20/12/2018,91415348,PERPETUAL LICENCE FOR NPS NHRB,17/01/2019,"4,000.00","20,000.00","24,000.00",,,ICT Capital Projects (Interim),Ict Software,64071
http://statistics.data.gov.uk/id/local-authority/12UE,Huntingdonshire District Council,200968,NORTHGATE PUBLIC SERVICES UK LTD,9595,20/12/2018,91415347,NPS SOFTWARE,17/01/2019,"7,499.82","37,499.12","44,998.94",,,HDC Recharge Invoices,Ict Software,64071
http://statistics.data.gov.uk/id/local-authority/12UE,Huntingdonshire District Council,200968,NORTHGATE PUBLIC SERVICES UK LTD,9595,20/12/2018,91415347,NPS SOFTWARE,17/01/2019,"1,188.87","5,944.33","7,133.20",,,HDC Recharge Invoices,Ict Software,64071
http://statistics.data.gov.uk/id/local-authority/12UE,Huntingdonshire District Council,200903,CONNECTED-IT BUSINESS SERVICES LTD,9597,11/10/2018,INV-1421,6 X FELLOWES PRIVACY FILTER,03/01/2019,64.8,324,388.8,,,HDC Recoverable,Ict Hardware,64070
http://statistics.data.gov.uk/id/local-authority/12UE,Huntingdonshire District Council,200210,COMPUTERSHARE VOUCHERS LTD COMPUTERSHARE VOUCHERS LTD,9600,28/12/2018,C-0002831410,TAX FREE VOUCHERS,03/01/2019,0,"5,169.41","5,169.41",,,Payroll Services,Occupational Health,60111
http://statistics.data.gov.uk/id/local-authority/12UE,Huntingdonshire District Council,200210,COMPUTERSHARE VOUCHERS LTD COMPUTERSHARE VOUCHERS LTD,9600,28/12/2018,C-0002831410,TAX FREE VOUCHERS,03/01/2019,36.19,180.93,217.12,,,Child Care Vouchers - Payroll,Deductions Paid To Third Party,23014
http://statistics.data.gov.uk/id/local-authority/12UE,Huntingdonshire District Council,200913,WAVE  ANGLIAN WATER BUSINESS,9601,21/12/2018,9071865048,BARFORD ROAD ST NEOTS,17/01/2019,0,"2,074.82","2,074.82",,,OLSN - Swimming,Water And Sewerage,60302
http://statistics.data.gov.uk/id/local-authority/12UE,Huntingdonshire District Council,200130,BROOKES BROOKES,9603,20/12/2018,102090,CATERING SERVICES 05-20/12/18,03/01/2019,0,524.6,524.6,,,Pathfinder House,Catering Services,61902
http://statistics.data.gov.uk/id/local-authority/12UE,Huntingdonshire District Council,200302,FOCUS CONSULTANTS 2010 LLP FOCUS CONSULTANTS 2010 LLP,9604,01/12/2018,3656,REFURB & REMODELLING RECEPTION,03/01/2019,50,250,300,HOS4,,Customer Service Centres,Consultancy Fees,62400
http://statistics.data.gov.uk/id/local-authority/12UE,Huntingdonshire District Council,200913,WAVE  ANGLIAN WATER BUSINESS,9606,16/10/2018,9069811754,ONE LEISURE ST IVES,03/01/2019,0,"5,507.93","5,507.93",,,OLSIO - Site & Centre Management,Water And Sewerage,60302
http://statistics.data.gov.uk/id/local-authority/12UE,Huntingdonshire District Council,200826,VISION GELPACK LIMITED VISION GELPACK LIMITED,9607,09/11/2018,SINV-001230,REFUSE CONTAINERS,03/01/2019,20,100,120,,,Trade Refuse,Refuse Containers/Litter Bins,61200
http://statistics.data.gov.uk/id/local-authority/12UE,Huntingdonshire District Council,200826,VISION GELPACK LIMITED VISION GELPACK LIMITED,9607,09/11/2018,SINV-001230,REFUSE CONTAINERS,03/01/2019,137.26,686.32,823.58,,,Trade Refuse,Refuse Containers/Litter Bins,61200
http://statistics.data.gov.uk/id/local-authority/12UE,Huntingdonshire District Council,200373,HI-SPEC FACILITIES SERVICES PLC HI-SPEC FACILITIES SERVICES PLC,9609,31/10/2018,36626,CLEANING SERVICES - OCT 2018,03/01/2019,656.16,"3,280.80","3,936.96",HOS4,,Pathfinder House,Cleaning Services,60501
http://statistics.data.gov.uk/id/local-authority/12UE,Huntingdonshire District Council,200373,HI-SPEC FACILITIES SERVICES PLC HI-SPEC FACILITIES SERVICES PLC,9609,31/10/2018,36626,CLEANING SERVICES - OCT 2018,03/01/2019,234.34,"1,171.71","1,406.05",HOS4,,Eastfield House,Cleaning Services,60501
http://statistics.data.gov.uk/id/local-authority/12UE,Huntingdonshire District Council,200373,HI-SPEC FACILITIES SERVICES PLC HI-SPEC FACILITIES SERVICES PLC,9609,31/10/2018,36626,CLEANING SERVICES - OCT 2018,03/01/2019,131.23,656.16,787.39,HOS4,,OLH - Site & Centre Management,Cleaning Services,60501
http://statistics.data.gov.uk/id/local-authority/12UE,Huntingdonshire District Council,200373,HI-SPEC FACILITIES SERVICES PLC HI-SPEC FACILITIES SERVICES PLC,9609,31/10/2018,36626,CLEANING SERVICES - OCT 2018,03/01/2019,459.32,"2,296.56","2,755.88",,,OLSI - Site & Centre Management,Cleaning Services,60501
http://statistics.data.gov.uk/id/local-authority/12UE,Huntingdonshire District Council,200373,HI-SPEC FACILITIES SERVICES PLC HI-SPEC FACILITIES SERVICES PLC,9609,31/10/2018,36626,CLEANING SERVICES - OCT 2018,03/01/2019,332.76,"1,663.83","1,996.59",HOS4,,OLSIO - Site & Centre Management,Cleaning Services,60501
http://statistics.data.gov.uk/id/local-authority/12UE,Huntingdonshire District Council,200373,HI-SPEC FACILITIES SERVICES PLC HI-SPEC FACILITIES SERVICES PLC,9609,31/10/2018,36626,CLEANING SERVICES - OCT 2018,03/01/2019,356.2,"1,781.00","2,137.20",,,OLSN - Site & Centre Management,Cleaning Services,60501
http://statistics.data.gov.uk/id/local-authority/12UE,Huntingdonshire District Council,200373,HI-SPEC FACILITIES SERVICES PLC HI-SPEC FACILITIES SERVICES PLC,9609,31/10/2018,36626,CLEANING SERVICES - OCT 2018,03/01/2019,103.11,515.56,618.67,HOS4,,OLR - Site & Centre Management,Cleaning Services,60501
http://statistics.data.gov.uk/id/local-authority/12UE,Huntingdonshire District Council,200373,HI-SPEC FACILITIES SERVICES PLC HI-SPEC FACILITIES SERVICES PLC,9609,31/10/2018,36626,CLEANING SERVICES - OCT 2018,03/01/2019,107.68,538.39,646.07,HOS8,,OLS - Site & Centre Management,Cleaning Services,60501
http://statistics.data.gov.uk/id/local-authority/12UE,Huntingdonshire District Council,200373,HI-SPEC FACILITIES SERVICES PLC HI-SPEC FACILITIES SERVICES PLC,9612,30/11/2018,36880,CLEANING SERVICES NOVEMBER 2018,03/01/2019,656.16,"3,280.80","3,936.96",HOS4,,Pathfinder House,Cleaning Services,60501
http://statistics.data.gov.uk/id/local-authority/12UE,Huntingdonshire District Council,200373,HI-SPEC FACILITIES SERVICES PLC HI-SPEC FACILITIES SERVICES PLC,9612,30/11/2018,36880,CLEANING SERVICES NOVEMBER 2018,03/01/2019,234.34,"1,171.71","1,406.05",HOS3,,Eastfield House,Cleaning Services,60501
http://statistics.data.gov.uk/id/local-authority/12UE,Huntingdonshire District Council,200373,HI-SPEC FACILITIES SERVICES PLC HI-SPEC FACILITIES SERVICES PLC,9612,30/11/2018,36880,CLEANING SERVICES NOVEMBER 2018,03/01/2019,131.23,656.16,787.39,HOS4,,OLH - Site & Centre Management,Cleaning Services,60501
http://statistics.data.gov.uk/id/local-authority/12UE,Huntingdonshire District Council,200373,HI-SPEC FACILITIES SERVICES PLC HI-SPEC FACILITIES SERVICES PLC,9612,30/11/2018,36880,CLEANING SERVICES NOVEMBER 2018,03/01/2019,459.32,"2,296.56","2,755.88",HOS4,,OLSI - Site & Centre Management,Cleaning Services,60501
http://statistics.data.gov.uk/id/local-authority/12UE,Huntingdonshire District Council,200373,HI-SPEC FACILITIES SERVICES PLC HI-SPEC FACILITIES SERVICES PLC,9612,30/11/2018,36880,CLEANING SERVICES NOVEMBER 2018,03/01/2019,332.76,"1,663.83","1,996.59",HOS9,,OLSIO - Site & Centre Management,Cleaning Services,60501
http://statistics.data.gov.uk/id/local-authority/12UE,Huntingdonshire District Council,200373,HI-SPEC FACILITIES SERVICES PLC HI-SPEC FACILITIES SERVICES PLC,9612,30/11/2018,36880,CLEANING SERVICES NOVEMBER 2018,03/01/2019,356.2,"1,781.00","2,137.20",,,OLSN - Site & Centre Management,Cleaning Services,60501
http://statistics.data.gov.uk/id/local-authority/12UE,Huntingdonshire District Council,200373,HI-SPEC FACILITIES SERVICES PLC HI-SPEC FACILITIES SERVICES PLC,9612,30/11/2018,36880,CLEANING SERVICES NOVEMBER 2018,03/01/2019,103.11,515.56,618.67,HOS99,,OLR - Site & Centre Management,Cleaning Services,60501
http://statistics.data.gov.uk/id/local-authority/12UE,Huntingdonshire District Council,200373,HI-SPEC FACILITIES SERVICES PLC HI-SPEC FACILITIES SERVICES PLC,9612,30/11/2018,36880,CLEANING SERVICES NOVEMBER 2018,03/01/2019,107.68,538.39,646.07,,,OLS - Site & Centre Management,Cleaning Services,60501
http://statistics.data.gov.uk/id/local-authority/12UE,Huntingdonshire District Council,201453,E RAND AND SONS,9617,22/11/2018,46823,REDACTED,03/01/2019,286.62,"1,433.08","1,719.70",,,Recycling Collections,Vehicle Repairs And Maintenance,60904
http://statistics.data.gov.uk/id/local-authority/12UE,Huntingdonshire District Council,201137,REDACTED,9623,02/01/2019,PRF020119,COUNTRY PARK CAFE SUPPLIES,03/01/2019,0,135.13,135.13,,,Hinchingbrooke Park Cafe,Catering Supplies,61900
http://statistics.data.gov.uk/id/local-authority/12UE,Huntingdonshire District Council,201137,REDACTED,9623,02/01/2019,PRF020119,COUNTRY PARK CAFE SUPPLIES,03/01/2019,0,8.4,8.4,HOS4,,Hinchingbrooke Park Management,Cleaning Materials,61300
http://statistics.data.gov.uk/id/local-authority/12UE,Huntingdonshire District Council,201137,REDACTED,9623,02/01/2019,PRF020119,COUNTRY PARK CAFE SUPPLIES,03/01/2019,4,20,24,HOS6,,Hinchingbrooke Park Management,Materials,61709
http://statistics.data.gov.uk/id/local-authority/12UE,Huntingdonshire District Council,201137,REDACTED,9623,02/01/2019,PRF020119,COUNTRY PARK CAFE SUPPLIES,03/01/2019,0.43,2.17,2.6,HOS4,,H'Brooke Countryside Centre,Events,62900
http://statistics.data.gov.uk/id/local-authority/12UE,Huntingdonshire District Council,201137,REDACTED,9623,02/01/2019,PRF020119,COUNTRY PARK CAFE SUPPLIES,03/01/2019,0,46.17,46.17,,,Holt Island,Materials,61709
http://statistics.data.gov.uk/id/local-authority/12UE,Huntingdonshire District Council,201137,REDACTED,9623,02/01/2019,PRF020119,COUNTRY PARK CAFE SUPPLIES,03/01/2019,0,37.55,37.55,,,Hinchingbrooke Park Cafe,Events,62900
http://statistics.data.gov.uk/id/local-authority/12UE,Huntingdonshire District Council,201137,REDACTED,9623,02/01/2019,PRF020119,COUNTRY PARK CAFE SUPPLIES,03/01/2019,0.58,2.92,3.5,,,Hinchingbrooke Park Cafe,Events,62900
http://statistics.data.gov.uk/id/local-authority/12UE,Huntingdonshire District Council,200053,APRITE GB T/A WEST WAY BIRMINGHAM APRITE GB T/A WEST WAY BIRMINGHAM,9624,03/12/2018,120348,REDACTED,03/01/2019,"4,302.67","21,513.34","25,816.01",,,Vehicles & Plant,"Acquisition - Vehicles, Plant And Equipment",60801
http://statistics.data.gov.uk/id/local-authority/12UE,Huntingdonshire District Council,200053,APRITE GB T/A WEST WAY BIRMINGHAM APRITE GB T/A WEST WAY BIRMINGHAM,9624,03/12/2018,120348,REDACTED,03/01/2019,0,305,305,,,Vehicles & Plant,"Acquisition - Vehicles, Plant And Equipment",60801
http://statistics.data.gov.uk/id/local-authority/12UE,Huntingdonshire District Council,201138,BORNEY UK LTD,9641,18/10/2018,45712,CLIPS,03/01/2019,330.14,"1,650.72","1,980.86",HOS4,,Sainsbury,Signs,60299
http://statistics.data.gov.uk/id/local-authority/12UE,Huntingdonshire District Council,201138,BORNEY UK LTD,9641,18/10/2018,45712,CLIPS,03/01/2019,16.6,83,99.6,HOS4,,Sainsbury,Signs,60299
http://statistics.data.gov.uk/id/local-authority/12UE,Huntingdonshire District Council,201138,BORNEY UK LTD,9641,18/10/2018,45712,CLIPS,03/01/2019,13.6,68,81.6,HOS4,,Sainsbury,Signs,60299
http://statistics.data.gov.uk/id/local-authority/12UE,Huntingdonshire District Council,201138,BORNEY UK LTD,9641,18/10/2018,45712,CLIPS,03/01/2019,16.2,81,97.2,HOS4,,Sainsbury,Signs,60299
http://statistics.data.gov.uk/id/local-authority/12UE,Huntingdonshire District Council,201138,BORNEY UK LTD,9641,18/10/2018,45712,CLIPS,03/01/2019,15.6,78,93.6,HOS4,,Sainsbury,Signs,60299
http://statistics.data.gov.uk/id/local-authority/12UE,Huntingdonshire District Council,201138,BORNEY UK LTD,9641,18/10/2018,45712,CLIPS,03/01/2019,169,845,"1,014.00",HOS4,,Sainsbury,Signs,60299
http://statistics.data.gov.uk/id/local-authority/12UE,Huntingdonshire District Council,200481,LAYTONDINGS ENTERTAINMENT LTD LAYTONDINGS ENTERTAINMENT LTD,9646,02/01/2019,47644,ONE LEISURE ST IVES,24/01/2019,0,320,320,,,OLSI - Burgess Hall,Entertainments,64079
http://statistics.data.gov.uk/id/local-authority/12UE,Huntingdonshire District Council,200918,1ST CHOICE RECRUITMENT,9647,08/12/2018,4000006972,REDACTED,03/01/2019,77.2,386,463.2,HOS10,,Operations Back Office,Agency Staff,60011
http://statistics.data.gov.uk/id/local-authority/12UE,Huntingdonshire District Council,200918,1ST CHOICE RECRUITMENT,9649,22/12/2018,4000007034,REDACTED,17/01/2019,86.22,431.08,517.3,HOS3,,Operations Back Office,Agency Staff,60011
http://statistics.data.gov.uk/id/local-authority/12UE,Huntingdonshire District Council,200918,1ST CHOICE RECRUITMENT,9650,15/12/2018,4000007004,REDACTED,10/01/2019,87.91,439.53,527.44,,,Operations Back Office,Agency Staff,60011
http://statistics.data.gov.uk/id/local-authority/12UE,Huntingdonshire District Council,200537,MEYER SCOTT RECRUITMENT LIMITED MEYER SCOTT RECRUITMENT LIMITED,9657,24/12/2018,38075,REDACTED,17/01/2019,94.64,473.2,567.84,HOS3,,Finance,Agency Staff,60011
http://statistics.data.gov.uk/id/local-authority/12UE,Huntingdonshire District Council,200297,FIRST RECRUITMENT GROUP LTD FIRST RECRUITMENT GROUP LTD,9658,19/12/2018,332952,REDACTED,10/01/2019,73.91,369.53,443.44,,,Finance,Agency Staff,60011
http://statistics.data.gov.uk/id/local-authority/12UE,Huntingdonshire District Council,200297,FIRST RECRUITMENT GROUP LTD FIRST RECRUITMENT GROUP LTD,9659,19/12/2018,332953,REDACTED,10/01/2019,94.65,473.23,567.88,HOS3,,Finance,Agency Staff,60011
http://statistics.data.gov.uk/id/local-authority/12UE,Huntingdonshire District Council,201054,CAMBRIDGESHIRE PENSION FUND,9660,19/12/2018,4.23E+11,UNFUNDED PENSIONS NOV 18,10/01/2019,0,"14,682.14","14,682.14",HOS4,,Non Distributed Costs,Pension Increase Act Payments,60101
http://statistics.data.gov.uk/id/local-authority/12UE,Huntingdonshire District Council,201445,CMS SUPATRAK LTD,9665,29/11/2018,68281,DRIVER ECOCOACHING,10/01/2019,179.4,897,"1,076.40",,,Domestic Waste Collection,Staff Development And Training,60115
http://statistics.data.gov.uk/id/local-authority/12UE,Huntingdonshire District Council,200237,DIGITAL ID LIMITED DIGITAL ID LIMITED,9679,20/12/2018,303670,PAXTON NET 2 PROXIMITY ISO CARDS,17/01/2019,64.12,320.61,384.73,,,Printing,Materials,61709
http://statistics.data.gov.uk/id/local-authority/12UE,Huntingdonshire District Council,201147,STANAIR INDUSTRIAL DOOR SERVICES LTD,9680,10/12/2018,30697,MULTI STOREY CAR PARK HUNTINGDON,10/01/2019,576,"2,880.00","3,456.00",HOS3,,Huntingdon Multi Storey,Maintenance - Building,60201
http://statistics.data.gov.uk/id/local-authority/12UE,Huntingdonshire District Council,200072,B & H DIGITAL LTD B & H DIGITAL LTD,9681,31/12/2018,30656,PRINTING,24/01/2019,0,342.37,342.37,HOS3,,Printing,"Maintenance - Equipment, Furniture And Materials",61702
http://statistics.data.gov.uk/id/local-authority/12UE,Huntingdonshire District Council,200072,B & H DIGITAL LTD B & H DIGITAL LTD,9681,31/12/2018,30656,PRINTING,24/01/2019,100.95,504.76,605.71,HOS3,,Printing,"Maintenance - Equipment, Furniture And Materials",61702
http://statistics.data.gov.uk/id/local-authority/12UE,Huntingdonshire District Council,200698,ROYAL MAIL GROUP LTD ROYAL MAIL GROUP LTD,9683,27/12/2018,9057942648,POLL CARD MAILINGS,24/01/2019,71.92,359.61,431.53,,,Benefits Management,Postage And Courier Services,64100
http://statistics.data.gov.uk/id/local-authority/12UE,Huntingdonshire District Council,200698,ROYAL MAIL GROUP LTD ROYAL MAIL GROUP LTD,9683,27/12/2018,9057942648,POLL CARD MAILINGS,24/01/2019,124.12,620.61,744.73,,,Electoral Registration,Postage And Courier Services,64100
http://statistics.data.gov.uk/id/local-authority/12UE,Huntingdonshire District Council,200698,ROYAL MAIL GROUP LTD ROYAL MAIL GROUP LTD,9683,27/12/2018,9057942648,POLL CARD MAILINGS,24/01/2019,235.43,"1,177.11","1,412.54",HOS3,,Post Handling,Postage And Courier Services,64100
http://statistics.data.gov.uk/id/local-authority/12UE,Huntingdonshire District Council,200698,ROYAL MAIL GROUP LTD ROYAL MAIL GROUP LTD,9684,17/12/2018,9057900428,POLL CARD MAILINGS,10/01/2019,144.49,722.43,866.92,,,Benefits Management,Postage And Courier Services,64100
http://statistics.data.gov.uk/id/local-authority/12UE,Huntingdonshire District Council,200698,ROYAL MAIL GROUP LTD ROYAL MAIL GROUP LTD,9684,17/12/2018,9057900428,POLL CARD MAILINGS,10/01/2019,6.73,33.68,40.41,,,Electoral Registration,Postage And Courier Services,64100
http://statistics.data.gov.uk/id/local-authority/12UE,Huntingdonshire District Council,200698,ROYAL MAIL GROUP LTD ROYAL MAIL GROUP LTD,9684,17/12/2018,9057900428,POLL CARD MAILINGS,10/01/2019,249.77,"1,248.85","1,498.62",,,Post Handling,Postage And Courier Services,64100
http://statistics.data.gov.uk/id/local-authority/12UE,Huntingdonshire District Council,200420,INTERACTION RECRUITMENT PLC INTERACTION RECRUITMENT PLC,9685,30/12/2018,INV1929608,REDACTED,24/01/2019,63.25,316.27,379.52,,,Document Centre,Agency Staff,60011
http://statistics.data.gov.uk/id/local-authority/12UE,Huntingdonshire District Council,200737,SPORTMAX SPORTMAX,9691,14/12/2018,107545,ONE LEISURE ST IVES,10/01/2019,61.25,306.25,367.5,,,OLSI - Site & Centre Management,Goods For Resale,61400
http://statistics.data.gov.uk/id/local-authority/12UE,Huntingdonshire District Council,200737,SPORTMAX SPORTMAX,9691,14/12/2018,107545,ONE LEISURE ST IVES,10/01/2019,0,108.2,108.2,,,OLSI - Site & Centre Management,Goods For Resale,61400
http://statistics.data.gov.uk/id/local-authority/12UE,Huntingdonshire District Council,200198,CLANPRESS KING'S LYNN LTD CLANPRESS KING'S LYNN LTD,9703,08/11/2018,43002,FLYERS/POSTERS,10/01/2019,0,192,192,HOS4,,OLSI - Burgess Hall,Printing,62001
http://statistics.data.gov.uk/id/local-authority/12UE,Huntingdonshire District Council,200198,CLANPRESS KING'S LYNN LTD CLANPRESS KING'S LYNN LTD,9703,08/11/2018,43002,FLYERS/POSTERS,10/01/2019,0,129.6,129.6,,,OLSI - Burgess Hall,Printing,62001
http://statistics.data.gov.uk/id/local-authority/12UE,Huntingdonshire District Council,200198,CLANPRESS KING'S LYNN LTD CLANPRESS KING'S LYNN LTD,9703,08/11/2018,43002,FLYERS/POSTERS,10/01/2019,0,144,144,,,OLSI - Burgess Hall,Printing,62001
http://statistics.data.gov.uk/id/local-authority/12UE,Huntingdonshire District Council,200198,CLANPRESS KING'S LYNN LTD CLANPRESS KING'S LYNN LTD,9703,08/11/2018,43002,FLYERS/POSTERS,10/01/2019,0,129.6,129.6,,,OLSI - Burgess Hall,Printing,62001
http://statistics.data.gov.uk/id/local-authority/12UE,Huntingdonshire District Council,200198,CLANPRESS KING'S LYNN LTD CLANPRESS KING'S LYNN LTD,9703,08/11/2018,43002,FLYERS/POSTERS,10/01/2019,0,172.8,172.8,,,OLSI - Burgess Hall,Printing,62001
http://statistics.data.gov.uk/id/local-authority/12UE,Huntingdonshire District Council,200164,CAMPBELL ASSOCIATES CAMPBELL ASSOCIATES,9706,20/12/2018,21796,TRADE IN/PART EX EQUIPMENT,31/01/2019,"3,150.00","15,750.00","18,900.00",HOS3,,Noise Monitoring Equipment,Equipment,61713
http://statistics.data.gov.uk/id/local-authority/12UE,Huntingdonshire District Council,200164,CAMPBELL ASSOCIATES CAMPBELL ASSOCIATES,9706,20/12/2018,21796,TRADE IN/PART EX EQUIPMENT,31/01/2019,0,0,0,HOS3,,Noise Monitoring Equipment,Equipment,61713
http://statistics.data.gov.uk/id/local-authority/12UE,Huntingdonshire District Council,200164,CAMPBELL ASSOCIATES CAMPBELL ASSOCIATES,9706,20/12/2018,21796,TRADE IN/PART EX EQUIPMENT,31/01/2019,67.6,338,405.6,HOS7,,Noise Monitoring Equipment,Equipment,61713
http://statistics.data.gov.uk/id/local-authority/12UE,Huntingdonshire District Council,200164,CAMPBELL ASSOCIATES CAMPBELL ASSOCIATES,9706,20/12/2018,21796,TRADE IN/PART EX EQUIPMENT,31/01/2019,303.2,"1,516.00","1,819.20",HOS7,,Noise Monitoring Equipment,Equipment,61713
http://statistics.data.gov.uk/id/local-authority/12UE,Huntingdonshire District Council,200164,CAMPBELL ASSOCIATES CAMPBELL ASSOCIATES,9706,20/12/2018,21796,TRADE IN/PART EX EQUIPMENT,31/01/2019,5,25,30,HOS7,,Noise Monitoring Equipment,Equipment,61713
http://statistics.data.gov.uk/id/local-authority/12UE,Huntingdonshire District Council,200533,SYSTEMAIR LTD MENERGA TECHNICAL SERVICES LTD,9708,12/11/2018,1362821,ONE LEISURE RAMSEY,10/01/2019,544.36,"2,721.82","3,266.18",,,OLR - Site & Centre Management,Maintenance - Building,60201
http://statistics.data.gov.uk/id/local-authority/12UE,Huntingdonshire District Council,200058,ARCHANT HERTS AND CAMBS ARCHANT HERTS AND CAMBS,9712,16/11/2018,82935925,BURGESS HALL EVENTS,10/01/2019,143.38,716.88,860.26,HOS5,,OLSI - Burgess Hall,"Advertising, Publicity And Marketing",62005
http://statistics.data.gov.uk/id/local-authority/12UE,Huntingdonshire District Council,200149,CAMBRIDGE CITY COUNCIL CAMBRIDGE CITY COUNCIL,9715,01/10/2018,12015278,ONE LEISURE ST NEOTS,10/01/2019,62,310,372,,,OL St Neots Pool Building,Planning Fees,62410
http://statistics.data.gov.uk/id/local-authority/12UE,Huntingdonshire District Council,201114,XP RECRUITMENT LTD,9717,24/12/2018,6892,W/E 22/12/18,17/01/2019,185.92,929.6,"1,115.52",HOS1,,Domestic Waste Collection,Agency Staff,60011
http://statistics.data.gov.uk/id/local-authority/12UE,Huntingdonshire District Council,201114,XP RECRUITMENT LTD,9717,24/12/2018,6892,W/E 22/12/18,17/01/2019,185.92,929.6,"1,115.52",HOS4,,Recycling Collections,Agency Staff,60011
http://statistics.data.gov.uk/id/local-authority/12UE,Huntingdonshire District Council,201114,XP RECRUITMENT LTD,9717,24/12/2018,6892,W/E 22/12/18,17/01/2019,185.92,929.6,"1,115.52",HOS7,,Green Waste Collection,Agency Staff,60011
http://statistics.data.gov.uk/id/local-authority/12UE,Huntingdonshire District Council,201114,XP RECRUITMENT LTD,9719,02/01/2019,6926,w/e 29/12/18,24/01/2019,132.8,664,796.8,,,Domestic Waste Collection,Agency Staff,60011
http://statistics.data.gov.uk/id/local-authority/12UE,Huntingdonshire District Council,201114,XP RECRUITMENT LTD,9719,02/01/2019,6926,w/e 29/12/18,24/01/2019,132.8,664,796.8,,,Recycling Collections,Agency Staff,60011
http://statistics.data.gov.uk/id/local-authority/12UE,Huntingdonshire District Council,201114,XP RECRUITMENT LTD,9719,02/01/2019,6926,w/e 29/12/18,24/01/2019,132.8,664,796.8,,,Green Waste Collection,Agency Staff,60011
http://statistics.data.gov.uk/id/local-authority/12UE,Huntingdonshire District Council,200737,SPORTMAX SPORTMAX,9720,17/12/2018,107580,ONE LEISURE ST NEOTS,10/01/2019,65.14,325.7,390.84,HOS3,,OLSN - Site & Centre Management,Goods For Resale,61400
http://statistics.data.gov.uk/id/local-authority/12UE,Huntingdonshire District Council,200737,SPORTMAX SPORTMAX,9720,17/12/2018,107580,ONE LEISURE ST NEOTS,10/01/2019,0,107,107,,,OLSN - Site & Centre Management,Goods For Resale,61400
http://statistics.data.gov.uk/id/local-authority/12UE,Huntingdonshire District Council,200058,ARCHANT HERTS AND CAMBS ARCHANT HERTS AND CAMBS,9722,21/12/2018,82949040,BURGESS HALL EVENTS,17/01/2019,62.4,312,374.4,,,OLSI - Burgess Hall,"Advertising, Publicity And Marketing",62005
http://statistics.data.gov.uk/id/local-authority/12UE,Huntingdonshire District Council,200278,E-ON ENERGY E-ON ENERGY,9727,17/12/2018,H169DA7A03,EASTFIELD HOUSE,10/01/2019,104.81,524.06,628.87,HOS4,,Eastfield House,Gas,60305
http://statistics.data.gov.uk/id/local-authority/12UE,Huntingdonshire District Council,200278,E-ON ENERGY E-ON ENERGY,9728,17/12/2018,H169DA7B42,ST NEOTS SPORTS CENTRE,10/01/2019,54.77,273.87,328.64,,,OLSN - Swimming,Gas,60305
http://statistics.data.gov.uk/id/local-authority/12UE,Huntingdonshire District Council,200278,E-ON ENERGY E-ON ENERGY,9729,17/12/2018,H169DA8377,PATHFINDER HOUSE,10/01/2019,277.78,"1,388.90","1,666.68",HOS3,,Pathfinder House,Gas,60305
http://statistics.data.gov.uk/id/local-authority/12UE,Huntingdonshire District Council,200278,E-ON ENERGY E-ON ENERGY,9730,17/12/2018,H169DA7D47,ST PETERS SWIMMING POOL,10/01/2019,370.16,"1,850.82","2,220.98",,,OLH - Swimming,Gas,60305
http://statistics.data.gov.uk/id/local-authority/12UE,Huntingdonshire District Council,200278,E-ON ENERGY E-ON ENERGY,9731,17/12/2018,H169DA7A9D,SAWTRY SPORTS CENTRE,10/01/2019,231.86,"1,159.28","1,391.14",HOS3,,OLS - Site & Centre Management,Gas,60305
http://statistics.data.gov.uk/id/local-authority/12UE,Huntingdonshire District Council,201011,CENTENNIAL PROPERTY LTD,9733,01/01/2019,CP-HDC050,17-31 DEC 2018,10/01/2019,0,825,825,,,Homelessness,B&B Accommodation,64401
http://statistics.data.gov.uk/id/local-authority/12UE,Huntingdonshire District Council,201011,CENTENNIAL PROPERTY LTD,9733,01/01/2019,CP-HDC050,17-31 DEC 2018,10/01/2019,0,825,825,,,Homelessness,B&B Accommodation,64401
http://statistics.data.gov.uk/id/local-authority/12UE,Huntingdonshire District Council,201011,CENTENNIAL PROPERTY LTD,9733,01/01/2019,CP-HDC050,17-31 DEC 2018,10/01/2019,0,675,675,,,Homelessness,B&B Accommodation,64401
http://statistics.data.gov.uk/id/local-authority/12UE,Huntingdonshire District Council,201011,CENTENNIAL PROPERTY LTD,9733,01/01/2019,CP-HDC050,17-31 DEC 2018,10/01/2019,0,675,675,,,Homelessness,B&B Accommodation,64401
http://statistics.data.gov.uk/id/local-authority/12UE,Huntingdonshire District Council,201011,CENTENNIAL PROPERTY LTD,9733,01/01/2019,CP-HDC050,17-31 DEC 2018,10/01/2019,0,570,570,HOS4,,Homelessness,B&B Accommodation,64401
http://statistics.data.gov.uk/id/local-authority/12UE,Huntingdonshire District Council,201011,CENTENNIAL PROPERTY LTD,9733,01/01/2019,CP-HDC050,17-31 DEC 2018,10/01/2019,0,570,570,,,Homelessness,B&B Accommodation,64401
http://statistics.data.gov.uk/id/local-authority/12UE,Huntingdonshire District Council,201011,CENTENNIAL PROPERTY LTD,9733,01/01/2019,CP-HDC050,17-31 DEC 2018,10/01/2019,0,266,266,HOS3,,Homelessness,B&B Accommodation,64401
http://statistics.data.gov.uk/id/local-authority/12UE,Huntingdonshire District Council,201011,CENTENNIAL PROPERTY LTD,9733,01/01/2019,CP-HDC050,17-31 DEC 2018,10/01/2019,0,675,675,HOS3,,Homelessness,B&B Accommodation,64401
http://statistics.data.gov.uk/id/local-authority/12UE,Huntingdonshire District Council,201011,CENTENNIAL PROPERTY LTD,9733,01/01/2019,CP-HDC050,17-31 DEC 2018,10/01/2019,0,825,825,,,Homelessness,B&B Accommodation,64401
http://statistics.data.gov.uk/id/local-authority/12UE,Huntingdonshire District Council,201011,CENTENNIAL PROPERTY LTD,9733,01/01/2019,CP-HDC050,17-31 DEC 2018,10/01/2019,0,675,675,,,Homelessness,B&B Accommodation,64401
http://statistics.data.gov.uk/id/local-authority/12UE,Huntingdonshire District Council,201011,CENTENNIAL PROPERTY LTD,9733,01/01/2019,CP-HDC050,17-31 DEC 2018,10/01/2019,0,675,675,,,Homelessness,B&B Accommodation,64401
http://statistics.data.gov.uk/id/local-authority/12UE,Huntingdonshire District Council,201011,CENTENNIAL PROPERTY LTD,9733,01/01/2019,CP-HDC050,17-31 DEC 2018,10/01/2019,0,675,675,HOS4,,Homelessness,B&B Accommodation,64401
http://statistics.data.gov.uk/id/local-authority/12UE,Huntingdonshire District Council,201011,CENTENNIAL PROPERTY LTD,9733,01/01/2019,CP-HDC050,17-31 DEC 2018,10/01/2019,0,570,570,HOS3,,Homelessness,B&B Accommodation,64401
http://statistics.data.gov.uk/id/local-authority/12UE,Huntingdonshire District Council,201011,CENTENNIAL PROPERTY LTD,9733,01/01/2019,CP-HDC050,17-31 DEC 2018,10/01/2019,0,750,750,HOS7,,Homelessness,B&B Accommodation,64401
http://statistics.data.gov.uk/id/local-authority/12UE,Huntingdonshire District Council,201011,CENTENNIAL PROPERTY LTD,9733,01/01/2019,CP-HDC050,17-31 DEC 2018,10/01/2019,0,825,825,HOS4,,Homelessness,B&B Accommodation,64401
http://statistics.data.gov.uk/id/local-authority/12UE,Huntingdonshire District Council,201011,CENTENNIAL PROPERTY LTD,9733,01/01/2019,CP-HDC050,17-31 DEC 2018,10/01/2019,0,570,570,HOS9,,Homelessness,B&B Accommodation,64401
http://statistics.data.gov.uk/id/local-authority/12UE,Huntingdonshire District Council,201011,CENTENNIAL PROPERTY LTD,9733,01/01/2019,CP-HDC050,17-31 DEC 2018,10/01/2019,0,570,570,HOS1,,Homelessness,B&B Accommodation,64401
http://statistics.data.gov.uk/id/local-authority/12UE,Huntingdonshire District Council,201011,CENTENNIAL PROPERTY LTD,9733,01/01/2019,CP-HDC050,17-31 DEC 2018,10/01/2019,0,570,570,HOS1,,Homelessness,B&B Accommodation,64401
http://statistics.data.gov.uk/id/local-authority/12UE,Huntingdonshire District Council,201011,CENTENNIAL PROPERTY LTD,9733,01/01/2019,CP-HDC050,17-31 DEC 2018,10/01/2019,0,570,570,,,Homelessness,B&B Accommodation,64401
http://statistics.data.gov.uk/id/local-authority/12UE,Huntingdonshire District Council,201011,CENTENNIAL PROPERTY LTD,9733,01/01/2019,CP-HDC050,17-31 DEC 2018,10/01/2019,0,675,675,,,Homelessness,B&B Accommodation,64401
http://statistics.data.gov.uk/id/local-authority/12UE,Huntingdonshire District Council,201011,CENTENNIAL PROPERTY LTD,9733,01/01/2019,CP-HDC050,17-31 DEC 2018,10/01/2019,0,45,45,,,Homelessness,B&B Accommodation,64401
http://statistics.data.gov.uk/id/local-authority/12UE,Huntingdonshire District Council,201011,CENTENNIAL PROPERTY LTD,9733,01/01/2019,CP-HDC050,17-31 DEC 2018,10/01/2019,0,570,570,,,Homelessness,B&B Accommodation,64401
http://statistics.data.gov.uk/id/local-authority/12UE,Huntingdonshire District Council,201011,CENTENNIAL PROPERTY LTD,9733,01/01/2019,CP-HDC050,17-31 DEC 2018,10/01/2019,0,570,570,,,Homelessness,B&B Accommodation,64401
http://statistics.data.gov.uk/id/local-authority/12UE,Huntingdonshire District Council,201011,CENTENNIAL PROPERTY LTD,9733,01/01/2019,CP-HDC050,17-31 DEC 2018,10/01/2019,0,675,675,HOS4,,Homelessness,B&B Accommodation,64401
http://statistics.data.gov.uk/id/local-authority/12UE,Huntingdonshire District Council,201011,CENTENNIAL PROPERTY LTD,9733,01/01/2019,CP-HDC050,17-31 DEC 2018,10/01/2019,0,570,570,HOS4,,Homelessness,B&B Accommodation,64401
http://statistics.data.gov.uk/id/local-authority/12UE,Huntingdonshire District Council,201011,CENTENNIAL PROPERTY LTD,9733,01/01/2019,CP-HDC050,17-31 DEC 2018,10/01/2019,0,675,675,,,Homelessness,B&B Accommodation,64401
http://statistics.data.gov.uk/id/local-authority/12UE,Huntingdonshire District Council,201011,CENTENNIAL PROPERTY LTD,9733,01/01/2019,CP-HDC050,17-31 DEC 2018,10/01/2019,0,675,675,,,Homelessness,B&B Accommodation,64401
http://statistics.data.gov.uk/id/local-authority/12UE,Huntingdonshire District Council,201011,CENTENNIAL PROPERTY LTD,9733,01/01/2019,CP-HDC050,17-31 DEC 2018,10/01/2019,0,304,304,,,Homelessness,B&B Accommodation,64401
http://statistics.data.gov.uk/id/local-authority/12UE,Huntingdonshire District Council,200719,SHOW & EVENT SECURITY SHOW & EVENT SECURITY,9735,31/12/2018,25334,EVENT 22/12/18,24/01/2019,215.9,"1,079.50","1,295.40",HOS3,,OLSI - Burgess Hall,Agency Staff,60011
http://statistics.data.gov.uk/id/local-authority/12UE,Huntingdonshire District Council,200113,BOOKER CASH AND CARRY BOOKER CASH AND CARRY,9739,22/12/2018,2106946562,ONE LEISURE ST IVES,17/01/2019,18.54,92.71,111.25,HOS7,,OLSI - Burgess Bar,Bar Provisions,61905
http://statistics.data.gov.uk/id/local-authority/12UE,Huntingdonshire District Council,200113,BOOKER CASH AND CARRY BOOKER CASH AND CARRY,9739,22/12/2018,2106946562,ONE LEISURE ST IVES,17/01/2019,1.26,6.28,7.54,HOS7,,OLSI - Burgess Bar,Cleaning Materials,61300
http://statistics.data.gov.uk/id/local-authority/12UE,Huntingdonshire District Council,200113,BOOKER CASH AND CARRY BOOKER CASH AND CARRY,9739,22/12/2018,2106946562,ONE LEISURE ST IVES,17/01/2019,34.4,171.98,206.38,,,OLSI - Burgess Bar,Materials,61709
http://statistics.data.gov.uk/id/local-authority/12UE,Huntingdonshire District Council,200113,BOOKER CASH AND CARRY BOOKER CASH AND CARRY,9739,22/12/2018,2106946562,ONE LEISURE ST IVES,17/01/2019,-0.01,0,-0.01,,,St Ives Enterprise Centre,Over/Under VAT Rounding,68350
http://statistics.data.gov.uk/id/local-authority/12UE,Huntingdonshire District Council,200726,SNACKLINE DIRECT LTD SNACKLINE DIRECT LTD,9741,17/12/2018,100344,ONE LEISURE ST IVES,10/01/2019,9.38,46.9,56.28,,,OLSI - Hospitality,Catering Supplies,61900
http://statistics.data.gov.uk/id/local-authority/12UE,Huntingdonshire District Council,200726,SNACKLINE DIRECT LTD SNACKLINE DIRECT LTD,9741,17/12/2018,100344,ONE LEISURE ST IVES,10/01/2019,11.19,55.96,67.15,,,OLSI - Hospitality,Bar Provisions,61905
http://statistics.data.gov.uk/id/local-authority/12UE,Huntingdonshire District Council,200726,SNACKLINE DIRECT LTD SNACKLINE DIRECT LTD,9741,17/12/2018,100344,ONE LEISURE ST IVES,10/01/2019,31.87,159.37,191.24,,,OLSI - Hospitality,Confectionery,61906
http://statistics.data.gov.uk/id/local-authority/12UE,Huntingdonshire District Council,200726,SNACKLINE DIRECT LTD SNACKLINE DIRECT LTD,9741,17/12/2018,100344,ONE LEISURE ST IVES,10/01/2019,0,30.29,30.29,,,OLSI - Hospitality,Confectionery,61906
http://statistics.data.gov.uk/id/local-authority/12UE,Huntingdonshire District Council,200726,SNACKLINE DIRECT LTD SNACKLINE DIRECT LTD,9741,17/12/2018,100344,ONE LEISURE ST IVES,10/01/2019,0.01,0,0.01,,,St Ives Enterprise Centre,Over/Under VAT Rounding,68350
http://statistics.data.gov.uk/id/local-authority/12UE,Huntingdonshire District Council,200845,WESTMINSTER FOODSERVICE WESTMINSTER FOODSERVICE,9742,20/12/2018,326657,ONE LEISURE ST IVES,17/01/2019,0,231.86,231.86,,,OLSI - Hospitality,Catering Supplies,61900
http://statistics.data.gov.uk/id/local-authority/12UE,Huntingdonshire District Council,200845,WESTMINSTER FOODSERVICE WESTMINSTER FOODSERVICE,9742,20/12/2018,326657,ONE LEISURE ST IVES,17/01/2019,14.09,70.47,84.56,,,OLSI - Hospitality,Bar Provisions,61905
http://statistics.data.gov.uk/id/local-authority/12UE,Huntingdonshire District Council,200746,STARLITE ROADSHOW STARLITE ROADSHOW,9744,03/01/2019,8449,ONE LEISURE ST IVES,31/01/2019,0,600,600,,,OLSI - Burgess Hall,Entertainments,64079
http://statistics.data.gov.uk/id/local-authority/12UE,Huntingdonshire District Council,200694,ROGER WILSON ELECTRONICS ROGER WILSON ELECTRONICS,9755,01/01/2019,10127,ONE LEISURE ST IVES,24/01/2019,79.18,395.88,475.06,HOS4,,OLSIO - Site & Centre Management,Maintenance - Building,60201
http://statistics.data.gov.uk/id/local-authority/12UE,Huntingdonshire District Council,200514,LYRECO UK LTD LYRECO UK LTD,9756,31/12/2018,6910761475,ONE LEISURE ST IVES,24/01/2019,74.96,374.78,449.74,,,OLSI - Site & Centre Management,Cleaning Materials,61300
http://statistics.data.gov.uk/id/local-authority/12UE,Huntingdonshire District Council,200746,STARLITE ROADSHOW STARLITE ROADSHOW,9757,28/12/2018,8445,ONE LEISURE ST IVES,24/01/2019,0,450,450,,,OLSI - Burgess Hall,Entertainments,64079
http://statistics.data.gov.uk/id/local-authority/12UE,Huntingdonshire District Council,200509,LUCOZADE RIBENA SUNTORY LTD LUCOZADE RIBENA SUNTORY LTD,9759,11/12/2018,9000081468,ONE LEISURE ST IVES,10/01/2019,82.37,411.83,494.2,,,OLSN - Hospitality,Vending Materials,61907
http://statistics.data.gov.uk/id/local-authority/12UE,Huntingdonshire District Council,200694,ROGER WILSON ELECTRONICS ROGER WILSON ELECTRONICS,9764,01/01/2019,10128,ONE LEISURE ST IVES,24/01/2019,97.12,485.61,582.73,HOS4,,OLSI - Site & Centre Management,Maintenance - Building,60201
http://statistics.data.gov.uk/id/local-authority/12UE,Huntingdonshire District Council,200694,ROGER WILSON ELECTRONICS ROGER WILSON ELECTRONICS,9765,01/01/2019,10129,ONE LEISURE ST IVES,24/01/2019,162.2,810.98,973.18,,,OLSI - Site & Centre Management,Maintenance - Building,60201
http://statistics.data.gov.uk/id/local-authority/12UE,Huntingdonshire District Council,200113,BOOKER CASH AND CARRY BOOKER CASH AND CARRY,9766,19/12/2018,2106923437,ONE LEISURE ST IVES,10/01/2019,0,454.43,454.43,HOS3,,OLSI - Burgess Bar,Catering Supplies,61900
http://statistics.data.gov.uk/id/local-authority/12UE,Huntingdonshire District Council,200113,BOOKER CASH AND CARRY BOOKER CASH AND CARRY,9766,19/12/2018,2106923437,ONE LEISURE ST IVES,10/01/2019,11.59,57.94,69.53,HOS3,,OLSI - Burgess Bar,Confectionery,61906
http://statistics.data.gov.uk/id/local-authority/12UE,Huntingdonshire District Council,200113,BOOKER CASH AND CARRY BOOKER CASH AND CARRY,9766,19/12/2018,2106923437,ONE LEISURE ST IVES,10/01/2019,3.37,16.86,20.23,,,OLSI - Burgess Bar,Materials,61709
http://statistics.data.gov.uk/id/local-authority/12UE,Huntingdonshire District Council,200565.01,NEOPOST LIMITED,9767,28/12/2018,92529575,LETTER OPENER TOTALCARE,24/01/2019,144.79,723.94,868.73,,,Electoral Registration,"Maintenance - Equipment, Furniture And Materials",61702
http://statistics.data.gov.uk/id/local-authority/12UE,Huntingdonshire District Council,200278,E-ON ENERGY E-ON ENERGY,9768,17/12/2018,H169DA7A66,ST IVES OUTDOOR,10/01/2019,88.83,444.13,532.96,,,OLSIO - Site & Centre Management,Gas,60305
http://statistics.data.gov.uk/id/local-authority/12UE,Huntingdonshire District Council,200278,E-ON ENERGY E-ON ENERGY,9769,17/12/2018,H169DA7CFA,RAMSEY SPORTS CENTRE,10/01/2019,220.6,"1,102.99","1,323.59",HOS4,,OLR - Site & Centre Management,Gas,60305
http://statistics.data.gov.uk/id/local-authority/12UE,Huntingdonshire District Council,200312,FREIGHT TRANSPORT ASSOCIATION FREIGHT TRANSPORT ASSOCIATION,9771,08/11/2018,300219821,LOCAL AUTHORITY MEMBERSHIP,10/01/2019,206.4,"1,032.00","1,238.40",HOS5,,Domestic Waste Collection,Membership And Subscriptions,64800
http://statistics.data.gov.uk/id/local-authority/12UE,Huntingdonshire District Council,200327,GARNER MEDICAL LTD GARNER MEDICAL LTD,9772,18/12/2018,GM17299,ONE LEISURE ST NEOTS,10/01/2019,52.6,263,315.6,,,OLSN - Site & Centre Management,"Maintenance - Equipment, Furniture And Materials",61702
http://statistics.data.gov.uk/id/local-authority/12UE,Huntingdonshire District Council,200694,ROGER WILSON ELECTRONICS ROGER WILSON ELECTRONICS,9773,03/01/2019,10131,ONE LEISURE ST NEOTS,31/01/2019,137,684.99,821.99,HOS6,,OLSN - Site & Centre Management,Maintenance - Building,60201
http://statistics.data.gov.uk/id/local-authority/12UE,Huntingdonshire District Council,200569,NEWLYN PLC NEWLYN PLC,9775,29/12/2018,5127,CT BAILIFF DEC 2018 CT NET AMOUNT,24/01/2019,0,"1,295.16","1,295.16",HOS4,,Council Tax Management,Debt Collection And Recovery Costs,62700
http://statistics.data.gov.uk/id/local-authority/12UE,Huntingdonshire District Council,200569,NEWLYN PLC NEWLYN PLC,9776,29/12/2018,5127,CT BAILIFF DEC 2018 CT VAT AMOUNT,24/01/2019,0,"3,181.12","3,181.12",,,VAT,VAT Output Tax,20170
http://statistics.data.gov.uk/id/local-authority/12UE,Huntingdonshire District Council,200834,WAMO SPORTS LTD WAMO SPORTS LTD,9791,31/12/2018,INV-0122,XTREME ACTIVE LICENCE FEE FOR 2019,24/01/2019,375,"1,875.00","2,250.00",HOS4,,OLSI - Indoor Sports,Licences,60410
http://statistics.data.gov.uk/id/local-authority/12UE,Huntingdonshire District Council,200834,WAMO SPORTS LTD WAMO SPORTS LTD,9791,31/12/2018,INV-0122,XTREME ACTIVE LICENCE FEE FOR 2019,24/01/2019,375,"1,875.00","2,250.00",HOS4,,OLH - Site & Centre Management,Licences,60410
http://statistics.data.gov.uk/id/local-authority/12UE,Huntingdonshire District Council,200834,WAMO SPORTS LTD WAMO SPORTS LTD,9791,31/12/2018,INV-0122,XTREME ACTIVE LICENCE FEE FOR 2019,24/01/2019,375,"1,875.00","2,250.00",HOS4,,OLSN - Site & Centre Management,Licences,60410
http://statistics.data.gov.uk/id/local-authority/12UE,Huntingdonshire District Council,200834,WAMO SPORTS LTD WAMO SPORTS LTD,9791,31/12/2018,INV-0122,XTREME ACTIVE LICENCE FEE FOR 2019,24/01/2019,187.5,937.5,"1,125.00",HOS4,,OLR - Site & Centre Management,Licences,60410
http://statistics.data.gov.uk/id/local-authority/12UE,Huntingdonshire District Council,200834,WAMO SPORTS LTD WAMO SPORTS LTD,9791,31/12/2018,INV-0122,XTREME ACTIVE LICENCE FEE FOR 2019,24/01/2019,187.5,937.5,"1,125.00",HOS4,,OLS - Indoor Sports,Licences,60410
http://statistics.data.gov.uk/id/local-authority/12UE,Huntingdonshire District Council,200698,ROYAL MAIL GROUP LTD ROYAL MAIL GROUP LTD,9793,27/12/2018,9057942723,J45815514  11/11/18,24/01/2019,-59.31,-296.55,-355.86,HOS4,,Post Handling,Postage And Courier Services,64100
http://statistics.data.gov.uk/id/local-authority/12UE,Huntingdonshire District Council,200278,E-ON ENERGY E-ON ENERGY,9794,17/12/2018,H169DA8259,ST IVES REC CENTRE,10/01/2019,693.66,"3,468.30","4,161.96",,,OLSI - Site & Centre Management,Gas,60305
http://statistics.data.gov.uk/id/local-authority/12UE,Huntingdonshire District Council,200278,E-ON ENERGY E-ON ENERGY,9795,17/12/2018,H169DA7648,HUNTINGDON REC CENTRE,10/01/2019,124.76,623.82,748.58,HOS3,,OLH - Site & Centre Management,Gas,60305
http://statistics.data.gov.uk/id/local-authority/12UE,Huntingdonshire District Council,200278,E-ON ENERGY E-ON ENERGY,9796,17/12/2018,H169DA7A87,ST NEOTS SWIMMING POOL,10/01/2019,468.41,"2,342.07","2,810.48",HOS6,,OLSN - Site & Centre Management,Gas,60305
http://statistics.data.gov.uk/id/local-authority/12UE,Huntingdonshire District Council,200147,CALE ACCESS UK LTD CALE ACCESS UK LTD,9797,31/10/2018,135382,12 MONTH FULLY INCLUSIVE CONTRACT,10/01/2019,643.61,"3,218.04","3,861.65",,,Car Parks Operational Mgt,Cark Park Machines,61707
http://statistics.data.gov.uk/id/local-authority/12UE,Huntingdonshire District Council,200079,BANDVULC TRUCK TYRES BANDVULC TRUCK TYRES,9798,27/12/2018,125652,PERIOD 12 WEEK 0,24/01/2019,5.21,26.05,31.26,HOS3,,Recycling Collections,Vehicle Repairs And Maintenance,60904
http://statistics.data.gov.uk/id/local-authority/12UE,Huntingdonshire District Council,200079,BANDVULC TRUCK TYRES BANDVULC TRUCK TYRES,9798,27/12/2018,125652,PERIOD 12 WEEK 0,24/01/2019,78.95,394.73,473.68,HOS7,,Green Waste Collection,Vehicle Repairs And Maintenance,60904
http://statistics.data.gov.uk/id/local-authority/12UE,Huntingdonshire District Council,200079,BANDVULC TRUCK TYRES BANDVULC TRUCK TYRES,9798,27/12/2018,125652,PERIOD 12 WEEK 0,24/01/2019,92.68,463.4,556.08,HOS7,,Green Waste Collection,Vehicle Repairs And Maintenance,60904
http://statistics.data.gov.uk/id/local-authority/12UE,Huntingdonshire District Council,200079,BANDVULC TRUCK TYRES BANDVULC TRUCK TYRES,9798,27/12/2018,125652,PERIOD 12 WEEK 0,24/01/2019,77.37,386.85,464.22,HOS7,,Green Waste Collection,Vehicle Repairs And Maintenance,60904
http://statistics.data.gov.uk/id/local-authority/12UE,Huntingdonshire District Council,200079,BANDVULC TRUCK TYRES BANDVULC TRUCK TYRES,9798,27/12/2018,125652,PERIOD 12 WEEK 0,24/01/2019,53.18,265.92,319.1,HOS4,,Domestic Waste Collection,Vehicle Repairs And Maintenance,60904
http://statistics.data.gov.uk/id/local-authority/12UE,Huntingdonshire District Council,200079,BANDVULC TRUCK TYRES BANDVULC TRUCK TYRES,9798,27/12/2018,125652,PERIOD 12 WEEK 0,24/01/2019,67.05,335.26,402.31,HOS7,,Domestic Waste Collection,Vehicle Repairs And Maintenance,60904
http://statistics.data.gov.uk/id/local-authority/12UE,Huntingdonshire District Council,200079,BANDVULC TRUCK TYRES BANDVULC TRUCK TYRES,9798,27/12/2018,125652,PERIOD 12 WEEK 0,24/01/2019,54.86,274.3,329.16,,,Recycling Collections,Vehicle Repairs And Maintenance,60904
http://statistics.data.gov.uk/id/local-authority/12UE,Huntingdonshire District Council,200079,BANDVULC TRUCK TYRES BANDVULC TRUCK TYRES,9798,27/12/2018,125652,PERIOD 12 WEEK 0,24/01/2019,109.23,546.12,655.35,HOS1,,Domestic Waste Collection,Vehicle Repairs And Maintenance,60904
http://statistics.data.gov.uk/id/local-authority/12UE,Huntingdonshire District Council,200079,BANDVULC TRUCK TYRES BANDVULC TRUCK TYRES,9798,27/12/2018,125652,PERIOD 12 WEEK 0,24/01/2019,88.45,442.27,530.72,HOS99,,Green Waste Collection,Vehicle Repairs And Maintenance,60904
http://statistics.data.gov.uk/id/local-authority/12UE,Huntingdonshire District Council,200079,BANDVULC TRUCK TYRES BANDVULC TRUCK TYRES,9798,27/12/2018,125652,PERIOD 12 WEEK 0,24/01/2019,16.19,80.96,97.15,,,Green Waste Collection,Vehicle Repairs And Maintenance,60904
http://statistics.data.gov.uk/id/local-authority/12UE,Huntingdonshire District Council,200079,BANDVULC TRUCK TYRES BANDVULC TRUCK TYRES,9798,27/12/2018,125652,PERIOD 12 WEEK 0,24/01/2019,94.23,471.13,565.36,HOS1,,Trade Refuse,Vehicle Repairs And Maintenance,60904
http://statistics.data.gov.uk/id/local-authority/12UE,Huntingdonshire District Council,200079,BANDVULC TRUCK TYRES BANDVULC TRUCK TYRES,9798,27/12/2018,125652,PERIOD 12 WEEK 0,24/01/2019,155.88,779.41,935.29,HOS1,,Recycling Collections,Vehicle Repairs And Maintenance,60904
http://statistics.data.gov.uk/id/local-authority/12UE,Huntingdonshire District Council,201462,BRITISH PARKING ASSOCIATION,9801,20/12/2018,52986,BPA MEMBERSHIP BAND 3,17/01/2019,179.4,897,"1,076.40",HOS1,,Car Parks Operational Mgt,Maintenance - Building,60201
http://statistics.data.gov.uk/id/local-authority/12UE,Huntingdonshire District Council,200926,IDE GROUP MANAGE LTD,9805,19/11/2018,5002787,SCCM AND SERVER CONSULTANCY,10/01/2019,625,"3,125.00","3,750.00",HOS4,,Council Anywhere Holding Acc,Consultancy Fees,62400
http://statistics.data.gov.uk/id/local-authority/12UE,Huntingdonshire District Council,200926,IDE GROUP MANAGE LTD,9805,19/11/2018,5002787,SCCM AND SERVER CONSULTANCY,10/01/2019,"2,730.00","13,650.00","16,380.00",HOS1,,Council Anywhere Holding Acc,Consultancy Fees,62400
http://statistics.data.gov.uk/id/local-authority/12UE,Huntingdonshire District Council,200926,IDE GROUP MANAGE LTD,9805,19/11/2018,5002787,SCCM AND SERVER CONSULTANCY,10/01/2019,630,"3,150.00","3,780.00",HOS4,,Council Anywhere Holding Acc,Consultancy Fees,62400
http://statistics.data.gov.uk/id/local-authority/12UE,Huntingdonshire District Council,200365,HAYS HAYS,9806,24/12/2018,1009264663,REDACTED,17/01/2019,481.57,"2,407.86","2,889.43",,,Property Development And Mgt,Agency Staff,60011
http://statistics.data.gov.uk/id/local-authority/12UE,Huntingdonshire District Council,200785,THE OYSTER PARTNERSHIP THE OYSTER PARTNERSHIP,9807,24/12/2018,1045057,REDACTED,17/01/2019,475,"2,375.00","2,850.00",HOS5,,Property Development And Mgt,Agency Staff,60011
http://statistics.data.gov.uk/id/local-authority/12UE,Huntingdonshire District Council,200785,THE OYSTER PARTNERSHIP THE OYSTER PARTNERSHIP,9808,24/12/2018,1045058,REDACTED,17/01/2019,375,"1,875.00","2,250.00",HOS4,,Property Development And Mgt,Agency Staff,60011
http://statistics.data.gov.uk/id/local-authority/12UE,Huntingdonshire District Council,200785,THE OYSTER PARTNERSHIP THE OYSTER PARTNERSHIP,9809,24/12/2018,1045059,REDACTED,17/01/2019,375,"1,875.00","2,250.00",HOS4,,Property Development And Mgt,Agency Staff,60011
http://statistics.data.gov.uk/id/local-authority/12UE,Huntingdonshire District Council,200139,BURTON CAR DISPOSAL BURTON CAR DISPOSAL,9811,24/10/2018,INV-0559,DISPOSAL OF CARAVANS,10/01/2019,40,200,240,HOS3,,Environmental Enforcement,Removal Services,63700
http://statistics.data.gov.uk/id/local-authority/12UE,Huntingdonshire District Council,200139,BURTON CAR DISPOSAL BURTON CAR DISPOSAL,9811,24/10/2018,INV-0559,DISPOSAL OF CARAVANS,10/01/2019,56,280,336,HOS3,,Environmental Enforcement,Removal Services,63700
http://statistics.data.gov.uk/id/local-authority/12UE,Huntingdonshire District Council,200139,BURTON CAR DISPOSAL BURTON CAR DISPOSAL,9811,24/10/2018,INV-0559,DISPOSAL OF CARAVANS,10/01/2019,106,530,636,HOS3,,Environmental Enforcement,Removal Services,63700
http://statistics.data.gov.uk/id/local-authority/12UE,Huntingdonshire District Council,200785,THE OYSTER PARTNERSHIP THE OYSTER PARTNERSHIP,9813,02/01/2019,1045341,REDACTED,24/01/2019,225,"1,125.00","1,350.00",HOS8,,Property Development And Mgt,Agency Staff,60011
http://statistics.data.gov.uk/id/local-authority/12UE,Huntingdonshire District Council,200785,THE OYSTER PARTNERSHIP THE OYSTER PARTNERSHIP,9814,02/01/2019,1045340,REDACTED,24/01/2019,150,750,900,HOS9,,Property Development And Mgt,Agency Staff,60011
http://statistics.data.gov.uk/id/local-authority/12UE,Huntingdonshire District Council,200674,REPLAY MAINTENANCE LTD REPLAY MAINTENANCE LTD,9815,31/10/2018,IN1193,MAINTENANCE OF SYNTHETIC TURF SPORTS,10/01/2019,95,475,570,HOS9,,OLR - Outdoor Sports,Grounds Maintenance,60503
http://statistics.data.gov.uk/id/local-authority/12UE,Huntingdonshire District Council,200674,REPLAY MAINTENANCE LTD REPLAY MAINTENANCE LTD,9815,31/10/2018,IN1193,MAINTENANCE OF SYNTHETIC TURF SPORTS,10/01/2019,95,475,570,HOS1,,OLSIO - Outdoor Sports,Grounds Maintenance,60503
http://statistics.data.gov.uk/id/local-authority/12UE,Huntingdonshire District Council,200674,REPLAY MAINTENANCE LTD REPLAY MAINTENANCE LTD,9815,31/10/2018,IN1193,MAINTENANCE OF SYNTHETIC TURF SPORTS,10/01/2019,95,475,570,,,OLSN - Outdoor Sports,Grounds Maintenance,60503
http://statistics.data.gov.uk/id/local-authority/12UE,Huntingdonshire District Council,200674,REPLAY MAINTENANCE LTD REPLAY MAINTENANCE LTD,9815,31/10/2018,IN1193,MAINTENANCE OF SYNTHETIC TURF SPORTS,10/01/2019,95,475,570,,,OLS - Outdoor Sports,Grounds Maintenance,60503
http://statistics.data.gov.uk/id/local-authority/12UE,Huntingdonshire District Council,200674,REPLAY MAINTENANCE LTD REPLAY MAINTENANCE LTD,9815,31/10/2018,IN1193,MAINTENANCE OF SYNTHETIC TURF SPORTS,10/01/2019,95,475,570,,,OLH - Outdoor Sports,Grounds Maintenance,60503
http://statistics.data.gov.uk/id/local-authority/12UE,Huntingdonshire District Council,201491,CLYDE & CO LLP,9818,08/01/2019,IG/10092147,JR COST RECOVERY PAYMENT FOLLOWING,10/01/2019,"6,000.00","30,000.00","36,000.00",,,Dm Application Processing,Other Services,69150
http://statistics.data.gov.uk/id/local-authority/12UE,Huntingdonshire District Council,200478,LATTENBURY SERVICES LATTENBURY SERVICES,9823,04/01/2019,12641,WATERCOURSE WORKS AT,31/01/2019,"1,390.00","6,950.00","8,340.00",,,Watercourses,Site Alterations And Materials,60273
http://statistics.data.gov.uk/id/local-authority/12UE,Huntingdonshire District Council,200451,K & M LIGHTING SERVICES LTD K & M LIGHTING SERVICES LTD,9824,04/01/2019,4895,RIVERSIDE CAR PARK ST NEOTS,31/01/2019,195,975,"1,170.00",HOS4,,St Neots Riverside,Maintenance - Building,60201
http://statistics.data.gov.uk/id/local-authority/12UE,Huntingdonshire District Council,201489,24 ACOUSTICS LTD,9827,31/12/2018,7518-1,COTTON FARM WIND FARM,24/01/2019,95,475,570,,,Noise Control,Subcontractors,62401
http://statistics.data.gov.uk/id/local-authority/12UE,Huntingdonshire District Council,200550,MORGAN HUNT PUBLIC UK LTD MORGAN HUNT PUBLIC UK LTD,9832,30/12/2018,1091204,REDACTED,24/01/2019,69.41,347.07,416.48,,,Benefits Management,Agency Staff,60011
http://statistics.data.gov.uk/id/local-authority/12UE,Huntingdonshire District Council,200516,M WATSON CONSTRUCTION LTD M WATSON CONSTRUCTION LTD,9837,23/08/2018,22144,180104,10/01/2019,0,"4,435.82","4,435.82",HOS4,,Disabled Facilities Grants,Mandatory Grants,64601
http://statistics.data.gov.uk/id/local-authority/12UE,Huntingdonshire District Council,200329,GASWISE GASWISE,9838,30/10/2018,88440,CASE NO 001836,10/01/2019,0,"5,697.00","5,697.00",,,Disabled Facilities Grants,Mandatory Grants,64601
http://statistics.data.gov.uk/id/local-authority/12UE,Huntingdonshire District Council,200516,M WATSON CONSTRUCTION LTD M WATSON CONSTRUCTION LTD,9839,19/12/2018,22636,180272,10/01/2019,0,402.36,402.36,HOS4,,Disabled Facilities Grants,Mandatory Grants,64601
http://statistics.data.gov.uk/id/local-authority/12UE,Huntingdonshire District Council,200516,M WATSON CONSTRUCTION LTD M WATSON CONSTRUCTION LTD,9839,19/12/2018,22636,180272,10/01/2019,0,78.5,78.5,HOS4,,Disabled Facilities Grants,Mandatory Grants,64601
http://statistics.data.gov.uk/id/local-authority/12UE,Huntingdonshire District Council,200516,M WATSON CONSTRUCTION LTD M WATSON CONSTRUCTION LTD,9839,19/12/2018,22636,180272,10/01/2019,0,756.95,756.95,HOS4,,Disabled Facilities Grants,Mandatory Grants,64601
http://statistics.data.gov.uk/id/local-authority/12UE,Huntingdonshire District Council,200516,M WATSON CONSTRUCTION LTD M WATSON CONSTRUCTION LTD,9839,19/12/2018,22636,180272,10/01/2019,0,"2,688.54","2,688.54",HOS4,,Disabled Facilities Grants,Mandatory Grants,64601
http://statistics.data.gov.uk/id/local-authority/12UE,Huntingdonshire District Council,200148,CALLCREDIT LTD CALLCREDIT LTD,9866,31/12/2018,782930,USAGE,24/01/2019,181.4,907,"1,088.40",,,Benefits Management,Professional Services - General,62402
http://statistics.data.gov.uk/id/local-authority/12UE,Huntingdonshire District Council,200148,CALLCREDIT LTD CALLCREDIT LTD,9866,31/12/2018,782930,USAGE,24/01/2019,7,35,42,HOS4,,Finance,Professional Services - General,62402
http://statistics.data.gov.uk/id/local-authority/12UE,Huntingdonshire District Council,201124,ANDY KNOTT CONSTRUCTION,9868,29/10/2018,3802R,REDACTED,10/01/2019,0,"22,784.20","22,784.20",HOS4,,Disabled Facilities Grants,Mandatory Grants,64601
http://statistics.data.gov.uk/id/local-authority/12UE,Huntingdonshire District Council,200058,ARCHANT HERTS AND CAMBS ARCHANT HERTS AND CAMBS,9870,31/12/2018,82950937,BURGESS EVENTS 27-28/12/18,24/01/2019,62.4,312,374.4,HOS3,,OLSI - Burgess Hall,"Advertising, Publicity And Marketing",62005
http://statistics.data.gov.uk/id/local-authority/12UE,Huntingdonshire District Council,201012,COACH & HORSES,9871,30/12/2018,364,24-30/12/18,10/01/2019,56,280,336,,HOS99,Homelessness,B&B Accommodation,64401
http://statistics.data.gov.uk/id/local-authority/12UE,Huntingdonshire District Council,201012,COACH & HORSES,9871,30/12/2018,364,24-30/12/18,10/01/2019,8,40,48,,,Homelessness,B&B Accommodation,64401
http://statistics.data.gov.uk/id/local-authority/12UE,Huntingdonshire District Council,201012,COACH & HORSES,9871,30/12/2018,364,24-30/12/18,10/01/2019,56,280,336,HOS3,,Homelessness,B&B Accommodation,64401
http://statistics.data.gov.uk/id/local-authority/12UE,Huntingdonshire District Council,201012,COACH & HORSES,9871,30/12/2018,364,24-30/12/18,10/01/2019,56,280,336,,,Homelessness,B&B Accommodation,64401
http://statistics.data.gov.uk/id/local-authority/12UE,Huntingdonshire District Council,201012,COACH & HORSES,9871,30/12/2018,364,24-30/12/18,10/01/2019,56,280,336,HOS1,,Homelessness,B&B Accommodation,64401
http://statistics.data.gov.uk/id/local-authority/12UE,Huntingdonshire District Council,200024,ADVANCED BUSINESS SOLUTIONS ADVANCED BUSINESS SOLUTIONS,9873,31/12/2018,ARBK/99049297,REDACTED,24/01/2019,231,"1,155.00","1,386.00",HOS11,,Fms System,Consultancy Fees,62400
http://statistics.data.gov.uk/id/local-authority/12UE,Huntingdonshire District Council,201006,ASHCO BUILDING & MAINTENANCE SERVICES LTD,9875,25/10/2018,AC0214623,161035,10/01/2019,0,"9,112.09","9,112.09",,,Disabled Facilities Grants,Mandatory Grants,64601
http://statistics.data.gov.uk/id/local-authority/12UE,Huntingdonshire District Council,201006,ASHCO BUILDING & MAINTENANCE SERVICES LTD,9876,01/08/2018,AC0214560,160785,10/01/2019,0,"16,502.61","16,502.61",HOS7,,Disabled Facilities Grants,Mandatory Grants,64601
http://statistics.data.gov.uk/id/local-authority/12UE,Huntingdonshire District Council,200297,FIRST RECRUITMENT GROUP LTD FIRST RECRUITMENT GROUP LTD,9879,26/12/2018,333570,REDACTED,17/01/2019,94.65,473.23,567.88,HOS3,,Finance,Agency Staff,60011
http://statistics.data.gov.uk/id/local-authority/12UE,Huntingdonshire District Council,200769,TECHNOLOGY ONE LTD TECHNOLOGY ONE LTD,9882,17/12/2018,U002375,YEAR 3 SAAS FEE,10/01/2019,"5,054.00","25,270.00","30,324.00",,,Finance,Ict Software,64071
http://statistics.data.gov.uk/id/local-authority/12UE,Huntingdonshire District Council,200448,JOHNSTON ENGINEERING LTD JOHNSTON ENGINEERING LTD,9889,24/12/2018,61693934,PARTS,17/01/2019,177.51,887.57,"1,065.08",HOS3,,Street Cleansing,Vehicle Repairs And Maintenance,60904
http://statistics.data.gov.uk/id/local-authority/12UE,Huntingdonshire District Council,200236,DENNIS EAGLE LTD DENNIS EAGLE LTD,9892,14/12/2018,DE11183679,REDACTED,10/01/2019,135.42,677.11,812.53,,,Domestic Waste Collection,Vehicle Repairs And Maintenance,60904
http://statistics.data.gov.uk/id/local-authority/12UE,Huntingdonshire District Council,200028,AEBI SCHMIDT AEBI SCHMIDT,9895,21/12/2018,60245501,REPLACEMENT PARTS,17/01/2019,56.07,280.33,336.4,HOS4,,Street Cleansing,Vehicle Repairs And Maintenance,60904
http://statistics.data.gov.uk/id/local-authority/12UE,Huntingdonshire District Council,200236,DENNIS EAGLE LTD DENNIS EAGLE LTD,9898,21/12/2018,DE11185297,PARTS,17/01/2019,219.18,"1,095.92","1,315.10",,HOS99,Domestic Waste Collection,Vehicle Repairs And Maintenance,60904
http://statistics.data.gov.uk/id/local-authority/12UE,Huntingdonshire District Council,200236,DENNIS EAGLE LTD DENNIS EAGLE LTD,9899,24/12/2018,DE11185508,PARTS,17/01/2019,114.15,570.73,684.88,HOS3,,Domestic Waste Collection,Vehicle Repairs And Maintenance,60904
http://statistics.data.gov.uk/id/local-authority/12UE,Huntingdonshire District Council,200236,DENNIS EAGLE LTD DENNIS EAGLE LTD,9899,24/12/2018,DE11185508,PARTS,24/01/2019,114.15,570.73,684.88,HOS3,,Domestic Waste Collection,Vehicle Repairs And Maintenance,60904
http://statistics.data.gov.uk/id/local-authority/12UE,Huntingdonshire District Council,200236,DENNIS EAGLE LTD DENNIS EAGLE LTD,9902,27/12/2018,DE11185618,SILENCER,24/01/2019,600,"3,000.00","3,600.00",,,Recycling Collections,Vehicle Repairs And Maintenance,60904
http://statistics.data.gov.uk/id/local-authority/12UE,Huntingdonshire District Council,201114,XP RECRUITMENT LTD,9906,14/11/2018,6563,W/E 10/11/18,10/01/2019,132.8,664,796.8,,,Domestic Waste Collection,Agency Staff,60011
http://statistics.data.gov.uk/id/local-authority/12UE,Huntingdonshire District Council,201114,XP RECRUITMENT LTD,9906,14/11/2018,6563,W/E 10/11/18,10/01/2019,132.8,664,796.8,HOS8,,Recycling Collections,Agency Staff,60011
http://statistics.data.gov.uk/id/local-authority/12UE,Huntingdonshire District Council,201114,XP RECRUITMENT LTD,9906,14/11/2018,6563,W/E 10/11/18,10/01/2019,132.8,664,796.8,,,Green Waste Collection,Agency Staff,60011
http://statistics.data.gov.uk/id/local-authority/12UE,Huntingdonshire District Council,201114,XP RECRUITMENT LTD,9907,07/11/2018,6506,W/E 03/11/18,10/01/2019,132.8,664,796.8,,,Domestic Waste Collection,Agency Staff,60011
http://statistics.data.gov.uk/id/local-authority/12UE,Huntingdonshire District Council,201114,XP RECRUITMENT LTD,9907,07/11/2018,6506,W/E 03/11/18,10/01/2019,132.8,664,796.8,HOS7,,Recycling Collections,Agency Staff,60011
http://statistics.data.gov.uk/id/local-authority/12UE,Huntingdonshire District Council,200685,RIGBY TAYLOR LTD RIGBY TAYLOR LTD,9910,02/01/2019,RSIN0284520,20 X IMPACT XP DRUM 9FG001,24/01/2019,140,700,840,,HOS99,Grounds Maintenance,Materials,61709
http://statistics.data.gov.uk/id/local-authority/12UE,Huntingdonshire District Council,201012,COACH & HORSES,9911,07/01/2019,365,31/12/18 - 06/01/19,10/01/2019,56,280,336,HOS4,,Homelessness,B&B Accommodation,64401
http://statistics.data.gov.uk/id/local-authority/12UE,Huntingdonshire District Council,201012,COACH & HORSES,9911,07/01/2019,365,31/12/18 - 06/01/19,10/01/2019,24,120,144,HOS4,,Homelessness,B&B Accommodation,64401
http://statistics.data.gov.uk/id/local-authority/12UE,Huntingdonshire District Council,201012,COACH & HORSES,9911,07/01/2019,365,31/12/18 - 06/01/19,10/01/2019,56,280,336,,,Homelessness,B&B Accommodation,64401
http://statistics.data.gov.uk/id/local-authority/12UE,Huntingdonshire District Council,201012,COACH & HORSES,9911,07/01/2019,365,31/12/18 - 06/01/19,10/01/2019,56,280,336,HOS4,,Homelessness,B&B Accommodation,64401
http://statistics.data.gov.uk/id/local-authority/12UE,Huntingdonshire District Council,201012,COACH & HORSES,9911,07/01/2019,365,31/12/18 - 06/01/19,10/01/2019,56,280,336,HOS1,,Homelessness,B&B Accommodation,64401
http://statistics.data.gov.uk/id/local-authority/12UE,Huntingdonshire District Council,201012,COACH & HORSES,9911,07/01/2019,365,31/12/18 - 06/01/19,10/01/2019,24,120,144,,,Homelessness,B&B Accommodation,64401
http://statistics.data.gov.uk/id/local-authority/12UE,Huntingdonshire District Council,201012,COACH & HORSES,9911,07/01/2019,365,31/12/18 - 06/01/19,10/01/2019,24,120,144,HOS1,,Homelessness,B&B Accommodation,64401
http://statistics.data.gov.uk/id/local-authority/12UE,Huntingdonshire District Council,200542,MIRAMAR ENGINEERING LTD MIRAMAR ENGINEERING LTD,9917,31/10/2018,2344,ONE LEISURE RAMSEY,10/01/2019,136.3,681.5,817.8,,,OLR - Site & Centre Management,Maintenance - Building,60201
http://statistics.data.gov.uk/id/local-authority/12UE,Huntingdonshire District Council,200542,MIRAMAR ENGINEERING LTD MIRAMAR ENGINEERING LTD,9918,30/11/2018,2436,ONE LEISURE RAMSEY,10/01/2019,78.29,391.43,469.72,,,Ramsey L C - Gen Improve (Cs),Mandatory Grants,64601
http://statistics.data.gov.uk/id/local-authority/12UE,Huntingdonshire District Council,200893,GARFIELD BUILDERS LTD 00,9920,29/11/2018,20531,ONE LEISURE ST NEOTS,10/01/2019,"2,023.01","10,115.07","12,138.08",,,OLSN - Site & Centre Management,Maintenance - Building,60201
http://statistics.data.gov.uk/id/local-authority/12UE,Huntingdonshire District Council,200433,JACOBS JACOBS,9922,07/01/2019,B030119,CT BAILIFF NET AMOUNT DEC 18,31/01/2019,0,748.83,748.83,,,Community Centres,Private Donations,51130
http://statistics.data.gov.uk/id/local-authority/12UE,Huntingdonshire District Council,200433,JACOBS JACOBS,9923,07/01/2019,B030119.,CT BAILIFF DEC 18 VAT AMOUNT,31/01/2019,0,"1,836.84","1,836.84",HOS7,,VAT,VAT Input Tax,11727
http://statistics.data.gov.uk/id/local-authority/12UE,Huntingdonshire District Council,200630,PREMIER IT RECRUITMENT LTD PREMIER IT RECRUITMENT LTD,9924,02/01/2019,R030035,REDACTED,24/01/2019,350,"1,750.00","2,100.00",,,Transformation Programme,Consultancy Fees,62400
http://statistics.data.gov.uk/id/local-authority/12UE,Huntingdonshire District Council,200630,PREMIER IT RECRUITMENT LTD PREMIER IT RECRUITMENT LTD,9925,02/01/2019,R030036,REDACTED,24/01/2019,210,"1,050.00","1,260.00",HOS3,,Crm Replacement,Consultancy Fees,62400
http://statistics.data.gov.uk/id/local-authority/12UE,Huntingdonshire District Council,200302,FOCUS CONSULTANTS 2010 LLP FOCUS CONSULTANTS 2010 LLP,9926,01/01/2019,3879,ARCHITECTURAL SERVICES,24/01/2019,120,600,720,,,Hinchingbrooke Park Management,Consultancy Fees,62400
http://statistics.data.gov.uk/id/local-authority/12UE,Huntingdonshire District Council,200398,IAN'S TYRE & EXHAUST CENTRE IAN'S TYRE & EXHAUST CENTRE,9929,20/12/2018,INV-2445,LO67LGK,17/01/2019,60,300,360,,,Street Cleansing,Vehicle Repairs And Maintenance,60904
http://statistics.data.gov.uk/id/local-authority/12UE,Huntingdonshire District Council,200028,AEBI SCHMIDT AEBI SCHMIDT,9932,17/12/2018,60245292,CO-POLYMER DURABRUSH,10/01/2019,25.34,126.68,152.02,HOS4,,Street Cleansing,Vehicle Repairs And Maintenance,60904
http://statistics.data.gov.uk/id/local-authority/12UE,Huntingdonshire District Council,200028,AEBI SCHMIDT AEBI SCHMIDT,9932,17/12/2018,60245292,CO-POLYMER DURABRUSH,10/01/2019,25.33,126.68,152.01,,,Street Cleansing,Vehicle Repairs And Maintenance,60904
http://statistics.data.gov.uk/id/local-authority/12UE,Huntingdonshire District Council,200028,AEBI SCHMIDT AEBI SCHMIDT,9932,17/12/2018,60245292,CO-POLYMER DURABRUSH,10/01/2019,25.34,126.68,152.02,HOS4,,Street Cleansing,Vehicle Repairs And Maintenance,60904
http://statistics.data.gov.uk/id/local-authority/12UE,Huntingdonshire District Council,200774,TERBERG MATEC UK LTD TERBERG MATEC UK LTD,9934,19/12/2018,96366917,PARTS & MATERIALS,10/01/2019,42.3,211.5,253.8,,,Domestic Waste Collection,Materials,61709
http://statistics.data.gov.uk/id/local-authority/12UE,Huntingdonshire District Council,200774,TERBERG MATEC UK LTD TERBERG MATEC UK LTD,9934,19/12/2018,96366917,PARTS & MATERIALS,10/01/2019,42.3,211.51,253.81,,,Recycling Collections,Materials,61709
http://statistics.data.gov.uk/id/local-authority/12UE,Huntingdonshire District Council,200774,TERBERG MATEC UK LTD TERBERG MATEC UK LTD,9934,19/12/2018,96366917,PARTS & MATERIALS,10/01/2019,36.26,181.29,217.55,HOS1,,Green Waste Collection,Materials,61709
http://statistics.data.gov.uk/id/local-authority/12UE,Huntingdonshire District Council,200515,M & N VEHICLE SERVICES M & N VEHICLE SERVICES,9935,21/12/2018,33545,REDACTED,17/01/2019,140.8,704,844.8,HOS3,,Domestic Waste Collection,Vehicle Repairs And Maintenance,60904
http://statistics.data.gov.uk/id/local-authority/12UE,Huntingdonshire District Council,200743,STAFFLINE GROUP STAFFLINE GROUP,9943,17/12/2018,IN0721891,STREET CLEAN W/C 09/12/18,10/01/2019,638.71,"3,193.56","3,832.27",HOS6,,Street Cleansing,Agency Staff,60011
http://statistics.data.gov.uk/id/local-authority/12UE,Huntingdonshire District Council,201474,APEX TRAINING CENTRES (UK) LTD,9945,08/11/2018,8530,DRIVER CPC TRAINING COURSE,10/01/2019,45,225,270,HOS4,,HR Services,Staff Development And Training,60115
http://statistics.data.gov.uk/id/local-authority/12UE,Huntingdonshire District Council,201474,APEX TRAINING CENTRES (UK) LTD,9945,08/11/2018,8530,DRIVER CPC TRAINING COURSE,10/01/2019,0,43.75,43.75,HOS3,,HR Services,Staff Development And Training,60115
http://statistics.data.gov.uk/id/local-authority/12UE,Huntingdonshire District Council,201474,APEX TRAINING CENTRES (UK) LTD,9946,04/01/2019,8920,LGV TRAINING,31/01/2019,111,555,666,HOS3,,Green Waste Collection,Staff Development And Training,60115
http://statistics.data.gov.uk/id/local-authority/12UE,Huntingdonshire District Council,201474,APEX TRAINING CENTRES (UK) LTD,9946,04/01/2019,8920,LGV TRAINING,31/01/2019,0,115,115,HOS3,,Green Waste Collection,Staff Development And Training,60115
http://statistics.data.gov.uk/id/local-authority/12UE,Huntingdonshire District Council,200914,UK ROOM (LONDON) LTD,9976,01/01/2019,DEC002_HUNT_2018,Dec-18,10/01/2019,248,"1,240.00","1,488.00",,,Homelessness,B&B Accommodation,64401
http://statistics.data.gov.uk/id/local-authority/12UE,Huntingdonshire District Council,200914,UK ROOM (LONDON) LTD,9976,01/01/2019,DEC002_HUNT_2018,Dec-18,10/01/2019,248,"1,240.00","1,488.00",,,Homelessness,B&B Accommodation,64401
http://statistics.data.gov.uk/id/local-authority/12UE,Huntingdonshire District Council,200914,UK ROOM (LONDON) LTD,9976,01/01/2019,DEC002_HUNT_2018,Dec-18,10/01/2019,99,495,594,,,Homelessness,B&B Accommodation,64401
http://statistics.data.gov.uk/id/local-authority/12UE,Huntingdonshire District Council,200914,UK ROOM (LONDON) LTD,9976,01/01/2019,DEC002_HUNT_2018,Dec-18,10/01/2019,279,"1,395.00","1,674.00",HOS3,,Homelessness,B&B Accommodation,64401
http://statistics.data.gov.uk/id/local-authority/12UE,Huntingdonshire District Council,200393,HUNTS FORUM OF VOLUNTARY ORGANISATIONS HUNTS FORUM OF VOLUNTARY ORGANISATIONS,9978,08/01/2019,6539,FIRE SYSTEM MAINTENANCE 11/01-10/04/19,31/01/2019,0,388.88,388.88,,,Commercial Properties,Maintenance - Building,60201
http://statistics.data.gov.uk/id/local-authority/12UE,Huntingdonshire District Council,201014,NORSE EASTERN LTD,9979,25/11/2018,05IN-1014731,REDACTED,10/01/2019,0,"4,092.00","4,092.00",HOS4,,Disabled Facilities Grants,Mandatory Grants,64601
http://statistics.data.gov.uk/id/local-authority/12UE,Huntingdonshire District Council,201006,ASHCO BUILDING & MAINTENANCE SERVICES LTD,9980,29/11/2018,AC0214654,180033,10/01/2019,0,"5,970.00","5,970.00",,,Disabled Facilities Grants,Mandatory Grants,64601
http://statistics.data.gov.uk/id/local-authority/12UE,Huntingdonshire District Council,200694,ROGER WILSON ELECTRONICS ROGER WILSON ELECTRONICS,9983,03/01/2019,10132,ONE LEISURE HUNTINGDON,31/01/2019,94.91,474.54,569.45,HOS3,,OLH - Site & Centre Management,Maintenance - Building,60201
http://statistics.data.gov.uk/id/local-authority/12UE,Huntingdonshire District Council,200789,THURLOW NUNN STANDEN LTD THURLOW NUNN STANDEN LTD,9984,18/12/2018,304871,WESTWOOD MOWER,10/01/2019,52.7,263.52,316.22,,,OLH - Site & Centre Management,Health And Safety Works,60206
http://statistics.data.gov.uk/id/local-authority/12UE,Huntingdonshire District Council,200462,KING BROS KING BROS,9988,29/12/2018,987717,COUNTRY PARK,24/01/2019,9.71,48.57,58.28,,,Hinchingbrooke Park Cafe,Catering Supplies,61900
http://statistics.data.gov.uk/id/local-authority/12UE,Huntingdonshire District Council,200462,KING BROS KING BROS,9988,29/12/2018,987717,COUNTRY PARK,24/01/2019,0,713.98,713.98,,,Hinchingbrooke Park Cafe,Catering Supplies,61900
http://statistics.data.gov.uk/id/local-authority/12UE,Huntingdonshire District Council,201014,NORSE EASTERN LTD,9992,25/11/2018,05IN-1014730,REDACTED,10/01/2019,0,"6,712.00","6,712.00",HOS3,,Disabled Facilities Grants,Mandatory Grants,64601
http://statistics.data.gov.uk/id/local-authority/12UE,Huntingdonshire District Council,201075,STEVES TAXIS & PRIVATE HIRE,9994,31/12/2018,9685,TAXI FARES,10/01/2019,52.35,261.75,314.1,,,Homelessness,Taxi Charges - Client Transport,60910
http://statistics.data.gov.uk/id/local-authority/12UE,Huntingdonshire District Council,200808,UK ROOM IMPERIAL UK ROOMS,9999,01/01/2019,DEC001_HUNT_2018,Dec-18,10/01/2019,279,"1,395.00","1,674.00",,,Homelessness,B&B Accommodation,64401
http://statistics.data.gov.uk/id/local-authority/12UE,Huntingdonshire District Council,200808,UK ROOM IMPERIAL UK ROOMS,9999,01/01/2019,DEC001_HUNT_2018,Dec-18,10/01/2019,279,"1,395.00","1,674.00",HOS4,,Homelessness,B&B Accommodation,64401
http://statistics.data.gov.uk/id/local-authority/12UE,Huntingdonshire District Council,200808,UK ROOM IMPERIAL UK ROOMS,9999,01/01/2019,DEC001_HUNT_2018,Dec-18,10/01/2019,153,765,918,HOS4,,Homelessness,B&B Accommodation,64401
http://statistics.data.gov.uk/id/local-authority/12UE,Huntingdonshire District Council,200808,UK ROOM IMPERIAL UK ROOMS,9999,01/01/2019,DEC001_HUNT_2018,Dec-18,10/01/2019,279,"1,395.00","1,674.00",HOS4,,Homelessness,B&B Accommodation,64401
http://statistics.data.gov.uk/id/local-authority/12UE,Huntingdonshire District Council,200808,UK ROOM IMPERIAL UK ROOMS,9999,01/01/2019,DEC001_HUNT_2018,Dec-18,10/01/2019,171,855,"1,026.00",,,Homelessness,B&B Accommodation,64401
http://statistics.data.gov.uk/id/local-authority/12UE,Huntingdonshire District Council,200808,UK ROOM IMPERIAL UK ROOMS,9999,01/01/2019,DEC001_HUNT_2018,Dec-18,10/01/2019,279,"1,395.00","1,674.00",HOS4,,Homelessness,B&B Accommodation,64401
http://statistics.data.gov.uk/id/local-authority/12UE,Huntingdonshire District Council,200808,UK ROOM IMPERIAL UK ROOMS,9999,01/01/2019,DEC001_HUNT_2018,Dec-18,10/01/2019,279,"1,395.00","1,674.00",,,Homelessness,B&B Accommodation,64401
http://statistics.data.gov.uk/id/local-authority/12UE,Huntingdonshire District Council,200808,UK ROOM IMPERIAL UK ROOMS,9999,01/01/2019,DEC001_HUNT_2018,Dec-18,10/01/2019,48,240,288,,,Homelessness,B&B Accommodation,64401
http://statistics.data.gov.uk/id/local-authority/12UE,Huntingdonshire District Council,200808,UK ROOM IMPERIAL UK ROOMS,9999,01/01/2019,DEC001_HUNT_2018,Dec-18,10/01/2019,80,400,480,HOS4,,Homelessness,B&B Accommodation,64401
http://statistics.data.gov.uk/id/local-authority/12UE,Huntingdonshire District Council,200808,UK ROOM IMPERIAL UK ROOMS,9999,01/01/2019,DEC001_HUNT_2018,Dec-18,10/01/2019,152,760,912,HOS4,,Homelessness,B&B Accommodation,64401
http://statistics.data.gov.uk/id/local-authority/12UE,Huntingdonshire District Council,200808,UK ROOM IMPERIAL UK ROOMS,9999,01/01/2019,DEC001_HUNT_2018,Dec-18,10/01/2019,248,"1,240.00","1,488.00",HOS4,,Homelessness,B&B Accommodation,64401
http://statistics.data.gov.uk/id/local-authority/12UE,Huntingdonshire District Council,200808,UK ROOM IMPERIAL UK ROOMS,9999,01/01/2019,DEC001_HUNT_2018,Dec-18,10/01/2019,279,"1,395.00","1,674.00",HOS4,,Homelessness,B&B Accommodation,64401
http://statistics.data.gov.uk/id/local-authority/12UE,Huntingdonshire District Council,200808,UK ROOM IMPERIAL UK ROOMS,9999,01/01/2019,DEC001_HUNT_2018,Dec-18,10/01/2019,248,"1,240.00","1,488.00",HOS4,,Homelessness,B&B Accommodation,64401
http://statistics.data.gov.uk/id/local-authority/12UE,Huntingdonshire District Council,200808,UK ROOM IMPERIAL UK ROOMS,9999,01/01/2019,DEC001_HUNT_2018,Dec-18,10/01/2019,279,"1,395.00","1,674.00",HOS4,,Homelessness,B&B Accommodation,64401
http://statistics.data.gov.uk/id/local-authority/12UE,Huntingdonshire District Council,200808,UK ROOM IMPERIAL UK ROOMS,9999,01/01/2019,DEC001_HUNT_2018,Dec-18,10/01/2019,95,475,570,HOS4,,Homelessness,B&B Accommodation,64401
http://statistics.data.gov.uk/id/local-authority/12UE,Huntingdonshire District Council,200808,UK ROOM IMPERIAL UK ROOMS,9999,01/01/2019,DEC001_HUNT_2018,Dec-18,10/01/2019,91.2,456,547.2,,,Homelessness,B&B Accommodation,64401
http://statistics.data.gov.uk/id/local-authority/12UE,Huntingdonshire District Council,200673,RENT CONNECT RENT CONNECT,10000,01/01/2019,RC-HDC050,Dec-18,10/01/2019,0,825,825,HOS8,,Homelessness,B&B Accommodation,64401
http://statistics.data.gov.uk/id/local-authority/12UE,Huntingdonshire District Council,200673,RENT CONNECT RENT CONNECT,10000,01/01/2019,RC-HDC050,Dec-18,10/01/2019,0,114,114,,HOS99,Homelessness,B&B Accommodation,64401
http://statistics.data.gov.uk/id/local-authority/12UE,Huntingdonshire District Council,200673,RENT CONNECT RENT CONNECT,10000,01/01/2019,RC-HDC050,Dec-18,10/01/2019,0,825,825,HOS4,,Homelessness,B&B Accommodation,64401
http://statistics.data.gov.uk/id/local-authority/12UE,Huntingdonshire District Council,200673,RENT CONNECT RENT CONNECT,10000,01/01/2019,RC-HDC050,Dec-18,10/01/2019,0,675,675,HOS4,,Homelessness,B&B Accommodation,64401
http://statistics.data.gov.uk/id/local-authority/12UE,Huntingdonshire District Council,200673,RENT CONNECT RENT CONNECT,10000,01/01/2019,RC-HDC050,Dec-18,10/01/2019,0,825,825,HOS4,,Homelessness,B&B Accommodation,64401
http://statistics.data.gov.uk/id/local-authority/12UE,Huntingdonshire District Council,200673,RENT CONNECT RENT CONNECT,10000,01/01/2019,RC-HDC050,Dec-18,10/01/2019,0,675,675,HOS4,,Homelessness,B&B Accommodation,64401
http://statistics.data.gov.uk/id/local-authority/12UE,Huntingdonshire District Council,200673,RENT CONNECT RENT CONNECT,10000,01/01/2019,RC-HDC050,Dec-18,10/01/2019,0,675,675,,,Homelessness,B&B Accommodation,64401
http://statistics.data.gov.uk/id/local-authority/12UE,Huntingdonshire District Council,200673,RENT CONNECT RENT CONNECT,10000,01/01/2019,RC-HDC050,Dec-18,10/01/2019,0,570,570,,,Homelessness,B&B Accommodation,64401
http://statistics.data.gov.uk/id/local-authority/12UE,Huntingdonshire District Council,200673,RENT CONNECT RENT CONNECT,10000,01/01/2019,RC-HDC050,Dec-18,10/01/2019,0,570,570,HOS4,,Homelessness,B&B Accommodation,64401
http://statistics.data.gov.uk/id/local-authority/12UE,Huntingdonshire District Council,200673,RENT CONNECT RENT CONNECT,10000,01/01/2019,RC-HDC050,Dec-18,10/01/2019,0,675,675,HOS4,,Homelessness,B&B Accommodation,64401
http://statistics.data.gov.uk/id/local-authority/12UE,Huntingdonshire District Council,200673,RENT CONNECT RENT CONNECT,10000,01/01/2019,RC-HDC050,Dec-18,10/01/2019,0,675,675,HOS3,,Homelessness,B&B Accommodation,64401
http://statistics.data.gov.uk/id/local-authority/12UE,Huntingdonshire District Council,200673,RENT CONNECT RENT CONNECT,10000,01/01/2019,RC-HDC050,Dec-18,10/01/2019,0,675,675,HOS4,,Homelessness,B&B Accommodation,64401
http://statistics.data.gov.uk/id/local-authority/12UE,Huntingdonshire District Council,200673,RENT CONNECT RENT CONNECT,10000,01/01/2019,RC-HDC050,Dec-18,10/01/2019,0,570,570,HOS1,,Homelessness,B&B Accommodation,64401
http://statistics.data.gov.uk/id/local-authority/12UE,Huntingdonshire District Council,200673,RENT CONNECT RENT CONNECT,10000,01/01/2019,RC-HDC050,Dec-18,10/01/2019,0,525,525,HOS1,,Homelessness,B&B Accommodation,64401
http://statistics.data.gov.uk/id/local-authority/12UE,Huntingdonshire District Council,200673,RENT CONNECT RENT CONNECT,10000,01/01/2019,RC-HDC050,Dec-18,10/01/2019,0,38,38,,HOS99,Homelessness,B&B Accommodation,64401
http://statistics.data.gov.uk/id/local-authority/12UE,Huntingdonshire District Council,200673,RENT CONNECT RENT CONNECT,10000,01/01/2019,RC-HDC050,Dec-18,10/01/2019,0,660,660,,HOS99,Homelessness,B&B Accommodation,64401
http://statistics.data.gov.uk/id/local-authority/12UE,Huntingdonshire District Council,200673,RENT CONNECT RENT CONNECT,10000,01/01/2019,RC-HDC050,Dec-18,10/01/2019,0,675,675,HOS1,,Homelessness,B&B Accommodation,64401
http://statistics.data.gov.uk/id/local-authority/12UE,Huntingdonshire District Council,200673,RENT CONNECT RENT CONNECT,10000,01/01/2019,RC-HDC050,Dec-18,10/01/2019,0,675,675,HOS1,,Homelessness,B&B Accommodation,64401
http://statistics.data.gov.uk/id/local-authority/12UE,Huntingdonshire District Council,200673,RENT CONNECT RENT CONNECT,10000,01/01/2019,RC-HDC050,Dec-18,10/01/2019,0,675,675,HOS1,,Homelessness,B&B Accommodation,64401
http://statistics.data.gov.uk/id/local-authority/12UE,Huntingdonshire District Council,200673,RENT CONNECT RENT CONNECT,10000,01/01/2019,RC-HDC050,Dec-18,10/01/2019,0,675,675,HOS3,,Homelessness,B&B Accommodation,64401
http://statistics.data.gov.uk/id/local-authority/12UE,Huntingdonshire District Council,200673,RENT CONNECT RENT CONNECT,10000,01/01/2019,RC-HDC050,Dec-18,10/01/2019,0,630,630,,,Homelessness,B&B Accommodation,64401
http://statistics.data.gov.uk/id/local-authority/12UE,Huntingdonshire District Council,200673,RENT CONNECT RENT CONNECT,10000,01/01/2019,RC-HDC050,Dec-18,10/01/2019,0,456,456,HOS3,,Homelessness,B&B Accommodation,64401
http://statistics.data.gov.uk/id/local-authority/12UE,Huntingdonshire District Council,200059,ARLINGCLOSE ARLINGCLOSE,10001,07/01/2019,ACC440,STANDARD GAS DUE DILIGENCE,31/01/2019,"1,695.00","8,475.00","10,170.00",HOS4,,Standard Gas Plant,Consultancy Fees,62400
http://statistics.data.gov.uk/id/local-authority/12UE,Huntingdonshire District Council,200434,JADE SECURITY SERVICES LTD JADE SECURITY SERVICES LTD,10002,31/12/2018,18657,NON PARKING CASH COLLECTIONS,24/01/2019,64.17,320.85,385.02,,,OLSN - Site & Centre Management,Contract Charges ,61800
http://statistics.data.gov.uk/id/local-authority/12UE,Huntingdonshire District Council,200434,JADE SECURITY SERVICES LTD JADE SECURITY SERVICES LTD,10002,31/12/2018,18657,NON PARKING CASH COLLECTIONS,24/01/2019,44.64,223.2,267.84,HOS4,,OLH - Site & Centre Management,Contract Charges ,61800
http://statistics.data.gov.uk/id/local-authority/12UE,Huntingdonshire District Council,200434,JADE SECURITY SERVICES LTD JADE SECURITY SERVICES LTD,10002,31/12/2018,18657,NON PARKING CASH COLLECTIONS,24/01/2019,33.48,167.4,200.88,,,OLSI - Site & Centre Management,Contract Charges ,61800
http://statistics.data.gov.uk/id/local-authority/12UE,Huntingdonshire District Council,200434,JADE SECURITY SERVICES LTD JADE SECURITY SERVICES LTD,10002,31/12/2018,18657,NON PARKING CASH COLLECTIONS,24/01/2019,8.37,41.85,50.22,,,OLR - Site & Centre Management,Contract Charges ,61800
http://statistics.data.gov.uk/id/local-authority/12UE,Huntingdonshire District Council,200434,JADE SECURITY SERVICES LTD JADE SECURITY SERVICES LTD,10002,31/12/2018,18657,NON PARKING CASH COLLECTIONS,24/01/2019,8.37,41.85,50.22,,,OLS - Site & Centre Management,Contract Charges ,61800
http://statistics.data.gov.uk/id/local-authority/12UE,Huntingdonshire District Council,200434,JADE SECURITY SERVICES LTD JADE SECURITY SERVICES LTD,10002,31/12/2018,18657,NON PARKING CASH COLLECTIONS,24/01/2019,53.01,265.05,318.06,HOS4,,Corporate Finance (Non Cm),Contract Charges ,61800
http://statistics.data.gov.uk/id/local-authority/12UE,Huntingdonshire District Council,200434,JADE SECURITY SERVICES LTD JADE SECURITY SERVICES LTD,10002,31/12/2018,18657,NON PARKING CASH COLLECTIONS,24/01/2019,8.37,41.85,50.22,HOS4,,Hinchingbrooke Park Cafe,Contract Charges ,61800
http://statistics.data.gov.uk/id/local-authority/12UE,Huntingdonshire District Council,201006,ASHCO BUILDING & MAINTENANCE SERVICES LTD,10007,22/11/2018,AC0214641,180359,10/01/2019,0,"5,844.03","5,844.03",,,Disabled Facilities Grants,Mandatory Grants,64601
http://statistics.data.gov.uk/id/local-authority/12UE,Huntingdonshire District Council,200739,SQUIRES & SON LTD SQUIRES & SON LTD,10008,29/11/2018,INV000202,180363,10/01/2019,0,"5,453.00","5,453.00",,,Disabled Facilities Grants,Mandatory Grants,64601
http://statistics.data.gov.uk/id/local-authority/12UE,Huntingdonshire District Council,200058,ARCHANT HERTS AND CAMBS ARCHANT HERTS AND CAMBS,10009,05/01/2019,82953492,HUNTS POST 02-03/01/19,31/01/2019,339.84,"1,699.20","2,039.04",HOS3,,Licensing Common Costs,"Advertising, Publicity And Marketing",62005
http://statistics.data.gov.uk/id/local-authority/12UE,Huntingdonshire District Council,201343,INGLETON WOOD LLP,10010,31/12/2018,503919/FH,ALMS CLOSE REDEVELOPMENT,24/01/2019,63.2,316,379.2,,,Alms Close,Consultancy Fees,62400
http://statistics.data.gov.uk/id/local-authority/12UE,Huntingdonshire District Council,200693,ROGER HYDE LIMITED ROGER HYDE LIMITED,10011,21/12/2018,RHFL0005,ONE LEISURE HUNTINGDON,17/01/2019,705.8,"3,529.00","4,234.80",,,Hunt Leis C -Gen Improve (Cs),Maintenance - Building,60201
http://statistics.data.gov.uk/id/local-authority/12UE,Huntingdonshire District Council,201437,ANNE CORDER RECRUITMENT,10014,22/12/2018,64591,REDACTED,17/01/2019,81.48,407.4,488.88,,,HR Services,Consultancy Fees,62400
http://statistics.data.gov.uk/id/local-authority/12UE,Huntingdonshire District Council,201493,IPP EDUCATION LTD,10015,12/12/2018,INV-23210-N3H5,COURSE FEE 16/01/19,10/01/2019,323.2,"1,616.00","1,939.20",HOS4,,HR Services,Staff Development And Training,60115
http://statistics.data.gov.uk/id/local-authority/12UE,Huntingdonshire District Council,200225,DACLA PROPERTY SERVICES DACLA PROPERTY SERVICES,10021,31/12/2018,68,ONE LEISURE HUNTINGDON,10/01/2019,0,991,991,HOS4,,Hunt Leis C -Gen Improve (Cs),Maintenance - Building,60201
http://statistics.data.gov.uk/id/local-authority/12UE,Huntingdonshire District Council,200344,GLOBAL RADIO SERVICES LTD GLOBAL RADIO SERVICES LTD,10035,30/11/2018,1167358,ONE LEISURE ST IVES,17/01/2019,335.21,"1,676.07","2,011.28",HOS1,,One Leisure Support Team,"Advertising, Publicity And Marketing",62005
http://statistics.data.gov.uk/id/local-authority/12UE,Huntingdonshire District Council,200149,CAMBRIDGE CITY COUNCIL CAMBRIDGE CITY COUNCIL,10036,28/12/2018,12019755,Q3 BUDGETED FEES DUE TO CHIA,24/01/2019,0,"59,954.40","59,954.40",HOS3,,Disabled Facilities Grants,Home Improvement Agency Fees,67200
http://statistics.data.gov.uk/id/local-authority/12UE,Huntingdonshire District Council,201006,ASHCO BUILDING & MAINTENANCE SERVICES LTD,10037,11/10/2018,AC0214607,180208,17/01/2019,0,"6,940.00","6,940.00",,,Disabled Facilities Grants,Mandatory Grants,64601
http://statistics.data.gov.uk/id/local-authority/12UE,Huntingdonshire District Council,200913,WAVE  ANGLIAN WATER BUSINESS,10038,04/01/2019,9072178805,"CARAVAN SITE, HOWITTS LANE EYNESBURY",31/01/2019,0,"7,529.97","7,529.97",HOS4,,Mobile Home Park,Water And Sewerage,60302
http://statistics.data.gov.uk/id/local-authority/12UE,Huntingdonshire District Council,200786,THE POOL & SPA SPECIALISTS LTD THE POOL & SPA SPECIALISTS LTD,10039,07/01/2019,10437,ONE LEISURE ST IVES,31/01/2019,162.4,812,974.4,,,OLSI - Site & Centre Management,Maintenance - Building,60201
http://statistics.data.gov.uk/id/local-authority/12UE,Huntingdonshire District Council,200786,THE POOL & SPA SPECIALISTS LTD THE POOL & SPA SPECIALISTS LTD,10040,07/01/2019,10438,ONE LEISURE ST IVES,31/01/2019,554,"2,770.00","3,324.00",HOS7,,OLSI - Site & Centre Management,Maintenance - Building,60201
http://statistics.data.gov.uk/id/local-authority/12UE,Huntingdonshire District Council,200302,FOCUS CONSULTANTS 2010 LLP FOCUS CONSULTANTS 2010 LLP,10041,01/01/2019,3893,ONE LEISURE ST IVES,24/01/2019,60,300,360,HOS4,,OL St Neots Pool Building,Maintenance - Building,60201
http://statistics.data.gov.uk/id/local-authority/12UE,Huntingdonshire District Council,200344,GLOBAL RADIO SERVICES LTD GLOBAL RADIO SERVICES LTD,10045,30/11/2018,1167356,ONE LEISURE ST IVES,17/01/2019,148,740,888,HOS7,,OLSI - Burgess Hall,"Advertising, Publicity And Marketing",62005
http://statistics.data.gov.uk/id/local-authority/12UE,Huntingdonshire District Council,200639,PRISM MEDICAL UK PRISM MEDICAL UK,10046,24/12/2018,5306666,18061,17/01/2019,0,"2,278.20","2,278.20",HOS4,,Disabled Facilities Grants,Mandatory Grants,64601
http://statistics.data.gov.uk/id/local-authority/12UE,Huntingdonshire District Council,200755,SUPERIOR FINISH (CONTRACTS) LTD SUPERIOR FINISH (CONTRACTS) LTD,10050,07/01/2019,14466,ONE LEISURE ST NEOTS,31/01/2019,105.88,529.39,635.27,HOS3,,OLSN - Site & Centre Management,Maintenance - Building,60201
http://statistics.data.gov.uk/id/local-authority/12UE,Huntingdonshire District Council,200550,MORGAN HUNT PUBLIC UK LTD MORGAN HUNT PUBLIC UK LTD,10053,06/01/2019,1092239,REDACTED,31/01/2019,120,600.02,720.02,,,Benefits Management,Agency Staff,60011
http://statistics.data.gov.uk/id/local-authority/12UE,Huntingdonshire District Council,200677,RICARDO-AEA LTD RICARDO-AEA LTD,10054,08/01/2019,6176532,ENVIRONMENTAL PLANNING SEMINAR,31/01/2019,25,125,150,,,HR Services,Staff Development And Training,60115
http://statistics.data.gov.uk/id/local-authority/12UE,Huntingdonshire District Council,200677,RICARDO-AEA LTD RICARDO-AEA LTD,10054,08/01/2019,6176532,ENVIRONMENTAL PLANNING SEMINAR,31/01/2019,25,125,150,HOS5,,HR Services,Staff Development And Training,60115
http://statistics.data.gov.uk/id/local-authority/12UE,Huntingdonshire District Council,200462,KING BROS KING BROS,10055,03/01/2019,988095,COUNTRY PARK,31/01/2019,23.66,118.32,141.98,,,Hinchingbrooke Park Cafe,Catering Supplies,61900
http://statistics.data.gov.uk/id/local-authority/12UE,Huntingdonshire District Council,200462,KING BROS KING BROS,10055,03/01/2019,988095,COUNTRY PARK,31/01/2019,0,169.14,169.14,,,Hinchingbrooke Park Cafe,Catering Supplies,61900
http://statistics.data.gov.uk/id/local-authority/12UE,Huntingdonshire District Council,200462,KING BROS KING BROS,10056,07/01/2019,988489,COUNTRY PARK,31/01/2019,31.56,157.82,189.38,,,Hinchingbrooke Park Cafe,Catering Supplies,61900
http://statistics.data.gov.uk/id/local-authority/12UE,Huntingdonshire District Council,200462,KING BROS KING BROS,10056,07/01/2019,988489,COUNTRY PARK,31/01/2019,0,272.46,272.46,HOS3,,Hinchingbrooke Park Cafe,Catering Supplies,61900
http://statistics.data.gov.uk/id/local-authority/12UE,Huntingdonshire District Council,200017,ACCESS & AUTOMATION LTD ACCESS & AUTOMATION LTD,10057,02/01/2019,4950,REDACTED,24/01/2019,0,"3,264.00","3,264.00",,,Disabled Facilities Grants,Mandatory Grants,64601
http://statistics.data.gov.uk/id/local-authority/12UE,Huntingdonshire District Council,200113,BOOKER CASH AND CARRY BOOKER CASH AND CARRY,10059,10/01/2019,2107063312,COUNTRY PARK,07/02/2019,39.23,196.14,235.37,,,Hinchingbrooke Park Cafe,Catering Supplies,61900
http://statistics.data.gov.uk/id/local-authority/12UE,Huntingdonshire District Council,200113,BOOKER CASH AND CARRY BOOKER CASH AND CARRY,10059,10/01/2019,2107063312,COUNTRY PARK,07/02/2019,0,70.58,70.58,,,Hinchingbrooke Park Cafe,Catering Supplies,61900
http://statistics.data.gov.uk/id/local-authority/12UE,Huntingdonshire District Council,200377,HONEYWELL NOVAR SYSTEMS HONEYWELL NOVAR SYSTEMS,10062,01/01/2019,7080733264,ONE LEISURE ST IVES,24/01/2019,117.76,588.81,706.57,,,OLSI - Site & Centre Management,Fire Assessment And Safety,60205
http://statistics.data.gov.uk/id/local-authority/12UE,Huntingdonshire District Council,200786,THE POOL & SPA SPECIALISTS LTD THE POOL & SPA SPECIALISTS LTD,10063,07/01/2019,10434,ONE LEISURE ST IVES,31/01/2019,163.6,818,981.6,,,OLSI - Site & Centre Management,Maintenance - Building,60201
http://statistics.data.gov.uk/id/local-authority/12UE,Huntingdonshire District Council,200786,THE POOL & SPA SPECIALISTS LTD THE POOL & SPA SPECIALISTS LTD,10064,07/01/2019,10435,ONE LEISURE ST IVES,31/01/2019,61.8,309,370.8,,,OLSI - Site & Centre Management,Maintenance - Building,60201
http://statistics.data.gov.uk/id/local-authority/12UE,Huntingdonshire District Council,200786,THE POOL & SPA SPECIALISTS LTD THE POOL & SPA SPECIALISTS LTD,10065,07/01/2019,10436,ONE LEISURE ST IVES,31/01/2019,199.8,999,"1,198.80",HOS3,,OLSI - Site & Centre Management,Maintenance - Building,60201
http://statistics.data.gov.uk/id/local-authority/12UE,Huntingdonshire District Council,200166,CAPITA CAPITA,10068,08/01/2019,6003850312,REDACTED,31/01/2019,195,975,"1,170.00",HOS1,,SCDC Recoverable,Consultancy Fees,62400
http://statistics.data.gov.uk/id/local-authority/12UE,Huntingdonshire District Council,201110,CUSHMAN & WAKEFIELD DEBENHAM TIE LEUNG LTD,10069,31/07/2018,GB3002-CI-18-07876,LOCAL PLAN GROWTH VIABILITY ASSESSMENT,17/01/2019,180,900,"1,080.00",,,Local Plan Prep (Excl Inq),Consultancy Fees,62400
http://statistics.data.gov.uk/id/local-authority/12UE,Huntingdonshire District Council,200427,J A K  SYSTEMS LTD J A K SYSTEMS LTD,10070,17/12/2018,10388,ONE LEISURE RAMSEY,17/01/2019,30.36,151.8,182.16,HOS1,,OLH - Swimming,Maintenance - Building,60201
http://statistics.data.gov.uk/id/local-authority/12UE,Huntingdonshire District Council,200427,J A K  SYSTEMS LTD J A K SYSTEMS LTD,10070,17/12/2018,10388,ONE LEISURE RAMSEY,17/01/2019,119.01,595.05,714.06,HOS1,,OLR - Swimming,Maintenance - Building,60201
http://statistics.data.gov.uk/id/local-authority/12UE,Huntingdonshire District Council,200427,J A K  SYSTEMS LTD J A K SYSTEMS LTD,10070,17/12/2018,10388,ONE LEISURE RAMSEY,17/01/2019,100.77,503.87,604.64,,,OLS - Swimming,Maintenance - Building,60201
http://statistics.data.gov.uk/id/local-authority/12UE,Huntingdonshire District Council,200427,J A K  SYSTEMS LTD J A K SYSTEMS LTD,10070,17/12/2018,10388,ONE LEISURE RAMSEY,17/01/2019,90,450,540,HOS3,,OLSI - Swimming,Maintenance - Building,60201
http://statistics.data.gov.uk/id/local-authority/12UE,Huntingdonshire District Council,200427,J A K  SYSTEMS LTD J A K SYSTEMS LTD,10070,17/12/2018,10388,ONE LEISURE RAMSEY,17/01/2019,92.97,464.85,557.82,HOS3,,OLSN - Swimming,Maintenance - Building,60201
http://statistics.data.gov.uk/id/local-authority/12UE,Huntingdonshire District Council,200788,THOMSON REUTERS THOMSON REUTERS,10071,01/01/2019,6800701104,SUBSCRIPTION 19/12/18 - 18/12/19,24/01/2019,216.58,"1,082.90","1,299.48",,,Statutory Nuisances,Membership And Subscriptions,64800
http://statistics.data.gov.uk/id/local-authority/12UE,Huntingdonshire District Council,200788,THOMSON REUTERS THOMSON REUTERS,10071,01/01/2019,6800701104,SUBSCRIPTION 19/12/18 - 18/12/19,24/01/2019,247.52,"1,237.60","1,485.12",,,Private Sector Housing,Membership And Subscriptions,64800
http://statistics.data.gov.uk/id/local-authority/12UE,Huntingdonshire District Council,200788,THOMSON REUTERS THOMSON REUTERS,10071,01/01/2019,6800701104,SUBSCRIPTION 19/12/18 - 18/12/19,24/01/2019,154.7,773.5,928.2,,,Licensing Common Costs,Membership And Subscriptions,64800
http://statistics.data.gov.uk/id/local-authority/12UE,Huntingdonshire District Council,200101,BID HUNTINGDON BID HUNTINGDON,10072,04/01/2019,INV-1785,BID LEVY,17/01/2019,"7,395.15","36,975.75","44,370.90",,,Bid Revenue Account,Payment Of Amount Due,23003
http://statistics.data.gov.uk/id/local-authority/12UE,Huntingdonshire District Council,200434,JADE SECURITY SERVICES LTD JADE SECURITY SERVICES LTD,10074,31/12/2018,18658,PARKING CASH COLLECTIONS,24/01/2019,820.8,"4,104.00","4,924.80",,,Car Parks Operational Mgt,Contract Charges ,61800
http://statistics.data.gov.uk/id/local-authority/12UE,Huntingdonshire District Council,200131,BROXAP LTD BROXAP LTD,10075,07/01/2019,INV241023,REMOVABLE MILD STEEL BOLLARD,31/01/2019,53.8,269,322.8,HOS4,,Env Imps Management,Maintenance - Building,60201
http://statistics.data.gov.uk/id/local-authority/12UE,Huntingdonshire District Council,200395,HYGIENE SOLUTIONS & SYSTEMS LTD HYGIENE SOLUTIONS,10081,27/01/2019,36177,PFH,21/02/2019,71.42,357.11,428.53,HOS4,,Pathfinder House,Maintenance - Building,60201
http://statistics.data.gov.uk/id/local-authority/12UE,Huntingdonshire District Council,200478,LATTENBURY SERVICES LATTENBURY SERVICES,10082,04/01/2019,12639,MULTI STOREY CAR PARK - TRAINING,31/01/2019,120,600,720,,,Huntingdon Multi Storey,Maintenance - Building,60201
http://statistics.data.gov.uk/id/local-authority/12UE,Huntingdonshire District Council,200478,LATTENBURY SERVICES LATTENBURY SERVICES,10082,04/01/2019,12639,MULTI STOREY CAR PARK - TRAINING,31/01/2019,90,450,540,,,Huntingdon Multi Storey,Maintenance - Building,60201
http://statistics.data.gov.uk/id/local-authority/12UE,Huntingdonshire District Council,200478,LATTENBURY SERVICES LATTENBURY SERVICES,10082,04/01/2019,12639,MULTI STOREY CAR PARK - TRAINING,31/01/2019,108,540,648,,,Huntingdon Multi Storey,Maintenance - Building,60201
http://statistics.data.gov.uk/id/local-authority/12UE,Huntingdonshire District Council,201140,GROUND ENGINEERING,10087,24/10/2018,GE5259,ALMS CLOSE,17/01/2019,267.8,"1,339.00","1,606.80",,,Alms Close,Other Land & Buildings Cost,11103
http://statistics.data.gov.uk/id/local-authority/12UE,Huntingdonshire District Council,201140,GROUND ENGINEERING,10087,24/10/2018,GE5259,ALMS CLOSE,17/01/2019,554.8,"2,774.00","3,328.80",,,Alms Close,Other Land & Buildings Cost,11103
http://statistics.data.gov.uk/id/local-authority/12UE,Huntingdonshire District Council,200050,ANTALIS LTD ANTALIS LTD,10102,17/07/2018,7876437,XEROX PAPER,15/01/2019,92.2,461,553.2,HOS4,,Document Centre,Paper,62803
http://statistics.data.gov.uk/id/local-authority/12UE,Huntingdonshire District Council,200489,LES MILLS UK LES MILLS UK,10112,08/11/2018,SIV283926,ONE LEISURE ST IVES,17/01/2019,52.61,263.05,315.66,,,OLSI - Site & Centre Management,Licences,60410
http://statistics.data.gov.uk/id/local-authority/12UE,Huntingdonshire District Council,200746,STARLITE ROADSHOW STARLITE ROADSHOW,10115,15/01/2019,PRF150119,22.12.18 BOOGIE NIGHTS AFTER COSTS,07/02/2019,0,"3,709.86","3,709.86",,,OLSI - Burgess Hall,Entertainments,64079
http://statistics.data.gov.uk/id/local-authority/12UE,Huntingdonshire District Council,201505,TOP HEIGHT TRAINING LTD,10116,20/11/2018,INV302724,TRAINING 15/11/18,17/01/2019,99,495,594,,,Street Cleansing,Staff Development And Training,60115
http://statistics.data.gov.uk/id/local-authority/12UE,Huntingdonshire District Council,201505,TOP HEIGHT TRAINING LTD,10117,20/11/2018,INV302722,TRAINING 14/11/18,17/01/2019,99,495,594,HOS4,,Street Cleansing,Staff Development And Training,60115
http://statistics.data.gov.uk/id/local-authority/12UE,Huntingdonshire District Council,201494,HATTON BOXING,10119,04/01/2019,1066,ONE LEISURE HUNTINGDON,31/01/2019,86.33,431.67,518,,,HR Services,Staff Development And Training,60115
http://statistics.data.gov.uk/id/local-authority/12UE,Huntingdonshire District Council,201504,REDACTED,10121,08/01/2019,80119,BURGESS HALL PANTOMIME,17/01/2019,0,"1,369.04","1,369.04",,,OLSI - Burgess Hall,Entertainments,64079
http://statistics.data.gov.uk/id/local-authority/12UE,Huntingdonshire District Council,201506,REDACTED,10123,08/01/2019,100,BURGESS HALL PANTOMIME,17/01/2019,0,250,250,HOS4,,OLSI - Burgess Hall,Entertainments,64079
http://statistics.data.gov.uk/id/local-authority/12UE,Huntingdonshire District Council,200354,HACT HACT,10124,31/12/2018,1317,COMMUNITY TRANSPORT,24/01/2019,0,"1,496.50","1,496.50",,,Concessionary Fares,Grants And Contributions,64600
http://statistics.data.gov.uk/id/local-authority/12UE,Huntingdonshire District Council,200058,ARCHANT HERTS AND CAMBS ARCHANT HERTS AND CAMBS,10126,05/01/2019,82953490,BURGESS HALL EVENTS,31/01/2019,62.4,312,374.4,HOS3,,OLSI - Burgess Hall,"Advertising, Publicity And Marketing",62005
http://statistics.data.gov.uk/id/local-authority/12UE,Huntingdonshire District Council,200147,CALE ACCESS UK LTD CALE ACCESS UK LTD,10127,21/12/2018,135384,CAR PARK MACHINES,17/01/2019,643.61,"3,218.04","3,861.65",HOS3,,Car Parks Operational Mgt,Cark Park Machines,61707
http://statistics.data.gov.uk/id/local-authority/12UE,Huntingdonshire District Council,201507,THOMPSON PROPERTY PRESERVATION,10130,25/04/2018,IST/TPP/2910,REDACTED,17/01/2019,0,"2,685.00","2,685.00",,,Disabled Facilities Grants,Mandatory Grants,64601
http://statistics.data.gov.uk/id/local-authority/12UE,Huntingdonshire District Council,200991,THOMPSON MEDIA PARTNERS,10133,02/01/2019,127109,ONE LEISURE ST IVES,24/01/2019,60,300,360,,,OLSI - Burgess Hall,"Advertising, Publicity And Marketing",62005
http://statistics.data.gov.uk/id/local-authority/12UE,Huntingdonshire District Council,200725,SMI GROUP SMI GROUP,10135,10/01/2019,INV582917,WORK WEAR,07/02/2019,1.79,8.95,10.74,HOS4,,Domestic Waste Collection,"Clothes, Uniform And Laundry",62000
http://statistics.data.gov.uk/id/local-authority/12UE,Huntingdonshire District Council,200725,SMI GROUP SMI GROUP,10135,10/01/2019,INV582917,WORK WEAR,07/02/2019,3.69,18.44,22.13,HOS4,,Domestic Waste Collection,"Clothes, Uniform And Laundry",62000
http://statistics.data.gov.uk/id/local-authority/12UE,Huntingdonshire District Council,200725,SMI GROUP SMI GROUP,10135,10/01/2019,INV582917,WORK WEAR,07/02/2019,11.06,55.3,66.36,,,Domestic Waste Collection,"Clothes, Uniform And Laundry",62000
http://statistics.data.gov.uk/id/local-authority/12UE,Huntingdonshire District Council,200725,SMI GROUP SMI GROUP,10135,10/01/2019,INV582917,WORK WEAR,07/02/2019,67.5,337.5,405,HOS4,,Domestic Waste Collection,"Clothes, Uniform And Laundry",62000
http://statistics.data.gov.uk/id/local-authority/12UE,Huntingdonshire District Council,200725,SMI GROUP SMI GROUP,10135,10/01/2019,INV582917,WORK WEAR,07/02/2019,-0.01,0,-0.01,,,St Ives Enterprise Centre,Over/Under VAT Rounding,68350
http://statistics.data.gov.uk/id/local-authority/12UE,Huntingdonshire District Council,200356,HALL FUELS HALL FUELS,10137,19/12/2018,I10651465,DIESEL,17/01/2019,"3,046.73","15,233.65","18,280.38",HOS4,,Operations Diesel Stock,General Stock Account,11601
http://statistics.data.gov.uk/id/local-authority/12UE,Huntingdonshire District Council,201114,XP RECRUITMENT LTD,10139,09/01/2019,6973,W/E 05/01/19,31/01/2019,172.64,863.2,"1,035.84",HOS4,,Domestic Waste Collection,Agency Staff,60011
http://statistics.data.gov.uk/id/local-authority/12UE,Huntingdonshire District Council,201114,XP RECRUITMENT LTD,10139,09/01/2019,6973,W/E 05/01/19,31/01/2019,166,830,996,,,Recycling Collections,Agency Staff,60011
http://statistics.data.gov.uk/id/local-authority/12UE,Huntingdonshire District Council,201114,XP RECRUITMENT LTD,10139,09/01/2019,6973,W/E 05/01/19,31/01/2019,166,830,996,,,Green Waste Collection,Agency Staff,60011
http://statistics.data.gov.uk/id/local-authority/12UE,Huntingdonshire District Council,200478,LATTENBURY SERVICES LATTENBURY SERVICES,10142,04/01/2019,12640,"FLAILING WORKS, DULOE BROOK ST NEOTS",31/01/2019,671,"3,355.00","4,026.00",,,Watercourses,Site Alterations And Materials,60273
http://statistics.data.gov.uk/id/local-authority/12UE,Huntingdonshire District Council,200156,CAMBRIDGE VENDING CAMBRIDGE VENDING,10143,28/12/2018,206842,FACILITIES,24/01/2019,61.1,305.49,366.59,,,Eastfield House,Sale Of Food & Drink,51209
http://statistics.data.gov.uk/id/local-authority/12UE,Huntingdonshire District Council,200156,CAMBRIDGE VENDING CAMBRIDGE VENDING,10143,28/12/2018,206842,FACILITIES,24/01/2019,-0.01,0,-0.01,HOS99,,St Ives Enterprise Centre,Over/Under VAT Rounding,68350
http://statistics.data.gov.uk/id/local-authority/12UE,Huntingdonshire District Council,200420,INTERACTION RECRUITMENT PLC INTERACTION RECRUITMENT PLC,10151,06/01/2019,INV1930625,REDACTED,31/01/2019,88.26,441.3,529.56,,,Document Centre,Agency Staff,60011
http://statistics.data.gov.uk/id/local-authority/12UE,Huntingdonshire District Council,200072,B & H DIGITAL LTD B & H DIGITAL LTD,10152,10/01/2019,30712,PRINTING,07/02/2019,0,"1,239.92","1,239.92",HOS3,,Printing,"Maintenance - Equipment, Furniture And Materials",61702
http://statistics.data.gov.uk/id/local-authority/12UE,Huntingdonshire District Council,200072,B & H DIGITAL LTD B & H DIGITAL LTD,10152,10/01/2019,30712,PRINTING,07/02/2019,7.91,39.54,47.45,,,Printing,"Maintenance - Equipment, Furniture And Materials",61702
http://statistics.data.gov.uk/id/local-authority/12UE,Huntingdonshire District Council,200165,CANON UK LTD CANON UK LTD,10154,02/01/2019,9241709,,24/01/2019,225.95,"1,129.75","1,355.70",HOS6,,Printing,"Maintenance - Equipment, Furniture And Materials",61702
http://statistics.data.gov.uk/id/local-authority/12UE,Huntingdonshire District Council,200511.01,LUMINUS HOMES (PRIVATE RENTS),10157,10/01/2019,510190,H/L PREVENTION PAYMENT,17/01/2019,0,800,800,,,Homelessness,Homeless Prevention Payments,64403
http://statistics.data.gov.uk/id/local-authority/12UE,Huntingdonshire District Council,200698,ROYAL MAIL GROUP LTD ROYAL MAIL GROUP LTD,10162,07/01/2019,9058017423,POLL CARD MAILINGS,31/01/2019,279.56,"1,397.78","1,677.34",HOS3,,Post Handling,Postage And Courier Services,64100
http://statistics.data.gov.uk/id/local-authority/12UE,Huntingdonshire District Council,200698,ROYAL MAIL GROUP LTD ROYAL MAIL GROUP LTD,10162,07/01/2019,9058017423,POLL CARD MAILINGS,31/01/2019,83.51,417.58,501.09,HOS3,,Electoral Registration,Postage And Courier Services,64100
http://statistics.data.gov.uk/id/local-authority/12UE,Huntingdonshire District Council,200698,ROYAL MAIL GROUP LTD ROYAL MAIL GROUP LTD,10162,07/01/2019,9058017423,POLL CARD MAILINGS,31/01/2019,69.96,349.81,419.77,,,Benefits Management,Postage And Courier Services,64100
http://statistics.data.gov.uk/id/local-authority/12UE,Huntingdonshire District Council,200698,ROYAL MAIL GROUP LTD ROYAL MAIL GROUP LTD,10162,07/01/2019,9058017423,POLL CARD MAILINGS,31/01/2019,0.01,0,0.01,,,St Ives Enterprise Centre,Over/Under VAT Rounding,68350
http://statistics.data.gov.uk/id/local-authority/12UE,Huntingdonshire District Council,200698,ROYAL MAIL GROUP LTD ROYAL MAIL GROUP LTD,10163,07/01/2019,9058016944,OPS DEPOT,31/01/2019,69.66,348.32,417.98,,,Electoral Registration,Postage And Courier Services,64100
http://statistics.data.gov.uk/id/local-authority/12UE,Huntingdonshire District Council,201383,HOLME VILLAGE HALL,10164,16/01/2019,PRF160119,COMMUNITY CHEST AWARDS 2018/19,07/02/2019,0,"2,500.00","2,500.00",,,Voluntary Sector Grants,Grants And Contributions,64600
http://statistics.data.gov.uk/id/local-authority/12UE,Huntingdonshire District Council,200167,CAPITA BUSINESS SERVICES LTD CAPITA BUSINESS SERVICES LTD,10165,08/01/2019,6003850311,REDACTED,31/01/2019,95,475,570,,,SCDC Recoverable,Consultancy Fees,62400
http://statistics.data.gov.uk/id/local-authority/12UE,Huntingdonshire District Council,200946,THE COPYRIGHT LICENSING AGENCY LTD,10168,06/11/2018,619354,PUBLIC ADMIN LICENCE,17/01/2019,177.36,886.8,"1,064.16",,,SCDC Recharge Invoices,Ict Software,64071
http://statistics.data.gov.uk/id/local-authority/12UE,Huntingdonshire District Council,200816,VENN GROUP RECRUITMENT VENN GROUP RECRUITMENT,10169,01/11/2018,3471567,REDACTED,17/01/2019,805,"4,025.00","4,830.00",,,IMD Shared Service,Agency Staff,60011
http://statistics.data.gov.uk/id/local-authority/12UE,Huntingdonshire District Council,200614,PHOENIX SOFTWARE LTD PHOENIX SOFTWARE LTD,10170,07/01/2019,OP/I833290,POWEREDGE R540 SERVER,31/01/2019,848.18,"4,240.89","5,089.07",HOS4,,Fms System,Equipment,61713
http://statistics.data.gov.uk/id/local-authority/12UE,Huntingdonshire District Council,200950,DATASTOCK LTD,10171,07/01/2019,431,ANNUAL SUPPORT CHARGE FOR DATASTOX,31/01/2019,340,"1,700.00","2,040.00",,,CCC Recharge Invoices,Ict Software,64071
http://statistics.data.gov.uk/id/local-authority/12UE,Huntingdonshire District Council,200628,PREMIER BUSINESS AUDIO PREMIER BUSINESS AUDIO,10176,03/12/2018,240860,CONTACT CENTRE AUDIO SERVICE,17/01/2019,"1,200.00","6,000.00","7,200.00",HOS4,,CCC Recharge Invoices,Ict Software,64071
http://statistics.data.gov.uk/id/local-authority/12UE,Huntingdonshire District Council,200811,ATOS IT SERVICES UK LTD UNIFY,10177,13/12/2018,6000894829,LAND LINE RENTAL,17/01/2019,"1,630.98","8,154.91","9,785.89",,HOS99,CCC Recharge Invoices,Land Line Rental,64077
http://statistics.data.gov.uk/id/local-authority/12UE,Huntingdonshire District Council,200805,TWOFOLD CONSULTING TWOFOLD CONSULTING,10178,09/01/2019,I37801,CONTRACT RENEWAL,31/01/2019,148.41,742.07,890.48,HOS7,,HDC Recharge Invoices,"Maintenance - Equipment, Furniture And Materials",61702
http://statistics.data.gov.uk/id/local-authority/12UE,Huntingdonshire District Council,200825,VIRGIN MEDIA BUSINESS VIRGIN MEDIA BUSINESS,10179,01/12/2018,930635-058A,BROADBAND LINE RENTAL,17/01/2019,"2,641.57","13,207.86","15,849.43",,,CCC Recharge Invoices,Broadband Line Rental,64080
http://statistics.data.gov.uk/id/local-authority/12UE,Huntingdonshire District Council,200825,VIRGIN MEDIA BUSINESS VIRGIN MEDIA BUSINESS,10181,01/01/2019,930635-059A,BROADBAND LINE RENTAL,24/01/2019,"2,643.08","13,215.39","15,858.47",HOS4,,CCC Recharge Invoices,Broadband Line Rental,64080
http://statistics.data.gov.uk/id/local-authority/12UE,Huntingdonshire District Council,200824,VIRGIN MEDIA VIRGIN MEDIA,10182,01/12/2018,923186-086A,BROADBAND LINE RENTAL,17/01/2019,550.21,"2,751.03","3,301.24",HOS3,,SCDC Recharge Invoices,Broadband Line Rental,64080
http://statistics.data.gov.uk/id/local-authority/12UE,Huntingdonshire District Council,200825,VIRGIN MEDIA BUSINESS VIRGIN MEDIA BUSINESS,10183,01/01/2019,923186-087A,BROADBAND LINE RENTAL,24/01/2019,550.21,"2,751.03","3,301.24",HOS4,,SCDC Recharge Invoices,Broadband Line Rental,64080
http://statistics.data.gov.uk/id/local-authority/12UE,Huntingdonshire District Council,200825,VIRGIN MEDIA BUSINESS VIRGIN MEDIA BUSINESS,10184,01/12/2018,923469-098A,BROADBAND LINE RENTAL,17/01/2019,"2,018.41","10,092.04","12,110.45",,,HDC Recharge Invoices,Broadband Line Rental,64080
http://statistics.data.gov.uk/id/local-authority/12UE,Huntingdonshire District Council,200825,VIRGIN MEDIA BUSINESS VIRGIN MEDIA BUSINESS,10185,01/01/2019,923469-099A,BROADBAND LINE RENTAL,24/01/2019,"2,018.41","10,092.04","12,110.45",,,HDC Recharge Invoices,Broadband Line Rental,64080
http://statistics.data.gov.uk/id/local-authority/12UE,Huntingdonshire District Council,200825,VIRGIN MEDIA BUSINESS VIRGIN MEDIA BUSINESS,10187,01/01/2019,923469-099B,INSTALLATION FEES,24/01/2019,96,480,576,,,Council Anywhere Holding Acc,Installation Fees,64073
http://statistics.data.gov.uk/id/local-authority/12UE,Huntingdonshire District Council,201442,BRIGHTRED RESOURCING LTD,10188,07/01/2019,5607,REDACTED,31/01/2019,"1,296.00","6,480.00","7,776.00",HOS4,,IMD Shared Service,Agency Staff,60011
http://statistics.data.gov.uk/id/local-authority/12UE,Huntingdonshire District Council,201442,BRIGHTRED RESOURCING LTD,10189,07/01/2019,5582,REDACTED,31/01/2019,792,"3,960.00","4,752.00",,,IMD Shared Service,Agency Staff,60011
http://statistics.data.gov.uk/id/local-authority/12UE,Huntingdonshire District Council,200436,JAZ YORKS LTD JAZ YORKS LTD,10193,24/12/2018,384/1121A,REDACTED,17/01/2019,52.5,262.5,315,HOS1,,Homelessness,B&B Accommodation,64401
http://statistics.data.gov.uk/id/local-authority/12UE,Huntingdonshire District Council,200436,JAZ YORKS LTD JAZ YORKS LTD,10194,31/12/2018,384/1124,REDACTED,17/01/2019,52.5,262.5,315,,,Homelessness,B&B Accommodation,64401
http://statistics.data.gov.uk/id/local-authority/12UE,Huntingdonshire District Council,200436,JAZ YORKS LTD JAZ YORKS LTD,10195,27/12/2018,384/1123,REDACTED,17/01/2019,52.5,262.5,315,HOS4,,Homelessness,B&B Accommodation,64401
http://statistics.data.gov.uk/id/local-authority/12UE,Huntingdonshire District Council,200436,JAZ YORKS LTD JAZ YORKS LTD,10196,03/01/2019,384/1126,REDACTED,17/01/2019,52.5,262.5,315,,,Homelessness,B&B Accommodation,64401
http://statistics.data.gov.uk/id/local-authority/12UE,Huntingdonshire District Council,200436,JAZ YORKS LTD JAZ YORKS LTD,10197,24/12/2018,384/1122,REDACTED,17/01/2019,52.5,262.5,315,HOS7,,Homelessness,B&B Accommodation,64401
http://statistics.data.gov.uk/id/local-authority/12UE,Huntingdonshire District Council,200436,JAZ YORKS LTD JAZ YORKS LTD,10198,31/12/2018,384/1125,REDACTED,17/01/2019,52.5,262.5,315,HOS7,,Homelessness,B&B Accommodation,64401
http://statistics.data.gov.uk/id/local-authority/12UE,Huntingdonshire District Council,201006,ASHCO BUILDING & MAINTENANCE SERVICES LTD,10199,17/12/2018,AC0214667,180016,17/01/2019,0,"18,487.92","18,487.92",HOS3,,Disabled Facilities Grants,Mandatory Grants,64601
http://statistics.data.gov.uk/id/local-authority/12UE,Huntingdonshire District Council,200643,PRO-AD LTD PRO-AD LTD,10200,10/01/2019,31422,1000 X TROLLEY COIN KEYRING,07/02/2019,92.56,462.8,555.36,,,OLSI - Site & Centre Management,Goods For Resale,61400
http://statistics.data.gov.uk/id/local-authority/12UE,Huntingdonshire District Council,200643,PRO-AD LTD PRO-AD LTD,10200,10/01/2019,31422,1000 X TROLLEY COIN KEYRING,07/02/2019,23.14,115.7,138.84,,,OLR - Site & Centre Management,Goods For Resale,61400
http://statistics.data.gov.uk/id/local-authority/12UE,Huntingdonshire District Council,200871,SALTASH ENTERPRISES LIMITED SALTASH ENTERPRISES LIMITED,10203,05/12/2018,28299,170778,17/01/2019,0,"8,940.00","8,940.00",,,Disabled Facilities Grants,Mandatory Grants,64601
http://statistics.data.gov.uk/id/local-authority/12UE,Huntingdonshire District Council,200845,WESTMINSTER FOODSERVICE WESTMINSTER FOODSERVICE,10207,10/01/2019,327175,ONE LEISURE ST IVES,07/02/2019,0,83.81,83.81,,,OLSI - Hospitality,Catering Supplies,61900
http://statistics.data.gov.uk/id/local-authority/12UE,Huntingdonshire District Council,200845,WESTMINSTER FOODSERVICE WESTMINSTER FOODSERVICE,10207,10/01/2019,327175,ONE LEISURE ST IVES,07/02/2019,33.08,165.41,198.49,,,OLSI - Hospitality,Bar Provisions,61905
http://statistics.data.gov.uk/id/local-authority/12UE,Huntingdonshire District Council,200845,WESTMINSTER FOODSERVICE WESTMINSTER FOODSERVICE,10207,10/01/2019,327175,ONE LEISURE ST IVES,07/02/2019,3.45,17.25,20.7,,,OLSI - Hospitality,Confectionery,61906
http://statistics.data.gov.uk/id/local-authority/12UE,Huntingdonshire District Council,200845,WESTMINSTER FOODSERVICE WESTMINSTER FOODSERVICE,10207,10/01/2019,327175,ONE LEISURE ST IVES,07/02/2019,3.6,18,21.6,HOS8,,OLSI - Hospitality,Materials,61709
http://statistics.data.gov.uk/id/local-authority/12UE,Huntingdonshire District Council,200845,WESTMINSTER FOODSERVICE WESTMINSTER FOODSERVICE,10207,10/01/2019,327175,ONE LEISURE ST IVES,07/02/2019,-0.01,0,-0.01,,,St Ives Enterprise Centre,Over/Under VAT Rounding,68350
http://statistics.data.gov.uk/id/local-authority/12UE,Huntingdonshire District Council,200026,ADVANTAGE ADVANTAGE,10211,27/12/2018,129666,REDACTED,24/01/2019,42.75,213.75,256.5,HOS3,,City Recoverable,Agency Staff,60011
http://statistics.data.gov.uk/id/local-authority/12UE,Huntingdonshire District Council,200026,ADVANTAGE ADVANTAGE,10211,27/12/2018,129666,REDACTED,24/01/2019,42.75,213.75,256.5,,,SCDC Recoverable,Agency Staff,60011
http://statistics.data.gov.uk/id/local-authority/12UE,Huntingdonshire District Council,200026,ADVANTAGE ADVANTAGE,10212,19/12/2018,129613,REDACTED,17/01/2019,300,"1,500.00","1,800.00",,,City Recoverable,Agency Staff,60011
http://statistics.data.gov.uk/id/local-authority/12UE,Huntingdonshire District Council,200026,ADVANTAGE ADVANTAGE,10213,09/01/2019,12927,REDACTED,31/01/2019,180,900,"1,080.00",HOS3,,City Recoverable,Agency Staff,60011
http://statistics.data.gov.uk/id/local-authority/12UE,Huntingdonshire District Council,200026,ADVANTAGE ADVANTAGE,10214,19/12/2018,129597,REDACTED,17/01/2019,85.5,427.5,513,HOS3,,City Recoverable,Agency Staff,60011
http://statistics.data.gov.uk/id/local-authority/12UE,Huntingdonshire District Council,200026,ADVANTAGE ADVANTAGE,10214,19/12/2018,129597,REDACTED,17/01/2019,85.5,427.5,513,HOS3,,SCDC Recoverable,Agency Staff,60011
http://statistics.data.gov.uk/id/local-authority/12UE,Huntingdonshire District Council,200812,UNINTERRUPTIBLE POWER SUPPLIES LTD UNINTERRUPTIBLE POWER SUPPLIES LTD,10218,10/01/2019,92098,ANNUAL PREMIUM FOR NON COMPREHENSIVE,07/02/2019,339.8,"1,699.00","2,038.80",HOS3,,HDC Recharge Invoices,"Maintenance - Equipment, Furniture And Materials",61702
http://statistics.data.gov.uk/id/local-authority/12UE,Huntingdonshire District Council,200812,UNINTERRUPTIBLE POWER SUPPLIES LTD UNINTERRUPTIBLE POWER SUPPLIES LTD,10219,10/01/2019,92097,ANNUAL PREMIUM FOR NON COMPREHENSIVE,07/02/2019,344.6,"1,723.00","2,067.60",,,HDC Recharge Invoices,"Maintenance - Equipment, Furniture And Materials",61702
http://statistics.data.gov.uk/id/local-authority/12UE,Huntingdonshire District Council,200667,READING AGRICULTURAL CONSULTANTS READING AGRICULTURAL CONSULTANTS,10221,11/01/2019,8267/19/044/P,PLANNING APPLICATION CONSULTATION,07/02/2019,120,600,720,,,Dm Application Processing,Consultancy Fees,62400
http://statistics.data.gov.uk/id/local-authority/12UE,Huntingdonshire District Council,200364,HAYMARKET BUSINESS PUBLICATIONS LTD HAYMARKET BUSINESS PUBLICATIONS LTD,10222,14/01/2019,50157144,CORPORATE PLANNING SUBSCRIPTION,07/02/2019,0,"1,870.00","1,870.00",,,Development Management,Membership And Subscriptions,64800
http://statistics.data.gov.uk/id/local-authority/12UE,Huntingdonshire District Council,200363,HAVEN POWER LTD HAVEN POWER LTD,10223,04/01/2019,IN1103401689,OL ST IVES INDOOR,17/01/2019,"1,988.64","9,943.18","11,931.82",HOS3,,OLSI - Site & Centre Management,Electricity,60303
http://statistics.data.gov.uk/id/local-authority/12UE,Huntingdonshire District Council,200363,HAVEN POWER LTD HAVEN POWER LTD,10224,04/01/2019,IN1103401684,OL ST NEOTS,17/01/2019,"1,411.74","7,058.68","8,470.42",HOS4,,OLSN - Site & Centre Management,Electricity,60303
http://statistics.data.gov.uk/id/local-authority/12UE,Huntingdonshire District Council,200363,HAVEN POWER LTD HAVEN POWER LTD,10225,04/01/2019,IN1103401685,OL HUNTINGDON,17/01/2019,691.38,"3,456.91","4,148.29",HOS4,,OLH - Site & Centre Management,Electricity,60303
http://statistics.data.gov.uk/id/local-authority/12UE,Huntingdonshire District Council,200363,HAVEN POWER LTD HAVEN POWER LTD,10225,04/01/2019,IN1103401685,OL HUNTINGDON,17/01/2019,-0.01,0,-0.01,,,St Ives Enterprise Centre,Over/Under VAT Rounding,68350
http://statistics.data.gov.uk/id/local-authority/12UE,Huntingdonshire District Council,200363,HAVEN POWER LTD HAVEN POWER LTD,10226,04/01/2019,IN113401686,EASTFIELD HOUSE,17/01/2019,913.56,"4,567.78","5,481.34",HOS4,,Eastfield House,Electricity,60303
http://statistics.data.gov.uk/id/local-authority/12UE,Huntingdonshire District Council,200363,HAVEN POWER LTD HAVEN POWER LTD,10226,04/01/2019,IN113401686,EASTFIELD HOUSE,17/01/2019,-0.02,0,-0.02,,,St Ives Enterprise Centre,Over/Under VAT Rounding,68350
http://statistics.data.gov.uk/id/local-authority/12UE,Huntingdonshire District Council,200363,HAVEN POWER LTD HAVEN POWER LTD,10227,04/01/2019,IN1103401687,PATHFINDER HOUSE,17/01/2019,"1,760.54","8,802.70","10,563.24",HOS1,,Pathfinder House,Electricity,60303
http://statistics.data.gov.uk/id/local-authority/12UE,Huntingdonshire District Council,200363,HAVEN POWER LTD HAVEN POWER LTD,10228,04/01/2019,IN1103401688,OL ST IVES OUTDOOR,17/01/2019,657.69,"3,288.44","3,946.13",,,OLSIO - Site & Centre Management,Electricity,60303
http://statistics.data.gov.uk/id/local-authority/12UE,Huntingdonshire District Council,200363,HAVEN POWER LTD HAVEN POWER LTD,10228,04/01/2019,IN1103401688,OL ST IVES OUTDOOR,17/01/2019,-0.01,0,-0.01,,,St Ives Enterprise Centre,Over/Under VAT Rounding,68350
http://statistics.data.gov.uk/id/local-authority/12UE,Huntingdonshire District Council,200737,SPORTMAX SPORTMAX,10230,31/12/2018,107831,ONE LEISURE HUNTINGDON,24/01/2019,65.95,329.75,395.7,,,OLH - Site & Centre Management,Goods For Resale,61400
http://statistics.data.gov.uk/id/local-authority/12UE,Huntingdonshire District Council,200737,SPORTMAX SPORTMAX,10230,31/12/2018,107831,ONE LEISURE HUNTINGDON,24/01/2019,0,60.7,60.7,,,OLH - Site & Centre Management,Goods For Resale,61400
http://statistics.data.gov.uk/id/local-authority/12UE,Huntingdonshire District Council,200344,GLOBAL RADIO SERVICES LTD GLOBAL RADIO SERVICES LTD,10236,31/10/2018,1162896,ONE LEISURE HUNTINGDON,17/01/2019,118.4,592,710.4,,,OLSI - Burgess Hall,"Advertising, Publicity And Marketing",62005
http://statistics.data.gov.uk/id/local-authority/12UE,Huntingdonshire District Council,201502,INSTITUTE OF ECONOMIC DEVELOPMENT (IED),10239,30/11/2018,C18/058,IED ANNUAL CONFERENCE 06/12/18,17/01/2019,0,498,498,,,Business & Enterprise Support,Conference Expenses,64300
http://statistics.data.gov.uk/id/local-authority/12UE,Huntingdonshire District Council,201012,COACH & HORSES,10241,14/01/2019,366,07-13/01/19,24/01/2019,56,280,336,,,Homelessness,B&B Accommodation,64401
http://statistics.data.gov.uk/id/local-authority/12UE,Huntingdonshire District Council,201012,COACH & HORSES,10241,14/01/2019,366,07-13/01/19,24/01/2019,48,240,288,,,Homelessness,B&B Accommodation,64401
http://statistics.data.gov.uk/id/local-authority/12UE,Huntingdonshire District Council,201012,COACH & HORSES,10241,14/01/2019,366,07-13/01/19,24/01/2019,56,280,336,,,Homelessness,B&B Accommodation,64401
http://statistics.data.gov.uk/id/local-authority/12UE,Huntingdonshire District Council,201012,COACH & HORSES,10241,14/01/2019,366,07-13/01/19,24/01/2019,56,280,336,,,Homelessness,B&B Accommodation,64401
http://statistics.data.gov.uk/id/local-authority/12UE,Huntingdonshire District Council,201012,COACH & HORSES,10241,14/01/2019,366,07-13/01/19,24/01/2019,56,280,336,,,Homelessness,B&B Accommodation,64401
http://statistics.data.gov.uk/id/local-authority/12UE,Huntingdonshire District Council,201012,COACH & HORSES,10241,14/01/2019,366,07-13/01/19,24/01/2019,56,280,336,,,Homelessness,B&B Accommodation,64401
http://statistics.data.gov.uk/id/local-authority/12UE,Huntingdonshire District Council,200288,F S TRAILERS AND TOWBAR CENTRE F S TRAILERS AND TOWBAR CENTRE,10247,21/12/2018,40599,TOW BAR,24/01/2019,84,420,504,HOS4,,Paxton Pits,Vehicle Repairs And Maintenance,60904
http://statistics.data.gov.uk/id/local-authority/12UE,Huntingdonshire District Council,200282,ESPO ESPO,10254,17/12/2018,5112454,ONE LEISURE ST IVES,24/01/2019,65.4,327,392.4,HOS5,,OLSI - Site & Centre Management,Equipment,61713
http://statistics.data.gov.uk/id/local-authority/12UE,Huntingdonshire District Council,200377,HONEYWELL NOVAR SYSTEMS HONEYWELL NOVAR SYSTEMS,10255,12/12/2018,7080730859,ONE LEISURE ST IVES,24/01/2019,143.9,719.48,863.38,,,OLSIO - Site & Centre Management,Fire Assessment And Safety,60205
http://statistics.data.gov.uk/id/local-authority/12UE,Huntingdonshire District Council,200119,BRENNTAG UK LTD BRENNTAG UK LTD,10256,08/01/2019,38SI 3885428,ONE LEISURE ST IVES,31/01/2019,66.7,333.49,400.19,HOS3,,OLSI - Swimming,Chemicals,64000
http://statistics.data.gov.uk/id/local-authority/12UE,Huntingdonshire District Council,200119,BRENNTAG UK LTD BRENNTAG UK LTD,10256,08/01/2019,38SI 3885428,ONE LEISURE ST IVES,31/01/2019,-0.01,0,-0.01,HOS4,,St Ives Enterprise Centre,Over/Under VAT Rounding,68350
http://statistics.data.gov.uk/id/local-authority/12UE,Huntingdonshire District Council,200542,MIRAMAR ENGINEERING LTD MIRAMAR ENGINEERING LTD,10259,10/01/2019,2501,ONE LEISURE ST IVES,07/02/2019,248,"1,240.00","1,488.00",HOS3,,St Ivo - General Improve (Cs),Maintenance - Building,60201
http://statistics.data.gov.uk/id/local-authority/12UE,Huntingdonshire District Council,200113,BOOKER CASH AND CARRY BOOKER CASH AND CARRY,10261,09/01/2019,2107044550,ONE LEISURE ST IVES,31/01/2019,19.08,95.4,114.48,,HOS99,OLSI - Burgess Bar,Bar Provisions,61905
http://statistics.data.gov.uk/id/local-authority/12UE,Huntingdonshire District Council,200113,BOOKER CASH AND CARRY BOOKER CASH AND CARRY,10261,09/01/2019,2107044550,ONE LEISURE ST IVES,31/01/2019,0,286.49,286.49,,,OLSI - Burgess Bar,Catering Supplies,61900
http://statistics.data.gov.uk/id/local-authority/12UE,Huntingdonshire District Council,200113,BOOKER CASH AND CARRY BOOKER CASH AND CARRY,10261,09/01/2019,2107044550,ONE LEISURE ST IVES,31/01/2019,74.3,371.51,445.81,,HOS99,OLSI - Burgess Bar,Confectionery,61906
http://statistics.data.gov.uk/id/local-authority/12UE,Huntingdonshire District Council,200368,HD PROPERTY SERVICES HD PROPERTY SERVICES,10264,03/11/2018,SI-407,180273,24/01/2019,0,"6,385.00","6,385.00",,,Disabled Facilities Grants,Mandatory Grants,64601
http://statistics.data.gov.uk/id/local-authority/12UE,Huntingdonshire District Council,201390,ALLGOOD SERVICES LTD,10266,17/12/2018,1040,170760,24/01/2019,0,"12,000.00","12,000.00",HOS4,,Disabled Facilities Grants,Mandatory Grants,64601
http://statistics.data.gov.uk/id/local-authority/12UE,Huntingdonshire District Council,200511.01,LUMINUS HOMES (PRIVATE RENTS),10267,08/01/2019,DIHH/00003216,MOBILE HOMES PARK OCT-DEC 2018,24/01/2019,226.2,"1,131.00","1,357.20",HOS8,,Mobile Home Park,Maintenance - Building,60201
http://statistics.data.gov.uk/id/local-authority/12UE,Huntingdonshire District Council,200511.01,LUMINUS HOMES (PRIVATE RENTS),10268,08/01/2019,DIHH/00003214,MOBILE HOMES MANAGEMENT FEE,24/01/2019,"1,240.85","6,204.26","7,445.11",,,Mobile Home Park,Management Charge,60411
http://statistics.data.gov.uk/id/local-authority/12UE,Huntingdonshire District Council,200639,PRISM MEDICAL UK PRISM MEDICAL UK,10269,29/10/2018,5294855,18024,24/01/2019,0,"11,800.00","11,800.00",HOS4,,Disabled Facilities Grants,Mandatory Grants,64601
http://statistics.data.gov.uk/id/local-authority/12UE,Huntingdonshire District Council,200226,DAL-ROD (CAMRIDGESHIRE) DAL-ROD (CAMRIDGESHIRE),10277,15/01/2019,49524,6 & 8 ALMS CLOSE 19/12/18,07/02/2019,99,495,594,HOS6,,Alms Close,Consultancy Fees,62400
http://statistics.data.gov.uk/id/local-authority/12UE,Huntingdonshire District Council,200226,DAL-ROD (CAMRIDGESHIRE) DAL-ROD (CAMRIDGESHIRE),10278,15/01/2019,49531,6 & 8 ALMS CLOSE 11-14/01/19,07/02/2019,99,495,594,HOS4,,Industrial Properties,Maintenance - Building,60201
http://statistics.data.gov.uk/id/local-authority/12UE,Huntingdonshire District Council,200879,CHURCHILL SECURITY SOLUTIONS LTD,10281,30/11/2018,72193,SECURITY OFFICERS PFH,24/01/2019,"1,506.99","7,534.97","9,041.96",HOS4,,Pathfinder House,Agency Staff,60011
http://statistics.data.gov.uk/id/local-authority/12UE,Huntingdonshire District Council,200542,MIRAMAR ENGINEERING LTD MIRAMAR ENGINEERING LTD,10284,10/01/2019,2496,PFH - CHILLED WATER SYSTEM,07/02/2019,140,700,840,HOS4,,HDC Recharge Invoices,"Maintenance - Equipment, Furniture And Materials",61702
http://statistics.data.gov.uk/id/local-authority/12UE,Huntingdonshire District Council,200542,MIRAMAR ENGINEERING LTD MIRAMAR ENGINEERING LTD,10284,10/01/2019,2496,PFH - CHILLED WATER SYSTEM,07/02/2019,35,175,210,,,HDC Recharge Invoices,"Maintenance - Equipment, Furniture And Materials",61702
http://statistics.data.gov.uk/id/local-authority/12UE,Huntingdonshire District Council,200542,MIRAMAR ENGINEERING LTD MIRAMAR ENGINEERING LTD,10284,10/01/2019,2496,PFH - CHILLED WATER SYSTEM,07/02/2019,250,"1,250.00","1,500.00",HOS4,,HDC Recharge Invoices,Ict Hardware,64070
http://statistics.data.gov.uk/id/local-authority/12UE,Huntingdonshire District Council,200542,MIRAMAR ENGINEERING LTD MIRAMAR ENGINEERING LTD,10284,10/01/2019,2496,PFH - CHILLED WATER SYSTEM,07/02/2019,44,220,264,,,HDC Recharge Invoices,Ict Hardware,64070
http://statistics.data.gov.uk/id/local-authority/12UE,Huntingdonshire District Council,200542,MIRAMAR ENGINEERING LTD MIRAMAR ENGINEERING LTD,10284,10/01/2019,2496,PFH - CHILLED WATER SYSTEM,07/02/2019,30,150,180,,,HDC Recharge Invoices,Ict Hardware,64070
http://statistics.data.gov.uk/id/local-authority/12UE,Huntingdonshire District Council,201516,REDACTED,10293,18/01/2019,PRF180119,PANTO EXPENSES,24/01/2019,0,295.96,295.96,,,OLSI - Burgess Hall,Materials,61709
http://statistics.data.gov.uk/id/local-authority/12UE,Huntingdonshire District Council,200178,CENTRE THEATRE PLAYERS CENTRE THEATRE PLAYERS,10294,18/01/2019,PRF180119,PANTO EXPENSES,14/02/2019,0,718.73,718.73,HOS8,,OLSI - Burgess Hall,Materials,61709
http://statistics.data.gov.uk/id/local-authority/12UE,Huntingdonshire District Council,200542,MIRAMAR ENGINEERING LTD MIRAMAR ENGINEERING LTD,10297,09/01/2019,2479,"FAN ASSEMBLY ON BOILER 4, PFH",31/01/2019,157.26,786.31,943.57,,,Pathfinder House,Maintenance - Building,60201
http://statistics.data.gov.uk/id/local-authority/12UE,Huntingdonshire District Council,201497,CASTLETON SOFTWARE SOLUTIONS LTD,10305,31/10/2018,SI07514,SVS SERVER  MIGRATION 24/09/18,24/01/2019,190,950,"1,140.00",HOS99,,ICT Capital Projects (Interim),Consultancy Fees,62400
http://statistics.data.gov.uk/id/local-authority/12UE,Huntingdonshire District Council,200026,ADVANTAGE ADVANTAGE,10310,09/01/2019,129737,REDACTED,31/01/2019,35.63,178.13,213.76,,,City Recoverable,Agency Staff,60011
http://statistics.data.gov.uk/id/local-authority/12UE,Huntingdonshire District Council,200026,ADVANTAGE ADVANTAGE,10310,09/01/2019,129737,REDACTED,31/01/2019,35.63,178.12,213.75,HOS4,,SCDC Recoverable,Agency Staff,60011
http://statistics.data.gov.uk/id/local-authority/12UE,Huntingdonshire District Council,200026,ADVANTAGE ADVANTAGE,10310,09/01/2019,129737,REDACTED,31/01/2019,-0.01,0,-0.01,HOS4,,St Ives Enterprise Centre,Over/Under VAT Rounding,68350
http://statistics.data.gov.uk/id/local-authority/12UE,Huntingdonshire District Council,200987,YOTTA,10311,11/07/2018,11295,6.5 DAYS OF YOTTA TRAINING,24/01/2019,975,"4,875.00","5,850.00",,,SCDC Recoverable,Staff Development And Training,60115
http://statistics.data.gov.uk/id/local-authority/12UE,Huntingdonshire District Council,200743,STAFFLINE GROUP STAFFLINE GROUP,10316,31/12/2018,IN0723281,STREET CLEAN W/C 23/12/18,24/01/2019,324.45,"1,622.27","1,946.72",HOS4,,Street Cleansing,Agency Staff,60011
http://statistics.data.gov.uk/id/local-authority/12UE,Huntingdonshire District Council,200257,ECOCLEEN SERVICES LIMITED ECOCLEEN SERVICES LIMITED,10317,01/09/2018,INV574297,COUNTRY PARK,24/01/2019,90.78,453.9,544.68,,,H'Brooke Countryside Centre,Cleaning Services,60501
http://statistics.data.gov.uk/id/local-authority/12UE,Huntingdonshire District Council,200373,HI-SPEC FACILITIES SERVICES PLC HI-SPEC FACILITIES SERVICES PLC,10326,31/08/2018,1179,INV 36128,24/01/2019,-4.2,-21,-25.2,HOS4,,OLH - Site & Centre Management,Cleaning Services,60501
http://statistics.data.gov.uk/id/local-authority/12UE,Huntingdonshire District Council,200373,HI-SPEC FACILITIES SERVICES PLC HI-SPEC FACILITIES SERVICES PLC,10326,31/08/2018,1179,INV 36128,24/01/2019,-25.8,-129,-154.8,,,OLSI - Site & Centre Management,Cleaning Services,60501
http://statistics.data.gov.uk/id/local-authority/12UE,Huntingdonshire District Council,200373,HI-SPEC FACILITIES SERVICES PLC HI-SPEC FACILITIES SERVICES PLC,10326,31/08/2018,1179,INV 36128,24/01/2019,-26.95,-134.75,-161.7,HOS4,,OLSI - Site & Centre Management,Cleaning Services,60501
http://statistics.data.gov.uk/id/local-authority/12UE,Huntingdonshire District Council,200373,HI-SPEC FACILITIES SERVICES PLC HI-SPEC FACILITIES SERVICES PLC,10326,31/08/2018,1179,INV 36128,24/01/2019,-1.4,-7,-8.4,HOS4,,OLSN - Site & Centre Management,Cleaning Services,60501
http://statistics.data.gov.uk/id/local-authority/12UE,Huntingdonshire District Council,200373,HI-SPEC FACILITIES SERVICES PLC HI-SPEC FACILITIES SERVICES PLC,10326,31/08/2018,1179,INV 36128,24/01/2019,-2.8,-14,-16.8,HOS4,,OLS - Site & Centre Management,Cleaning Services,60501
http://statistics.data.gov.uk/id/local-authority/12UE,Huntingdonshire District Council,200373,HI-SPEC FACILITIES SERVICES PLC HI-SPEC FACILITIES SERVICES PLC,10327,31/08/2018,1180,INV 36128,24/01/2019,-54.81,-274.05,-328.86,HOS4,,Pathfinder House,Cleaning Services,60501
http://statistics.data.gov.uk/id/local-authority/12UE,Huntingdonshire District Council,200373,HI-SPEC FACILITIES SERVICES PLC HI-SPEC FACILITIES SERVICES PLC,10327,31/08/2018,1180,INV 36128,24/01/2019,-7.83,-39.15,-46.98,HOS4,,Eastfield House,Cleaning Services,60501
http://statistics.data.gov.uk/id/local-authority/12UE,Huntingdonshire District Council,200171,CATERFIX LTD CATERFIX LTD,10331,15/01/2019,42586,ONE LEISURE ST IVES,07/02/2019,110,550,660,,,OLSI - Burgess Hall,Maintenance - Building,60201
http://statistics.data.gov.uk/id/local-authority/12UE,Huntingdonshire District Council,200117,BRAMBLE HUB LTD BRAMBLE HUB LTD,10334,15/01/2019,8489,SOFTWARE SUPPORT,07/02/2019,"15,449.57","77,247.85","92,697.42",,,HDC Recharge Invoices,Ict Software,64071
http://statistics.data.gov.uk/id/local-authority/12UE,Huntingdonshire District Council,200117,BRAMBLE HUB LTD BRAMBLE HUB LTD,10334,15/01/2019,8489,SOFTWARE SUPPORT,07/02/2019,"4,074.35","20,371.73","24,446.08",HOS10,,HDC Recharge Invoices,"Maintenance - Equipment, Furniture And Materials",61702
http://statistics.data.gov.uk/id/local-authority/12UE,Huntingdonshire District Council,200117,BRAMBLE HUB LTD BRAMBLE HUB LTD,10334,15/01/2019,8489,SOFTWARE SUPPORT,07/02/2019,0.01,0,0.01,,,St Ives Enterprise Centre,Over/Under VAT Rounding,68350
http://statistics.data.gov.uk/id/local-authority/12UE,Huntingdonshire District Council,200117,BRAMBLE HUB LTD BRAMBLE HUB LTD,10335,15/01/2019,8490,,07/02/2019,0,0.02,0.02,HOS4,,HDC Recharge Invoices,"Maintenance - Equipment, Furniture And Materials",61702
http://statistics.data.gov.uk/id/local-authority/12UE,Huntingdonshire District Council,200117,BRAMBLE HUB LTD BRAMBLE HUB LTD,10335,15/01/2019,8490,,07/02/2019,"4,045.82","20,229.11","24,274.93",,,HDC Recharge Invoices,"Maintenance - Equipment, Furniture And Materials",61702
http://statistics.data.gov.uk/id/local-authority/12UE,Huntingdonshire District Council,200557,REDACTED,10350,18/01/2019,PRF180119,PANTO EXPENSES - PROPS,14/02/2019,0,293.41,293.41,,,OLSI - Burgess Hall,Materials,61709
http://statistics.data.gov.uk/id/local-authority/12UE,Huntingdonshire District Council,200511.01,LUMINUS HOMES (PRIVATE RENTS),10351,15/01/2019,644374,H/L PREVENTION PAYMENT,24/01/2019,0,"1,450.00","1,450.00",HOS1,,Homelessness,Homeless Prevention Payments,64403
http://statistics.data.gov.uk/id/local-authority/12UE,Huntingdonshire District Council,201437,ANNE CORDER RECRUITMENT,10352,15/01/2019,64662,REDACTED,31/01/2019,101.85,509.25,611.1,HOS4,,HR Services,Consultancy Fees,62400
http://statistics.data.gov.uk/id/local-authority/12UE,Huntingdonshire District Council,200783,THE INFORMATION LAB THE INFORMATION LAB,10353,11/09/2018,7469,TABLEAU LONDON CONFERENCE,24/01/2019,260,"1,300.00","1,560.00",,,HR Services,Staff Development And Training,60115
http://statistics.data.gov.uk/id/local-authority/12UE,Huntingdonshire District Council,201437,ANNE CORDER RECRUITMENT,10354,08/01/2019,64636,REDACTED,31/01/2019,61.11,305.55,366.66,,,HR Services,Consultancy Fees,62400
http://statistics.data.gov.uk/id/local-authority/12UE,Huntingdonshire District Council,200344,GLOBAL RADIO SERVICES LTD GLOBAL RADIO SERVICES LTD,10355,31/12/2018,1171404,ONE LEISURE HUNTINGDON,24/01/2019,276.97,"1,384.83","1,661.80",,,One Leisure Support Team,"Advertising, Publicity And Marketing",62005
http://statistics.data.gov.uk/id/local-authority/12UE,Huntingdonshire District Council,200344,GLOBAL RADIO SERVICES LTD GLOBAL RADIO SERVICES LTD,10356,31/12/2018,1171403,ONE LEISURE ST IVES,24/01/2019,118.4,592,710.4,,,OLSI - Burgess Hall,"Advertising, Publicity And Marketing",62005
http://statistics.data.gov.uk/id/local-authority/12UE,Huntingdonshire District Council,200133,BSG PROPERTY SERVICES LTD BSG PROPERTY SERVICES LTD,10361,04/12/2018,S38416,180328,24/01/2019,0,"6,015.00","6,015.00",,,Disabled Facilities Grants,Mandatory Grants,64601
http://statistics.data.gov.uk/id/local-authority/12UE,Huntingdonshire District Council,200365,HAYS HAYS,10364,09/01/2019,1009294463,REDACTED,31/01/2019,428.06,"2,140.32","2,568.38",,,Property Development And Mgt,Agency Staff,60011
http://statistics.data.gov.uk/id/local-authority/12UE,Huntingdonshire District Council,201519,LANO SPORTS,10365,20/12/2018,SIS180001066,ONE LEISURE ST NEOTS,24/01/2019,0,"77,154.28","77,154.28",HOS7,,Ol St Neots Synthetic Pitch,Maintenance - Building,60201
http://statistics.data.gov.uk/id/local-authority/12UE,Huntingdonshire District Council,200746,STARLITE ROADSHOW STARLITE ROADSHOW,10369,16/01/2019,8452,ONE LEISURE ST IVES,24/01/2019,0,550,550,HOS4,,OLSI - Burgess Hall,Entertainments,64079
http://statistics.data.gov.uk/id/local-authority/12UE,Huntingdonshire District Council,200615,PHS GROUP LTD PHS GROUP LTD,10370,15/01/2019,66412714,ONE LEISURE ST IVES,07/02/2019,100.68,503.4,604.08,,HOS99,OLSI - Site & Centre Management,Cleaning Materials,61300
